Workbook

Sheet RESUMEN (hidden)
B2: Importe Solicitado | C2: 33050
B3: Tasa Anual (TEA) | C3: 13.5
B4: Tasa de Seguro de Desgravamen | C4: 0.00015
B5: Plazo y Nro. Cuotas | C5: 60 | D5: =+simulador_1!H12 -> 72
B6: Fecha Desembolso | C6: 2022-04-28
B7: Comisiones + Pago Casillero | C7: 3.03
B8: Días de Gracia | C8: 17
B9: Mes de No Pago 1 | C9: 1
B10: Mes de No Pago 2 | C10: 6
C12: Desembolso | D12: Interes | E12: Impacto Interes | F12: Suma de Cuota | G12: Impacto Cuota Total | H12: Cuota | I12: Impacto Cuota
B13: Simulador IBS (Original) | C13: =+'Simulador Original'!$G$5 -> 33050 | D13: =+SUM('Simulador Original'!$K$32:$K$103) -> 10406.78 | F13: =+SUM('Simulador Original'!Q32:Q103) -> 50500.95021 | H13: =+'Simulador Original'!$Q$32 -> 1010.019004
B14: Simulador Cambiando Cuota | C14: =+simulador_1!$H$5 -> 34000 | D14: =+SUM(simulador_1!$L$35:$L$106) -> 8216.19 | E14: =+D14-D13 -> -2190.59 | F14: =+SUM(simulador_1!$U$35:$U$106) -> 65630.2739 | G14: =+F14-F13 -> 15129.32369 | H14: =+simulador_1!U35 -> 911.5315819 | I14: =+H14-H13 -> -98.48742234

Sheet simulador
C3: Simulador Creditos por Convenio
C7: Monto solicitado: | G7: 34000
C8: Fecha de desembolso | G8: =TODAY() -> 2022-09-12
C9: Periodo de gracia (días): | G9: 30
C10: Primera fecha de pago | G10: =simulador_1!Q7 -> 2022-11-12
C11: TEA: | G11: 11.5
C12: Plazo: | G12: 72
C13: Comisión + Uso de Casillero*: | G13: 10
C14: Tipo de seguro | G14: Plan 25 - con retorno
C15: Tasa | G15: =IFERROR(INDEX(Tabla1[tasa],MATCH(G14,Tabla1[tipo_seg],0),1),"") -> 0.00416
C17: TCEA: | G17: =simulador_1!AI33 -> 0.2632037451
C18: Cuota: | G18: =I22 -> 911.5315819
C19: *Comisión de Descuento Automático por planilla más Gasto de Uso de Casillero
C21: Periodo | D21: Saldo | E21: Capital | F21: Interes | G21: Seguros | H21: Comisión + Uso de Casillero* | I21: Cuota
C22: =simulador_1!E35 -> 1 | D22: =simulador_1!J35 -> 34000 | E22: =simulador_1!K35 -> 294.1484722 | F22: =simulador_1!N35 -> 324.5031097 | G22: =simulador_1!T35 -> 282.88 | H22: =simulador_1!P35 -> 10 | I22: =simulador_1!U35 -> 911.5315819
C23: =simulador_1!E36 -> 2 | D23: =simulador_1!J36 -> 33705.85 | E23: =simulador_1!K36 -> 449.8684722 | F23: =simulador_1!N36 -> 311.4431097 | G23: =simulador_1!T36 -> 140.22 | H23: =simulador_1!P36 -> 10 | I23: =simulador_1!U36 -> 911.5315819
C24: =simulador_1!E37 -> 3 | D24: =simulador_1!J37 -> 33255.98 | E24: =simulador_1!K37 -> 441.0784722 | F24: =simulador_1!N37 -> 317.4931097 | G24: =simulador_1!T37 -> 142.96 | H24: =simulador_1!P37 -> 10 | I24: =simulador_1!U37 -> 911.5315819
C25: =simulador_1!E38 -> 4 | D25: =simulador_1!J38 -> 32814.9 | E25: =simulador_1!K38 -> 447.1284722 | F25: =simulador_1!N38 -> 313.3431097 | G25: =simulador_1!T38 -> 141.06 | H25: =simulador_1!P38 -> 10 | I25: =simulador_1!U38 -> 911.5315819
C26: =simulador_1!E39 -> 5 | D26: =simulador_1!J39 -> 32367.77 | E26: =simulador_1!K39 -> 496.3584722 | F26: =simulador_1!N39 -> 279.5031097 | G26: =simulador_1!T39 -> 125.67 | H26: =simulador_1!P39 -> 10 | I26: =simulador_1!U39 -> 911.5315819
C27: =simulador_1!E40 -> 6 | D27: =simulador_1!J40 -> 31871.41 | E27: =simulador_1!K40 -> 460.0784722 | F27: =simulador_1!N40 -> 304.4531097 | G27: =simulador_1!T40 -> 137 | H27: =simulador_1!P40 -> 10 | I27: =simulador_1!U40 -> 911.5315819
C28: =simulador_1!E41 -> 7 | D28: =simulador_1!J41 -> 31411.33 | E28: =simulador_1!K41 -> 480.3284722 | F28: =simulador_1!N41 -> 290.5331097 | G28: =simulador_1!T41 -> 130.67 | H28: =simulador_1!P41 -> 10 | I28: =simulador_1!U41 -> 911.5315819
C29: =simulador_1!E42 -> 8 | D29: =simulador_1!J42 -> 30931 | E29: =simulador_1!K42 -> 472.9684722 | F29: =simulador_1!N42 -> 295.6031097 | G29: =simulador_1!T42 -> 132.96 | H29: =simulador_1!P42 -> 10 | I29: =simulador_1!U42 -> 911.5315819 | Q29: 0
C30: =simulador_1!E43 -> 9 | D30: =simulador_1!J43 -> 30458.03 | E30: =simulador_1!K43 -> 492.9684722 | F30: =simulador_1!N43 -> 281.8531097 | G30: =simulador_1!T43 -> 126.71 | H30: =simulador_1!P43 -> 10 | I30: =simulador_1!U43 -> 911.5315819
C31: =simulador_1!E44 -> 10 | D31: =simulador_1!J44 -> 29965.06 | E31: =simulador_1!K44 -> 486.2184722 | F31: =simulador_1!N44 -> 286.5031097 | G31: =simulador_1!T44 -> 128.81 | H31: =simulador_1!P44 -> 10 | I31: =simulador_1!U44 -> 911.5315819
C32: =simulador_1!E45 -> 11 | D32: =simulador_1!J45 -> 29478.84 | E32: =simulador_1!K45 -> 492.8884722 | F32: =simulador_1!N45 -> 281.9231097 | G32: =simulador_1!T45 -> 126.72 | H32: =simulador_1!P45 -> 10 | I32: =simulador_1!U45 -> 911.5315819
C33: =simulador_1!E46 -> 12 | D33: =simulador_1!J46 -> 28985.95 | E33: =simulador_1!K46 -> 512.5184722 | F33: =simulador_1!N46 -> 268.4331097 | G33: =simulador_1!T46 -> 120.58 | H33: =simulador_1!P46 -> 10 | I33: =simulador_1!U46 -> 911.5315819
C34: =simulador_1!E47 -> 13 | D34: =simulador_1!J47 -> 28473.43 | E34: =simulador_1!K47 -> 506.6784722 | F34: =simulador_1!N47 -> 272.4531097 | G34: =simulador_1!T47 -> 122.4 | H34: =simulador_1!P47 -> 10 | I34: =simulador_1!U47 -> 911.5315819
C35: =simulador_1!E48 -> 14 | D35: =simulador_1!J48 -> 27966.75 | E35: =simulador_1!K48 -> 526.0384722 | F35: =simulador_1!N48 -> 259.1531097 | G35: =simulador_1!T48 -> 116.34 | H35: =simulador_1!P48 -> 10 | I35: =simulador_1!U48 -> 911.5315819
C36: =simulador_1!E49 -> 15 | D36: =simulador_1!J49 -> 27440.71 | E36: =simulador_1!K49 -> 520.8384722 | F36: =simulador_1!N49 -> 262.7331097 | G36: =simulador_1!T49 -> 117.96 | H36: =simulador_1!P49 -> 10 | I36: =simulador_1!U49 -> 911.5315819
C37: =simulador_1!E50 -> 16 | D37: =simulador_1!J50 -> 26919.87 | E37: =simulador_1!K50 -> 527.9884722 | F37: =simulador_1!N50 -> 257.8231097 | G37: =simulador_1!T50 -> 115.72 | H37: =simulador_1!P50 -> 10 | I37: =simulador_1!U50 -> 911.5315819
C38: =simulador_1!E51 -> 17 | D38: =simulador_1!J51 -> 26391.88 | E38: =simulador_1!K51 -> 558.6584722 | F38: =simulador_1!N51 -> 236.7431097 | G38: =simulador_1!T51 -> 106.13 | H38: =simulador_1!P51 -> 10 | I38: =simulador_1!U51 -> 911.5315819
C39: =simulador_1!E52 -> 18 | D39: =simulador_1!J52 -> 25833.22 | E39: =simulador_1!K52 -> 542.8884722 | F39: =simulador_1!N52 -> 247.5931097 | G39: =simulador_1!T52 -> 111.05 | H39: =simulador_1!P52 -> 10 | I39: =simulador_1!U52 -> 911.5315819
C40: =simulador_1!E53 -> 19 | D40: =simulador_1!J53 -> 25290.33 | E40: =simulador_1!K53 -> 561.5584722 | F40: =simulador_1!N53 -> 234.7631097 | G40: =simulador_1!T53 -> 105.21 | H40: =simulador_1!P53 -> 10 | I40: =simulador_1!U53 -> 911.5315819
C41: =simulador_1!E54 -> 20 | D41: =simulador_1!J54 -> 24728.77 | E41: =simulador_1!K54 -> 558.0384722 | F41: =simulador_1!N54 -> 237.1931097 | G41: =simulador_1!T54 -> 106.3 | H41: =simulador_1!P54 -> 10 | I41: =simulador_1!U54 -> 911.5315819
C42: =simulador_1!E55 -> 21 | D42: =simulador_1!J55 -> 24170.73 | E42: =simulador_1!K55 -> 576.4184722 | F42: =simulador_1!N55 -> 224.5631097 | G42: =simulador_1!T55 -> 100.55 | H42: =simulador_1!P55 -> 10 | I42: =simulador_1!U55 -> 911.5315819
C43: =simulador_1!E56 -> 22 | D43: =simulador_1!J56 -> 23594.31 | E43: =simulador_1!K56 -> 573.6084722 | F43: =simulador_1!N56 -> 226.5031097 | G43: =simulador_1!T56 -> 101.42 | H43: =simulador_1!P56 -> 10 | I43: =simulador_1!U56 -> 911.5315819
C44: =simulador_1!E57 -> 23 | D44: =simulador_1!J57 -> 23020.7 | E44: =simulador_1!K57 -> 581.4684722 | F44: =simulador_1!N57 -> 221.1031097 | G44: =simulador_1!T57 -> 98.96 | H44: =simulador_1!P57 -> 10 | I44: =simulador_1!U57 -> 911.5315819
C45: =simulador_1!E58 -> 24 | D45: =simulador_1!J58 -> 22439.23 | E45: =simulador_1!K58 -> 599.3984722 | F45: =simulador_1!N58 -> 208.7831097 | G45: =simulador_1!T58 -> 93.35 | H45: =simulador_1!P58 -> 10 | I45: =simulador_1!U58 -> 911.5315819
C46: =simulador_1!E59 -> 25 | D46: =simulador_1!J59 -> 21839.83 | E46: =simulador_1!K59 -> 597.6684722 | F46: =simulador_1!N59 -> 209.9831097 | G46: =simulador_1!T59 -> 93.88 | H46: =simulador_1!P59 -> 10 | I46: =simulador_1!U59 -> 911.5315819
C47: =simulador_1!E60 -> 26 | D47: =simulador_1!J60 -> 21242.16 | E47: =simulador_1!K60 -> 615.2884722 | F47: =simulador_1!N60 -> 197.8731097 | G47: =simulador_1!T60 -> 88.37 | H47: =simulador_1!P60 -> 10 | I47: =simulador_1!U60 -> 911.5315819
C48: =simulador_1!E61 -> 27 | D48: =simulador_1!J61 -> 20626.87 | E48: =simulador_1!K61 -> 614.2984722 | F48: =simulador_1!N61 -> 198.5631097 | G48: =simulador_1!T61 -> 88.67 | H48: =simulador_1!P61 -> 10 | I48: =simulador_1!U61 -> 911.5315819
C49: =simulador_1!E62 -> 28 | D49: =simulador_1!J62 -> 20012.57 | E49: =simulador_1!K62 -> 622.7284722 | F49: =simulador_1!N62 -> 192.7731097 | G49: =simulador_1!T62 -> 86.03 | H49: =simulador_1!P62 -> 10 | I49: =simulador_1!U62 -> 911.5315819
C50: =simulador_1!E63 -> 29 | D50: =simulador_1!J63 -> 19389.84 | E50: =simulador_1!K63 -> 657.0884722 | F50: =simulador_1!N63 -> 169.1631097 | G50: =simulador_1!T63 -> 75.28 | H50: =simulador_1!P63 -> 10 | I50: =simulador_1!U63 -> 911.5315819
C51: =simulador_1!E64 -> 30 | D51: =simulador_1!J64 -> 18732.75 | E51: =simulador_1!K64 -> 640.2784722 | F51: =simulador_1!N64 -> 180.7231097 | G51: =simulador_1!T64 -> 80.53 | H51: =simulador_1!P64 -> 10 | I51: =simulador_1!U64 -> 911.5315819
C52: =simulador_1!E65 -> 31 | D52: =simulador_1!J65 -> 18092.47 | E52: =simulador_1!K65 -> 657.0984722 | F52: =simulador_1!N65 -> 169.1731097 | G52: =simulador_1!T65 -> 75.26 | H52: =simulador_1!P65 -> 10 | I52: =simulador_1!U65 -> 911.5315819
C53: =simulador_1!E66 -> 32 | D53: =simulador_1!J66 -> 17435.37 | E53: =simulador_1!K66 -> 658.0784722 | F53: =simulador_1!N66 -> 168.5031097 | G53: =simulador_1!T66 -> 74.95 | H53: =simulador_1!P66 -> 10 | I53: =simulador_1!U66 -> 911.5315819
C54: =simulador_1!E67 -> 33 | D54: =simulador_1!J67 -> 16777.29 | E54: =simulador_1!K67 -> 674.5584722 | F54: =simulador_1!N67 -> 157.1831097 | G54: =simulador_1!T67 -> 69.79 | H54: =simulador_1!P67 -> 10 | I54: =simulador_1!U67 -> 911.5315819
C55: =simulador_1!E68 -> 34 | D55: =simulador_1!J68 -> 16102.73 | E55: =simulador_1!K68 -> 676.3584722 | F55: =simulador_1!N68 -> 155.9531097 | G55: =simulador_1!T68 -> 69.22 | H55: =simulador_1!P68 -> 10 | I55: =simulador_1!U68 -> 911.5315819
C56: =simulador_1!E69 -> 35 | D56: =simulador_1!J69 -> 15426.37 | E56: =simulador_1!K69 -> 685.6384722 | F56: =simulador_1!N69 -> 149.5831097 | G56: =simulador_1!T69 -> 66.31 | H56: =simulador_1!P69 -> 10 | I56: =simulador_1!U69 -> 911.5315819
C57: =simulador_1!E70 -> 36 | D57: =simulador_1!J70 -> 14740.73 | E57: =simulador_1!K70 -> 701.5884722 | F57: =simulador_1!N70 -> 138.6231097 | G57: =simulador_1!T70 -> 61.32 | H57: =simulador_1!P70 -> 10 | I57: =simulador_1!U70 -> 911.5315819
C58: =simulador_1!E71 -> 37 | D58: =simulador_1!J71 -> 14039.14 | E58: =simulador_1!K71 -> 704.6584722 | F58: =simulador_1!N71 -> 136.5231097 | G58: =simulador_1!T71 -> 60.35 | H58: =simulador_1!P71 -> 10 | I58: =simulador_1!U71 -> 911.5315819
C59: =simulador_1!E72 -> 38 | D59: =simulador_1!J72 -> 13334.48 | E59: =simulador_1!K72 -> 720.2484722 | F59: =simulador_1!N72 -> 125.8131097 | G59: =simulador_1!T72 -> 55.47 | H59: =simulador_1!P72 -> 10 | I59: =simulador_1!U72 -> 911.5315819
C60: =simulador_1!E73 -> 39 | D60: =simulador_1!J73 -> 12614.23 | E60: =simulador_1!K73 -> 724.2084722 | F60: =simulador_1!N73 -> 123.1031097 | G60: =simulador_1!T73 -> 54.22 | H60: =simulador_1!P73 -> 10 | I60: =simulador_1!U73 -> 911.5315819
C61: =simulador_1!E74 -> 40 | D61: =simulador_1!J74 -> 11890.02 | E61: =simulador_1!K74 -> 734.1384722 | F61: =simulador_1!N74 -> 116.2831097 | G61: =simulador_1!T74 -> 51.11 | H61: =simulador_1!P74 -> 10 | I61: =simulador_1!U74 -> 911.5315819
C62: =simulador_1!E75 -> 41 | D62: =simulador_1!J75 -> 11155.88 | E62: =simulador_1!K75 -> 759.0684722 | F62: =simulador_1!N75 -> 99.15310972 | G62: =simulador_1!T75 -> 43.31 | H62: =simulador_1!P75 -> 10 | I62: =simulador_1!U75 -> 911.5315819
C63: =simulador_1!E76 -> 42 | D63: =simulador_1!J76 -> 10396.81 | E63: =simulador_1!K76 -> 754.6284722 | F63: =simulador_1!N76 -> 102.2131097 | G63: =simulador_1!T76 -> 44.69 | H63: =simulador_1!P76 -> 10 | I63: =simulador_1!U76 -> 911.5315819
C64: =simulador_1!E77 -> 43 | D64: =simulador_1!J77 -> 9642.18 | E64: =simulador_1!K77 -> 769.2584722 | F64: =simulador_1!N77 -> 92.16310972 | G64: =simulador_1!T77 -> 40.11 | H64: =simulador_1!P77 -> 10 | I64: =simulador_1!U77 -> 911.5315819
C65: =simulador_1!E78 -> 44 | D65: =simulador_1!J78 -> 8872.92 | E65: =simulador_1!K78 -> 775.5284722 | F65: =simulador_1!N78 -> 87.86310972 | G65: =simulador_1!T78 -> 38.14 | H65: =simulador_1!P78 -> 10 | I65: =simulador_1!U78 -> 911.5315819
C66: =simulador_1!E79 -> 45 | D66: =simulador_1!J79 -> 8097.39 | E66: =simulador_1!K79 -> 789.7484722 | F66: =simulador_1!N79 -> 78.09310972 | G66: =simulador_1!T79 -> 33.69 | H66: =simulador_1!P79 -> 10 | I66: =simulador_1!U79 -> 911.5315819
C67: =simulador_1!E80 -> 46 | D67: =simulador_1!J80 -> 7307.64 | E67: =simulador_1!K80 -> 796.9984722 | F67: =simulador_1!N80 -> 73.12310972 | G67: =simulador_1!T80 -> 31.41 | H67: =simulador_1!P80 -> 10 | I67: =simulador_1!U80 -> 911.5315819
C68: =simulador_1!E81 -> 47 | D68: =simulador_1!J81 -> 6510.64 | E68: =simulador_1!K81 -> 807.9284722 | F68: =simulador_1!N81 -> 65.61310972 | G68: =simulador_1!T81 -> 27.99 | H68: =simulador_1!P81 -> 10 | I68: =simulador_1!U81 -> 911.5315819
C69: =simulador_1!E82 -> 48 | D69: =simulador_1!J82 -> 5702.71 | E69: =simulador_1!K82 -> 821.5384722 | F69: =simulador_1!N82 -> 56.27310972 | G69: =simulador_1!T82 -> 23.72 | H69: =simulador_1!P82 -> 10 | I69: =simulador_1!U82 -> 911.5315819
C70: =simulador_1!E83 -> 49 | D70: =simulador_1!J83 -> 4881.17 | E70: =simulador_1!K83 -> 830.2784722 | F70: =simulador_1!N83 -> 50.27310972 | G70: =simulador_1!T83 -> 20.98 | H70: =simulador_1!P83 -> 10 | I70: =simulador_1!U83 -> 911.5315819
C71: =simulador_1!E84 -> 50 | D71: =simulador_1!J84 -> 4050.89 | E71: =simulador_1!K84 -> 843.4684722 | F71: =simulador_1!N84 -> 41.21310972 | G71: =simulador_1!T84 -> 16.85 | H71: =simulador_1!P84 -> 10 | I71: =simulador_1!U84 -> 911.5315819
C72: =simulador_1!E85 -> 51 | D72: =simulador_1!J85 -> 3207.42 | E72: =simulador_1!K85 -> 853.2284722 | F72: =simulador_1!N85 -> 34.51310972 | G72: =simulador_1!T85 -> 13.79 | H72: =simulador_1!P85 -> 10 | I72: =simulador_1!U85 -> 911.5315819
C73: =simulador_1!E86 -> 52 | D73: =simulador_1!J86 -> 2354.19 | E73: =simulador_1!K86 -> 864.9384722 | F73: =simulador_1!N86 -> 26.47310972 | G73: =simulador_1!T86 -> 10.12 | H73: =simulador_1!P86 -> 10 | I73: =simulador_1!U86 -> 911.5315819
C74: =simulador_1!E87 -> 53 | D74: =simulador_1!J87 -> 1489.25 | E74: =simulador_1!K87 -> 878.7884722 | F74: =simulador_1!N87 -> 16.96310972 | G74: =simulador_1!T87 -> 5.78 | H74: =simulador_1!P87 -> 10 | I74: =simulador_1!U87 -> 911.5315819
C75: =simulador_1!E88 -> 54 | D75: =simulador_1!J88 -> 610.46 | E75: =simulador_1!K88 -> 888.8584722 | F75: =simulador_1!N88 -> 10.05310972 | G75: =simulador_1!T88 -> 2.62 | H75: =simulador_1!P88 -> 10 | I75: =simulador_1!U88 -> 911.5315819
C76: =simulador_1!E89 -> 55 | D76: =simulador_1!J89 -> -278.4 | E76: =simulador_1!K89 -> 900.9284722 | F76: =simulador_1!N89 -> 1.763109722 | G76: =simulador_1!T89 -> -1.16 | H76: =simulador_1!P89 -> 10 | I76: =simulador_1!U89 -> 911.5315819
C77: =simulador_1!E90 -> 56 | D77: =simulador_1!J90 -> -1179.33 | E77: =simulador_1!K90 -> 913.4084722 | F77: =simulador_1!N90 -> -6.806890278 | G77: =simulador_1!T90 -> -5.07 | H77: =simulador_1!P90 -> 10 | I77: =simulador_1!U90 -> 911.5315819
C78: =simulador_1!E91 -> 57 | D78: =simulador_1!J91 -> -2092.74 | E78: =simulador_1!K91 -> 925.0084722 | F78: =simulador_1!N91 -> -14.76689028 | G78: =simulador_1!T91 -> -8.71 | H78: =simulador_1!P91 -> 10 | I78: =simulador_1!U91 -> 911.5315819
C79: =simulador_1!E92 -> 58 | D79: =simulador_1!J92 -> -3017.75 | E79: =simulador_1!K92 -> 938.6184722 | F79: =simulador_1!N92 -> -24.11689028 | G79: =simulador_1!T92 -> -12.97 | H79: =simulador_1!P92 -> 10 | I79: =simulador_1!U92 -> 911.5315819
C80: =simulador_1!E93 -> 59 | D80: =simulador_1!J93 -> -3956.37 | E80: =simulador_1!K93 -> 951.4984722 | F80: =simulador_1!N93 -> -32.95689028 | G80: =simulador_1!T93 -> -17.01 | H80: =simulador_1!P93 -> 10 | I80: =simulador_1!U93 -> 911.5315819
C81: =simulador_1!E94 -> 60 | D81: =simulador_1!J94 -> -4907.87 | E81: =simulador_1!K94 -> 962.3684722 | F81: =simulador_1!N94 -> -40.41689028 | G81: =simulador_1!T94 -> -20.42 | H81: =simulador_1!P94 -> 10 | I81: =simulador_1!U94 -> 911.5315819
C82: =simulador_1!E95 -> 61 | D82: =simulador_1!J95 -> -5870.24 | E82: =simulador_1!K95 -> 977.7384722 | F82: =simulador_1!N95 -> -50.97689028 | G82: =simulador_1!T95 -> -25.23 | H82: =simulador_1!P95 -> 10 | I82: =simulador_1!U95 -> 911.5315819
C83: =simulador_1!E96 -> 62 | D83: =simulador_1!J96 -> -6847.98 | E83: =simulador_1!K96 -> 988.1184722 | F83: =simulador_1!N96 -> -58.09689028 | G83: =simulador_1!T96 -> -28.49 | H83: =simulador_1!P96 -> 10 | I83: =simulador_1!U96 -> 911.5315819
C84: =simulador_1!E97 -> 63 | D84: =simulador_1!J97 -> -7836.1 | E84: =simulador_1!K97 -> 1004.708472 | F84: =simulador_1!N97 -> -69.49689028 | G84: =simulador_1!T97 -> -33.68 | H84: =simulador_1!P97 -> 10 | I84: =simulador_1!U97 -> 911.5315819
C85: =simulador_1!E98 -> 64 | D85: =simulador_1!J98 -> -8840.81 | E85: =simulador_1!K98 -> 1018.488472 | F85: =simulador_1!N98 -> -78.95689028 | G85: =simulador_1!T98 -> -38 | H85: =simulador_1!P98 -> 10 | I85: =simulador_1!U98 -> 911.5315819
C86: =simulador_1!E99 -> 65 | D86: =simulador_1!J99 -> -9859.3 | E86: =simulador_1!K99 -> 1023.708472 | F86: =simulador_1!N99 -> -82.52689028 | G86: =simulador_1!T99 -> -39.65 | H86: =simulador_1!P99 -> 10 | I86: =simulador_1!U99 -> 911.5315819
C87: =simulador_1!E100 -> 66 | D87: =simulador_1!J100 -> -10883.01 | E87: =simulador_1!K100 -> 1046.498472 | F87: =simulador_1!N100 -> -98.18689028 | G87: =simulador_1!T100 -> -46.78 | H87: =simulador_1!P100 -> 10 | I87: =simulador_1!U100 -> 911.5315819
C88: =simulador_1!E101 -> 67 | D88: =simulador_1!J101 -> -11929.51 | E88: =simulador_1!K101 -> 1055.568472 | F88: =simulador_1!N101 -> -104.4068903 | G88: =simulador_1!T101 -> -49.63 | H88: =simulador_1!P101 -> 10 | I88: =simulador_1!U101 -> 911.5315819
C89: =simulador_1!E102 -> 68 | D89: =simulador_1!J102 -> -12985.08 | E89: =simulador_1!K102 -> 1075.338472 | F89: =simulador_1!N102 -> -117.9868903 | G89: =simulador_1!T102 -> -55.82 | H89: =simulador_1!P102 -> 10 | I89: =simulador_1!U102 -> 911.5315819
C90: =simulador_1!E103 -> 69 | D90: =simulador_1!J103 -> -14060.42 | E90: =simulador_1!K103 -> 1083.848472 | F90: =simulador_1!N103 -> -123.8268903 | G90: =simulador_1!T103 -> -58.49 | H90: =simulador_1!P103 -> 10 | I90: =simulador_1!U103 -> 911.5315819
C91: =simulador_1!E104 -> 70 | D91: =simulador_1!J104 -> -15144.27 | E91: =simulador_1!K104 -> 1104.948472 | F91: =simulador_1!N104 -> -138.3168903 | G91: =simulador_1!T104 -> -65.1 | H91: =simulador_1!P104 -> 10 | I91: =simulador_1!U104 -> 911.5315819
C92: =simulador_1!E105 -> 71 | D92: =simulador_1!J105 -> -16249.22 | E92: =simulador_1!K105 -> 1120.108472 | F92: =simulador_1!N105 -> -148.7268903 | G92: =simulador_1!T105 -> -69.85 | H92: =simulador_1!P105 -> 10 | I92: =simulador_1!U105 -> 911.5315819
C93: =simulador_1!E106 -> 72 | D93: =simulador_1!J106 -> -17369.33 | E93: =simulador_1!K106 -> 1127.768472 | F93: =simulador_1!N106 -> -153.9768903 | G93: =simulador_1!T106 -> -72.26 | H93: =simulador_1!P106 -> 10 | I93: =simulador_1!U106 -> 911.5315819

Sheet simulador_1
C2: SIMULADOR DE CUOTAS - CRÉDITO CONVENIOS
C5: Importe Solicitado | H5: =simulador!G7 -> 34000 | L5: Fecha Desembolso | Q5: =+simulador!G8 -> 2022-09-12
C6: Saldo de Capital | H6: =H5 -> 34000 | L6: Fecha Final de Gracia | Q6: =DATE(YEAR(Q5+H14),MONTH(Q5 + H14),DAY(Q5 +H14)) -> 2022-10-12
C7: Saldo de Interes | H7: 0 | L7: Fecha de la 1° cuota | Q7: =DATE(YEAR(EDATE(Q6,1)),MONTH(EDATE(Q6,1)),DAY(EDATE(Q6,1))) -> 2022-11-12 | S7: =Q6-Q5 -> 30
C8: Tasa Anual (TEA) | H8: =simulador!G11 -> 11.5 | I8: Tasa de Gracia | J8: =H8 -> 11.5 | L8: Fecha final de vencimiento | Q8: =IF(OR($H$16>0,$H$17>0),VLOOKUP($H$12,$A$35:$C$123,3,0),DATE(YEAR(EDATE(Q6,H12)),MONTH(EDATE(Q6,H12)),DAY(EDATE(Q6,H12)))) -> 2028-10-12 | V8: tipo_seg | W8: tasa
C9: Tasa de Seguro de Desgravámen | H9: =simulador!G15 -> 0.00416 | L9: Base | Q9: 360 | V9: Plan 0 - sin retorno | W9: 0.0009
L10: Frecuencia pago en días | Q10: 30 | V10: Plan 25 - con retorno | W10: 0.00416
C11: Comisiones + Pago Casillero | H11: =simulador!G13 -> 10 | L11: Tasa Equivalente | Q11: =ROUND((((H8/100+1)^(1/(Q9/Q10))-1)*Q9/Q10)*100,6) -> 10.934962 | R11: tea conv. A tem luego nominal anual
C12: Plazo y Nro. Cuotas (Aplicar Si hay Mes No Pago) | H12: =+H13-VLOOKUP($H$13,'Calculos CC'!$A$4:$H$99,8,0) -> 72 | I12: =+H12 -> 72 | L12: Días entre cuotas | Q12: =(Q8-Q6)/H12 -> 30.44444444 | R12: dias promedio entre cuotas
C13: Plazo y Nro. Cuotas | H13: =simulador!G12 -> 72 | L13: Factor Aplicado | Q13: =($Q$11/100)/($Q$9/$Q$12) -> 0.009247467864 | R13: tem convertida de manera nominal a los dias entre cuotas
C14: Días de Gracia | H14: =simulador!G9 -> 30 | L14: Factor Aplicado para la cuota | Q14: =1/((1-((1+$Q$13)^(-1*$H$12)))/$Q$13) -> 0.01908377859 | R14: Factor de cuota (ok)
C15: (+/- 30 días antes de la fecha 1° cuota) | L15: Interes de Gracia | Q15: =IF(H14>0,ROUND(H6*(((1+H8/100)^(ABS(H14)/Q9))-1),4),ROUND(H6*(((1+H8/100)^(ABS(H14)/Q9))-1),4) * -1) -> 309.8239 | R15: Ok
C16: Mes de No Pago 1 | H16: 0 | L16: Saldo Interes +/- Interes Gracia | Q16: =IF(H7 + Q15>0,H7+ Q15,0) -> 309.8239
C17: Mes de No Pago 2 | H17: 0 | L17: TCEA | Q17: =+$AI$33 -> 0.2632037451
C18: Mes Cuota Doble 1 | H18: 0 | L18: Comisión de Gracia Desgravamen (Primera Cuota) | Q18: =IF(H14>0,ROUNDDOWN(H5 * H9/30*H14,2),0) -> 141.44
C19: Mes Cuota Doble 2 | H19: 0
J22: =REDONDEAR(SI(O(F16+ F17> 0,F18 + F19>0),REDONDEAR.MAS(O16/BUSCARV(F13,Calculos!$A$3:$G$99,7,FALSO),2),O16*$O$14),2)
J23: C/ Factor | K23: C/ Mini Cronograma | O23: Suavización | U23: Validador Cuota Doble
J24: C/ Factor | O24: Ultimo saldo de Principal | Q24: =VLOOKUP(I12,$F$34:$V$106,17,FALSE) - VLOOKUP(I12,$F$34:$R$106,13,FALSE) -> -18497.1 | U24: Cuota Simple | W24: =+VLOOKUP("",$D$35:$U$106,18,0) -> 911.5315819
G25: Valor de cuota por dias de gracia | J25: =$Q$16/($I$12*(1/((1+0)^($Q$10/$Q$9)))) -> 4.303109722 | K25: =Q16/SUM(AA35:INDIRECT(CONCATENATE("V",32+I12-1))) -> 0.0003191970475 | L25: =+J26+Q30 -> 897.2284722 | O25: Numero de Dias | Q25: =Q8-Q6 -> 2192 | U25: Cuota Doble | W25: =+IFERROR(VLOOKUP("D",$D$35:$U$106,18,0)," ") -> 
G26: Valor de cuota por capital | J26: =ROUND(IF(OR(H16 + H17 > 0,H18 + H19>0), ROUNDUP(H6/VLOOKUP(H12,'Calculos CC'!$B$3:$G$99,6,FALSE),2),H6*$Q$14),2)+R35+S35+Q35 -> 931.73 | L26: Promedio | O26: Valor de Cuota Nivelada | Q26: =ROUND(+Q24/ROUND(1*(((1+H8/100)^(Q25/Q9))-1),4),2) -> -19673.58 | U26: Factor | W26: =+IFERROR(W25/W24," ") -> 
G27: Seguro de Desgravamen (FPF) | J27: =ROUNDDOWN($H$5*$H$9,2) -> 141.44 | K27: =((J27*H12) + Q18)/H12 -> 143.4044444 | L27: =K27-J27 -> 1.964444444 | M27: Exceso Desgravamen | O27: Factor Ajuste | Q27: =Q26*Q14 -> -375.4462449
G28: Comisiones + Pago de Casillero | J28: =$H$11 -> 10 | O28: Exceso de Int + Gracia | Q28: =SUM(W35:W106) -> 0 | R28: =ROUND(IF(H16+ H17> 0,ROUNDUP($Q$28/VLOOKUP(H12,'Calculos CC'!$A$3:$G$99,7,FALSE),2),$Q$28*$Q$14),2) -> 0 | S28: 0 | U28: Calce de Capital
O29: Factor Ajuste 2 | Q29: =+Q24/H12 -> -256.9041667 | U29: Suma Capital (K) | W29: =+SUM($K$35:$K$94) -> 39870.14833
G30: Cuota | J30: =J25+J26+J27+J28 -> 1087.47311 | K30: =J25+J26+K27+J28 -> 1089.437554 | O30: Digite Factor de Ajuste Anterior mas El Actual | Q30: -34.50152778 | R30: Se actualiza en cada simulación (Validar que la celda K275 sea cero) | U30: Validador | W30: =+$H$5-W29 -> -5870.148333 | Z30: <- El valor tiene que ser cercano a cero.
H31: =+MONTH(DATE(YEAR(C41) + 1/12,MONTH(C41)+1,DAY(C41))) -> 6 | I31: 1 | J31: 2
I32: 2 | J32: 3 | K32: =+MONTH(DATE(YEAR(C41),MONTH(C41)+1,DAY(C41)))=$H$16 -> FALSE | M32: =IF(OR(MONTH(Q7)=H16, MONTH(Q7)=H17),IF(AND(ABS($H$16-$H$17)>1,OR(MONTH($Q$7)=$H$16,MONTH($Q$7)=$H$17)),2,IF(AND(ABS($H$16-$H$17)=1,MONTH($Q$7)>$H$16),2,IF(AND(ABS($H$16-$H$17)=1,MONTH($Q$7)<$H$17),3,1))),1) -> 1
C33: =SI(O(MES(FECHA.MES($O$6,D32))=$F$16,MES(FECHA.MES($O$6,D32))=$F$17),SI(ABS($F$17-$F$16)=1,FECHA.MES($O$6,D32+2),FECHA.MES($O$6,D32+1)),FECHA.MES($O$6,D32)) | E33: =+MONTH(DATE(YEAR(C40) + 1/12,MONTH(C40)+1,DAY(C40)))=$H$16 -> FALSE | F33: =+MONTH(DATE(YEAR(C40) + 1/12,MONTH(C40)+1,DAY(C40)))=$H$17 -> FALSE | G33: =+ABS($H$17-$H$16)=1 -> FALSE | I33: =+$H$17-MONTH(Q6) -> -10 | K33: =SUM(K35:K106) -> 52496.99 | L33: =+ROUND(J35*(((1+(H35/100))^(I35/G35))-1),4) -> 320.1999 | X33: =+X35-X36 -> 13.0564 | Z33: Minicronograma de Gracia | AH33: TIR | AI33: =(1+XIRR(AI34:AI106,AH34:AH106))^(360/365)-1 -> 0.2632037451
C34: Fecha Vcto. | D34: Marca | E34: Nro. Cuota (De acuerdo a Plazo) | F34: Nro. Cuota | G34: Periodo Base | H34: Tasa | I34: Nro. Dias | J34: Principal | K34: Capital | L34: Interes | M34: Interes de Gracia | N34: Interes Total | O34: Valor Cuota | P34: Comision Envio Informacion | Q34: Seguro de Desgravamen | R34: Importe de Gracia Desgravamen | S34: Importe Desgravamen por No Pago | T34: Seg. Desgravamen Total | U34: Cuota | V34: Saldo Principal | W34: Exceso | X34: =+X41-X42 -> -5.0623 | Z34: Dias Transcurridos Acumulados | AA34: Factor Simple Actualizacion | AB34: Principal | AC34: Capital | AD34: Interes | AE34: Cuota Gracia | AF34: Saldo Deuda | AH34: =+Q5 -> 2022-09-12 | AI34: =-H5 -> -34000
A35: 1 | B35: =IF(A35="","",IF(A35<=$H$24,0,1)) -> 1 | C35: =IF(OR(MONTH(EDATE($Q$6,E35))=$H$16,MONTH(EDATE($Q$6,E35))=$H$17),IF(ABS($H$17-$H$16)=1,EDATE($Q$6,E35+2),EDATE($Q$6,E35+1)),EDATE($Q$6,E35)) -> 2022-11-12 | D35: =IF(B35="","",IF(OR(MONTH(C35)=$H$18,MONTH(C35)=$H$19),"D","")) ->  | E35: =IF(OR(MONTH(Q7)=H16, MONTH(Q7)=H17),IF(AND(ABS($H$16-$H$17)>1,OR(MONTH($Q$7)=$H$16,MONTH($Q$7)=$H$17)),2,IF(AND(ABS($H$16-$H$17)=1,MONTH($Q$7)>$H$16),2,IF(AND(ABS($H$16-$H$17)=1,MONTH($Q$7)<$H$17),3,1))),1) -> 1 | F35: =1 -> 1 | G35: =$Q$9 -> 360 | H35: =$H$8 -> 11.5 | I35: =C35-Q6 -> 31 | J35: =H6 -> 34000 | K35: =IF(((IF(ISERROR(MATCH(MONTH(C35),$H$18:$H$19,0))=FALSE,$J$26 + $Q$30,0) + $J$26+$Q$30+$S$28)-(IF($J$26+$Q$30 + $S$28<ROUND(ROUND(J35*(((1+(H35/100))^(I35/G35))-1),4),2),$J$26+$Q$30 + $S$28-0.01,IF(ROUND(ROUND(J35*(((1+(H35/100))^(I35/G35))-1),4),2)+ $S$28>$J$26,$J$26+ $S$28+-0.01,ROUND(ROUND(J35*(((1+(H35/100))^(I35/G35))-1),4),2)+$S$28)))- Q35-R35-S35)<0,0.01,IF(ISERROR(MATCH(MONTH(C35),$H$18:$H$19,0))=FALSE,$J$26 + $Q$30,0)+ ($J$26+$Q$30+$S$28)-(IF($J$26+$Q$30 + $S$28<ROUND(ROUND(J35*(((1+(H35/100))^(I35/G35))-1),4),2),$J$26+$Q$30 + $S$28-0.01,IF(ROUND(ROUND(J35*(((1+(H35/100))^(I35/G35))-1),4),2)+ $S$28>$J$26,$J$26+ $S$28+-0.01,ROUND(ROUND(J35*(((1+(H35/100))^(I35/G35))-1),4),2)+$S$28)))- Q35-R35-S35) -> 294.1484722 | L35: =IF(K35=0.01,+$J$26-K35-Q35-R35-S35+$Q$30,IF($J$26+$Q$30 + $S$28<ROUND(ROUND(J35*(((1+(H35/100))^(I35/G35))-1),4),2),$J$26+$Q$30 + $S$28-0.01,IF(ROUND(ROUND(J35*(((1+(H35/100))^(I35/G35))-1),4),2)+ $S$28>$J$26,$J$26+ $S$28+-0.01,ROUND(ROUND(J35*(((1+(H35/100))^(I35/G35))-1),4),2)+$S$28))) -> 320.2 | M35: =IF(ISERROR(MATCH(MONTH(C35),$H$18:$H$19,0))=FALSE,$J$25,0) + $J$25 -> 4.303109722 | N35: =L35+M35 -> 324.5031097 | O35: =K35+L35 + M35 -> 618.6515819 | P35: =$J$28 -> 10 | Q35: =IF(B35="","",ROUND($H$9*J35,2)) -> 141.44 | R35: =IF(B35="","", + ROUNDDOWN($H$5*$H$9/30*H14,2)) -> 141.44 | S35: =IF(B35="","",IF(E35-0>1,ROUNDDOWN($J35*$H$9/30*(DATE(YEAR($C35),MONTH($C35)-1,DAY($C35))-Q6),2),0)) -> 0 | T35: =IF(B35="","",Q35+R35+S35) -> 282.88 | U35: =IF(B35="","",O35+P35+T35+ IF(D35="D",$P35)) -> 911.5315819 | V35: =IF(B35="","",ROUND(J35-K35,2)) -> 33705.85 | W35: =IF(B35="","",IF(ROUND(ROUND(J35*(((1+(H35/100))^(I35/G35))-1),4),2) - $J$26<0,0,ROUND(ROUND(J35*(((1+(H35/100))^(I35/G35))-1),4),2) - $J$26)) -> 0 | X35: =+ROUND(J35*(((1+(H35/100))^(I35/G35))-1),4) -> 320.1999 | Y35: =+L35-X35 -> 9.999999997e-05 | Z35: =I35 -> 31 | AA35: =1/((1+($J$8/100))^(Z35/$Q$9))*1 -> 0.9906702212 | AB35: =Q16 -> 309.8239 | AC35: =AE35-AD35 -> -2.917491775 | AD35: =(((1+($J$8/100))^((I35)/$Q$9))-1)*AB35 -> 2.917810972 | AE35: =$K$25 -> 0.0003191970475 | AF35: =AB35-AC35 -> 312.7413918 | AH35: =+IF(C35="",0,C35) -> 2022-11-12 | AI35: =+IF(U35="",0,U35) -> 911.5315819
A36: =+IF(A35>=$H$12,"",A35+1) -> 2 | B36: 1 | C36: =IF(B36="","",IF(OR(MONTH(EDATE($Q$6,E36))=$H$16,MONTH(EDATE($Q$6,E36))=$H$17),IF(ABS($H$17-$H$16)=1,EDATE($Q$6,E36+2),EDATE($Q$6,E36+1)),EDATE($Q$6,E36))) -> 2022-12-12 | E36: =IF(B36="","",IF(OR(MONTH(DATE(YEAR(C35) + 1/12,MONTH(C35)+1,DAY(C35)))=$H$16,MONTH(DATE(YEAR(C35) + 1/12,MONTH(C35)+1,DAY(C35)))=$H$17),IF(OR(ABS($H$17-$H$16)>1,$H$16=1),E35+2,E35 + 3),E35 + 1)) -> 2 | F36: =IF(B36="","",F35+1) -> 2 | G36: =IF(B36="","",$Q$9) -> 360 | H36: =IF(B36="","",$H$8) -> 11.5 | I36: =IF(B36="","",C36-C35) -> 30 | J36: =IF(B36="","",+V35) -> 33705.85 | K36: =IF(((IF(ISERROR(MATCH(MONTH(C36),$H$18:$H$19,0))=FALSE,$J$26 + $Q$30,0) + $J$26+$Q$30+$S$28)-(IF($J$26+$Q$30 + $S$28<ROUND(ROUND(J36*(((1+(H36/100))^(I36/G36))-1),4),2),$J$26+$Q$30 + $S$28-0.01,IF(ROUND(ROUND(J36*(((1+(H36/100))^(I36/G36))-1),4),2)+ $S$28>$J$26,$J$26+ $S$28+-0.01,ROUND(ROUND(J36*(((1+(H36/100))^(I36/G36))-1),4),2)+$S$28)))- Q36-R36-S36)<0,0.01,IF(ISERROR(MATCH(MONTH(C36),$H$18:$H$19,0))=FALSE,$J$26 + $Q$30,0)+ ($J$26+$Q$30+$S$28)-(IF($J$26+$Q$30 + $S$28<ROUND(ROUND(J36*(((1+(H36/100))^(I36/G36))-1),4),2),$J$26+$Q$30 + $S$28-0.01,IF(ROUND(ROUND(J36*(((1+(H36/100))^(I36/G36))-1),4),2)+ $S$28>$J$26,$J$26+ $S$28+-0.01,ROUND(ROUND(J36*(((1+(H36/100))^(I36/G36))-1),4),2)+$S$28)))- Q36-R36-S36) -> 449.8684722 | L36: =IF(K36=0.01,+$J$26-K36-Q36-R36-S36+$Q$30,IF($J$26+$Q$30 + $S$28<ROUND(ROUND(J36*(((1+(H36/100))^(I36/G36))-1),4),2),$J$26+$Q$30 + $S$28-0.01,IF(ROUND(ROUND(J36*(((1+(H36/100))^(I36/G36))-1),4),2)+ $S$28>$J$26,$J$26+ $S$28+-0.01,ROUND(ROUND(J36*(((1+(H36/100))^(I36/G36))-1),4),2)+$S$28))) -> 307.14 | M36: =IF(B36="","",IF(ISERROR(MATCH(MONTH(C36),$H$18:$H$19,0))=FALSE,$J$25,0) + $J$25) -> 4.303109722 | N36: =IF(B36="","",L36+M36) -> 311.4431097 | O36: =IF(B36="","",K36+L36 + M36) -> 761.3115819 | P36: =IF(B36="","",$J$28) -> 10 | Q36: =IF(B36="","",ROUND($H$9*J36/30*$I36,2)-S36) -> 140.22 | S36: =IF(B36="","",IF(E36-E35>1,ROUNDDOWN($J36*$H$9/30*(DATE(YEAR($C36),MONTH($C36)-1,DAY($C36))-C35),2),0)) -> 0 | T36: =IF(B36="","",Q36+R36+S36) -> 140.22 | U36: =IF(B36="","",O36+P36+T36+ IF(D36="D",$P36)) -> 911.5315819 | V36: 33255.98 | W36: 0 | X36: =+ROUND(J36*(((1+(H36/100))^(I36/G36))-1),4) -> 307.1435 | Y36: =+L36-X36 -> -0.0035 | Z36: =Z35+I36 -> 61 | AA36: =1/((1+($J$8/100))^(Z36/$Q$9))*1 -> 0.9817242896 | AB36: =AF35 -> 312.7413918 | AC36: =AE36-AD36 -> -2.849526864 | AD36: 2.849846061 | AE36: =$K$25 -> 0.0003191970475 | AF36: =AB36-AC36 -> 315.5909186 | AH36: 2022-12-12 | AI36: 911.5315819
A37: 3 | B37: 1 | C37: 2023-01-12 | E37: 3 | F37: 3 | G37: 360 | H37: 11.5 | I37: 31 | J37: 33255.98 | K37: 441.0784722 | L37: 313.19 | M37: 4.303109722 | N37: 317.4931097 | O37: 758.5715819 | P37: 10 | Q37: 142.96 | S37: 0 | T37: 142.96 | U37: 911.5315819 | V37: 32814.9 | W37: 0 | X37: 313.193 | Y37: -0.003 | Z37: 92 | AA37: 0.9725650192 | AB37: =AF36 -> 315.5909186 | AC37: =AE37-AD37 -> -2.971803499 | AD37: 2.972122697 | AE37: 0.0003191970475 | AF37: =AB37-AC37 -> 318.5627221 | AH37: 2023-01-12 | AI37: 911.5315819
A38: 4 | B38: 1 | C38: 2023-02-12 | E38: 4 | F38: 4 | G38: 360 | H38: 11.5 | I38: 31 | J38: 32814.9 | K38: 447.1284722 | L38: 309.04 | M38: 4.303109722 | N38: 313.3431097 | O38: 760.4715819 | P38: 10 | Q38: 141.06 | S38: 0 | T38: 141.06 | U38: 911.5315819 | V38: 32367.77 | W38: 0 | X38: 309.039 | Y38: 0.001 | Z38: 123 | AA38: 0.9634912028 | AB38: 318.5627221 | AC38: -2.999790885 | AD38: 3.000110082 | AE38: 0.0003191970475 | AF38: 321.562513 | AH38: 2023-02-12 | AI38: 911.5315819
A39: 5 | B39: 1 | C39: 2023-03-12 | E39: 5 | F39: 5 | G39: 360 | H39: 11.5 | I39: 28 | J39: 32367.77 | K39: 496.3584722 | L39: 275.2 | M39: 4.303109722 | N39: 279.5031097 | O39: 775.8615819 | P39: 10 | Q39: 125.67 | S39: 0 | T39: 125.67 | U39: 911.5315819 | V39: 31871.41 | W39: 0 | X39: 275.2036 | Y39: -0.0036 | Z39: 151 | AA39: 0.9553682838 | AB39: 321.562513 | AC39: -2.733732465 | AD39: 2.734051662 | AE39: 0.0003191970475 | AF39: 324.2962455 | AH39: 2023-03-12 | AI39: 911.5315819
A40: 6 | B40: 1 | C40: 2023-04-12 | E40: 6 | F40: 6 | G40: 360 | H40: 11.5 | I40: 31 | J40: 31871.41 | K40: 460.0784722 | L40: 300.15 | M40: 4.303109722 | N40: 304.4531097 | O40: 764.5315819 | P40: 10 | Q40: 137 | S40: 0 | T40: 137 | U40: 911.5315819 | V40: 31411.33 | W40: 0 | X40: 300.1536 | Y40: -0.0036 | Z40: 182 | AA40: 0.946454909 | AB40: 324.2962455 | AC40: -3.053787162 | AD40: 3.054106359 | AE40: 0.0003191970475 | AF40: 327.3500327 | AH40: 2023-04-12 | AI40: 911.5315819
A41: 7 | B41: 1 | C41: 2023-05-12 | E41: 7 | F41: 7 | G41: 360 | H41: 11.5 | I41: 30 | J41: 31411.33 | K41: 480.3284722 | L41: 286.23 | M41: 4.303109722 | N41: 290.5331097 | O41: 770.8615819 | P41: 10 | Q41: 130.67 | S41: 0 | T41: 130.67 | U41: 911.5315819 | V41: 30931 | W41: 0 | X41: 286.2348 | Y41: -0.0048 | Z41: 212 | AA41: 0.9379082497 | AB41: 327.3500327 | AC41: -2.982647643 | AD41: 2.98296684 | AE41: 0.0003191970475 | AF41: 330.3326803 | AH41: 2023-05-12 | AI41: 911.5315819
A42: 8 | B42: 1 | C42: =IF(B42="","",IF(OR(MONTH(EDATE($Q$6,E42))=$H$16,MONTH(EDATE($Q$6,E42))=$H$17),IF(ABS($H$17-$H$16)=1,EDATE($Q$6,E42+2),EDATE($Q$6,E42+1)),EDATE($Q$6,E42))) -> 2023-06-12 | E42: =IF(B42="","",IF(OR(MONTH(DATE(YEAR(C41) + 1/12,MONTH(C41)+1,DAY(C41)))=$H$16,MONTH(DATE(YEAR(C41) + 1/12,MONTH(C41)+1,DAY(C41)))=$H$17),IF(OR(ABS($H$17-$H$16)>1,$H$16=1),E41+2,E41 + 3),E41 + 1)) -> 8 | F42: 8 | G42: 360 | H42: 11.5 | I42: 31 | J42: 30931 | K42: 472.9684722 | L42: 291.3 | M42: 4.303109722 | N42: 295.6031097 | O42: 768.5715819 | P42: 10 | Q42: 132.96 | S42: 0 | T42: 132.96 | U42: 911.5315819 | V42: 30458.03 | W42: 0 | X42: 291.2971 | Y42: 0.0029 | Z42: 243 | AA42: 0.9291577733 | AB42: 330.3326803 | AC42: -3.110636152 | AD42: 3.110955349 | AE42: 0.0003191970475 | AF42: 333.4433164 | AH42: 2023-06-12 | AI42: 911.5315819
A43: 9 | B43: 1 | C43: =IF(B43="","",IF(OR(MONTH(EDATE($Q$6,E43))=$H$16,MONTH(EDATE($Q$6,E43))=$H$17),IF(ABS($H$17-$H$16)=1,EDATE($Q$6,E43+2),EDATE($Q$6,E43+1)),EDATE($Q$6,E43))) -> 2023-07-12 | E43: =IF(B43="","",IF(OR(MONTH(DATE(YEAR(C42) + 1/12,MONTH(C42)+1,DAY(C42)))=$H$16,MONTH(DATE(YEAR(C42) + 1/12,MONTH(C42)+1,DAY(C42)))=$H$17),IF(OR(ABS($H$17-$H$16)>1,$H$16=1),E42+2,E42 + 3),E42 + 1)) -> 9 | F43: 9 | G43: 360 | H43: 11.5 | I43: 30 | J43: 30458.03 | K43: 492.9684722 | L43: 277.55 | M43: 4.303109722 | N43: 281.8531097 | O43: 774.8215819 | P43: 10 | Q43: 126.71 | S43: 0 | T43: 126.71 | U43: 911.5315819 | V43: 29965.06 | W43: 0 | X43: 277.5478 | Y43: 0.0022 | Z43: 273 | AA43: 0.9207673102 | AB43: 333.4433164 | AC43: -3.0381725 | AD43: 3.038491697 | AE43: 0.0003191970475 | AF43: 336.4814889 | AH43: 2023-07-12 | AI43: 911.5315819
A44: 10 | B44: 1 | C44: 2023-08-12 | E44: 10 | F44: 10 | G44: 360 | H44: 11.5 | I44: 31 | J44: 29965.06 | K44: 486.2184722 | L44: 282.2 | M44: 4.303109722 | N44: 286.5031097 | O44: 772.7215819 | P44: 10 | Q44: 128.81 | S44: 0 | T44: 128.81 | U44: 911.5315819 | V44: 29478.84 | W44: 0 | X44: 282.2002 | Y44: -0.0002 | Z44: 304 | AA44: 0.9121767549 | AB44: 336.4814889 | AC44: -3.168543439 | AD44: 3.168862636 | AE44: 0.0003191970475 | AF44: 339.6500324 | AH44: 2023-08-12 | AI44: 911.5315819
A45: 11 | B45: 1 | C45: 2023-09-12 | E45: 11 | F45: 11 | G45: 360 | H45: 11.5 | I45: 31 | J45: 29478.84 | K45: 492.8884722 | L45: 277.62 | M45: 4.303109722 | N45: 281.9231097 | O45: 774.8115819 | P45: 10 | Q45: 126.72 | S45: 0 | T45: 126.72 | U45: 911.5315819 | V45: 28985.95 | W45: 0 | X45: 277.6212 | Y45: -0.0012 | Z45: 335 | AA45: 0.9036663476 | AB45: 339.6500324 | AC45: -3.198383651 | AD45: 3.198702848 | AE45: 0.0003191970475 | AF45: 342.848416 | AH45: 2023-09-12 | AI45: 911.5315819
A46: 12 | B46: 1 | C46: 2023-10-12 | E46: 12 | F46: 12 | G46: 360 | H46: 11.5 | I46: 30 | J46: 28985.95 | K46: 512.5184722 | L46: 264.13 | M46: 4.303109722 | N46: 268.4331097 | O46: 780.9515819 | P46: 10 | Q46: 120.58 | S46: 0 | T46: 120.58 | U46: 911.5315819 | V46: 28473.43 | W46: 0 | X46: 264.1336 | Y46: -0.0036 | Z46: 365 | AA46: 0.8955060767 | AB46: 342.848416 | AC46: -3.123876173 | AD46: 3.12419537 | AE46: 0.0003191970475 | AF46: 345.9722922 | AH46: 2023-10-12 | AI46: 911.5315819
A47: 13 | B47: 1 | C47: 2023-11-12 | E47: 13 | F47: 13 | G47: 360 | H47: 11.5 | I47: 31 | J47: 28473.43 | K47: 506.6784722 | L47: 268.15 | M47: 4.303109722 | N47: 272.4531097 | O47: 779.1315819 | P47: 10 | Q47: 122.4 | S47: 0 | T47: 122.4 | U47: 911.5315819 | V47: 27966.75 | W47: 0 | X47: 268.1526 | Y47: -0.0026 | Z47: 396 | AA47: 0.8871512032 | AB47: 345.9722922 | AC47: -3.257924438 | AD47: 3.258243635 | AE47: 0.0003191970475 | AF47: 349.2302166 | AH47: 2023-11-12 | AI47: 911.5315819
A48: 14 | B48: 1 | C48: 2023-12-12 | E48: 14 | F48: 14 | G48: 360 | H48: 11.5 | I48: 30 | J48: 27966.75 | K48: 526.0384722 | L48: 254.85 | M48: 4.303109722 | N48: 259.1531097 | O48: 785.1915819 | P48: 10 | Q48: 116.34 | S48: 0 | T48: 116.34 | U48: 911.5315819 | V48: 27440.71 | W48: 0 | X48: 254.8461 | Y48: 0.0039 | Z48: 426 | AA48: 0.879140067 | AB48: 349.2302166 | AC48: -3.182030129 | AD48: 3.182349326 | AE48: 0.0003191970475 | AF48: 352.4122468 | AH48: 2023-12-12 | AI48: 911.5315819
A49: 15 | B49: 1 | C49: 2024-01-12 | E49: 15 | F49: 15 | G49: 360 | H49: 11.5 | I49: 31 | J49: 27440.71 | K49: 520.8384722 | L49: 258.43 | M49: 4.303109722 | N49: 262.7331097 | O49: 783.5715819 | P49: 10 | Q49: 117.96 | S49: 0 | T49: 117.96 | U49: 911.5315819 | V49: 26919.87 | W49: 0 | X49: 258.4268 | Y49: 0.0032 | Z49: 457 | AA49: 0.8709378847 | AB49: 352.4122468 | AC49: -3.318573633 | AD49: 3.31889283 | AE49: 0.0003191970475 | AF49: 355.7308204 | AH49: 2024-01-12 | AI49: 911.5315819
A50: 16 | B50: 1 | C50: 2024-02-12 | E50: 16 | F50: 16 | G50: 360 | H50: 11.5 | I50: 31 | J50: 26919.87 | K50: 527.9884722 | L50: 253.52 | M50: 4.303109722 | N50: 257.8231097 | O50: 785.8115819 | P50: 10 | Q50: 115.72 | S50: 0 | T50: 115.72 | U50: 911.5315819 | V50: 26391.88 | W50: 0 | X50: 253.5217 | Y50: -0.0017 | Z50: 488 | AA50: 0.8628122269 | AB50: 355.7308204 | AC50: -3.349826776 | AD50: 3.350145973 | AE50: 0.0003191970475 | AF50: 359.0806472 | AH50: 2024-02-12 | AI50: 911.5315819
A51: 17 | B51: 1 | C51: 2024-03-12 | E51: 17 | F51: 17 | G51: 360 | H51: 11.5 | I51: 29 | J51: 26391.88 | K51: 558.6584722 | L51: 232.44 | M51: 4.303109722 | N51: 236.7431097 | O51: 795.4015819 | P51: 10 | Q51: 106.13 | S51: 0 | T51: 106.13 | U51: 911.5315819 | V51: 25833.22 | W51: 0 | X51: 232.4435 | Y51: -0.0035 | Z51: 517 | AA51: 0.8552794508 | AB51: 359.0806472 | AC51: -3.162242614 | AD51: 3.162561811 | AE51: 0.0003191970475 | AF51: 362.2428898 | AH51: 2024-03-12 | AI51: 911.5315819
A52: 18 | B52: 1 | C52: 2024-04-12 | E52: 18 | F52: 18 | G52: 360 | H52: 11.5 | I52: 31 | J52: 25833.22 | K52: 542.8884722 | L52: 243.29 | M52: 4.303109722 | N52: 247.5931097 | O52: 790.4815819 | P52: 10 | Q52: 111.05 | S52: 0 | T52: 111.05 | U52: 911.5315819 | V52: 25290.33 | W52: 0 | X52: 243.2881 | Y52: 0.0019 | Z52: 548 | AA52: 0.8472998828 | AB52: 362.2428898 | AC52: -3.411155123 | AD52: 3.41147432 | AE52: 0.0003191970475 | AF52: 365.6540449 | AH52: 2024-04-12 | AI52: 911.5315819
A53: 19 | B53: 1 | C53: 2024-05-12 | E53: 19 | F53: 19 | G53: 360 | H53: 11.5 | I53: 30 | J53: 25290.33 | K53: 561.5584722 | L53: 230.46 | M53: 4.303109722 | N53: 234.7631097 | O53: 796.3215819 | P53: 10 | Q53: 105.21 | S53: 0 | T53: 105.21 | U53: 911.5315819 | V53: 24728.77 | W53: 0 | X53: 230.4573 | Y53: 0.0027 | Z53: 578 | AA53: 0.8396486113 | AB53: 365.6540449 | AC53: -3.331691746 | AD53: 3.332010943 | AE53: 0.0003191970475 | AF53: 368.9857367 | AH53: 2024-05-12 | AI53: 911.5315819
A54: 20 | B54: 1 | C54: 2024-06-12 | E54: 20 | F54: 20 | G54: 360 | H54: 11.5 | I54: 31 | J54: 24728.77 | K54: 558.0384722 | L54: 232.89 | M54: 4.303109722 | N54: 237.1931097 | O54: 795.2315819 | P54: 10 | Q54: 106.3 | S54: 0 | T54: 106.3 | U54: 911.5315819 | V54: 24170.73 | W54: 0 | X54: 232.8867 | Y54: 0.0033 | Z54: 609 | AA54: 0.8318148755 | AB54: 368.9857367 | AC54: -3.474656849 | AD54: 3.474976046 | AE54: 0.0003191970475 | AF54: 372.4603935 | AH54: 2024-06-12 | AI54: 911.5315819
A55: 21 | B55: 1 | C55: 2024-07-12 | E55: 21 | F55: 21 | G55: 360 | H55: 11.5 | I55: 30 | J55: 24170.73 | K55: 576.4184722 | L55: 220.26 | M55: 4.303109722 | N55: 224.5631097 | O55: 800.9815819 | P55: 10 | Q55: 100.55 | S55: 0 | T55: 100.55 | U55: 911.5315819 | V55: 23594.31 | W55: 0 | X55: 220.255 | Y55: 0.005 | Z55: 639 | AA55: 0.8243034365 | AB55: 372.4603935 | AC55: -3.393714383 | AD55: 3.39403358 | AE55: 0.0003191970475 | AF55: 375.8541079 | AH55: 2024-07-12 | AI55: 911.5315819
A56: 22 | B56: 1 | C56: 2024-08-12 | E56: 22 | F56: 22 | G56: 360 | H56: 11.5 | I56: 31 | J56: 23594.31 | K56: =IF(B56="","",IF(((IF(ISERROR(MATCH(MONTH(C56),$H$18:$H$19,0))=FALSE,$J$26 + $Q$30,0) + $J$26+$Q$30+$S$28)-(IF($J$26+$Q$30 + $S$28<ROUND(ROUND(J56*(((1+(H56/100))^(I56/G56))-1),4),2),$J$26+$Q$30 + $S$28-0.01,IF(ROUND(ROUND(J56*(((1+(H56/100))^(I56/G56))-1),4),2)+ $S$28>$J$26,$J$26+ $S$28+-0.01,ROUND(ROUND(J56*(((1+(H56/100))^(I56/G56))-1),4),2)+$S$28)))- Q56-R56-S56)<0,0.01,IF(ISERROR(MATCH(MONTH(C56),$H$18:$H$19,0))=FALSE,$J$26 + $Q$30,0)+ ($J$26+$Q$30+$S$28)-(IF($J$26+$Q$30 + $S$28<ROUND(ROUND(J56*(((1+(H56/100))^(I56/G56))-1),4),2),$J$26+$Q$30 + $S$28-0.01,IF(ROUND(ROUND(J56*(((1+(H56/100))^(I56/G56))-1),4),2)+ $S$28>$J$26,$J$26+ $S$28+-0.01,ROUND(ROUND(J56*(((1+(H56/100))^(I56/G56))-1),4),2)+$S$28)))- Q56-R56-S56)) -> 573.6084722 | L56: =IF(B56="","",IF(K56=0.01,+$J$26-K56-Q56-R56-S56+$Q$30,IF($J$26+$Q$30 + $S$28<ROUND(ROUND(J56*(((1+(H56/100))^(I56/G56))-1),4),2),$J$26+$Q$30 + $S$28-0.01,IF(ROUND(ROUND(J56*(((1+(H56/100))^(I56/G56))-1),4),2)+ $S$28>$J$26,$J$26+ $S$28+-0.01,ROUND(ROUND(J56*(((1+(H56/100))^(I56/G56))-1),4),2)+$S$28)))) -> 222.2 | M56: 4.303109722 | N56: 226.5031097 | O56: 800.1115819 | P56: 10 | Q56: 101.42 | S56: 0 | T56: 101.42 | U56: 911.5315819 | V56: 23020.7 | W56: 0 | X56: 222.2028 | Y56: -0.0028 | Z56: 670 | AA56: 0.8166128678 | AB56: 375.8541079 | AC56: -3.539340719 | AD56: 3.539659916 | AE56: 0.0003191970475 | AF56: 379.3934486 | AH56: 2024-08-12 | AI56: 911.5315819
A57: 23 | B57: 1 | C57: 2024-09-12 | E57: 23 | F57: 23 | G57: 360 | H57: 11.5 | I57: 31 | J57: 23020.7 | K57: 581.4684722 | L57: 216.8 | M57: 4.303109722 | N57: 221.1031097 | O57: 802.5715819 | P57: 10 | Q57: 98.96 | S57: 0 | T57: 98.96 | U57: 911.5315819 | V57: 22439.23 | W57: 0 | X57: 216.8007 | Y57: -0.0007 | Z57: 701 | AA57: 0.8089940504 | AB57: 379.3934486 | AC57: -3.572672968 | AD57: 3.572992165 | AE57: 0.0003191970475 | AF57: 382.9661216 | AH57: 2024-09-12 | AI57: 911.5315819
A58: 24 | B58: 1 | C58: 2024-10-12 | E58: 24 | F58: 24 | G58: 360 | H58: 11.5 | I58: 30 | J58: 22439.23 | K58: 599.3984722 | L58: 204.48 | M58: 4.303109722 | N58: 208.7831097 | O58: 808.1815819 | P58: 10 | Q58: 93.35 | S58: 0 | T58: 93.35 | U58: 911.5315819 | V58: 21839.83 | W58: 0 | X58: 204.4768 | Y58: 0.0032 | Z58: 731 | AA58: 0.8016886875 | AB58: 382.9661216 | AC58: -3.489447498 | AD58: 3.489766695 | AE58: 0.0003191970475 | AF58: 386.4555691 | AH58: 2024-10-12 | AI58: 911.5315819
A59: 25 | B59: 1 | C59: 2024-11-12 | E59: 25 | F59: 25 | G59: 360 | H59: 11.5 | I59: 31 | J59: 21839.83 | K59: 597.6684722 | L59: 205.68 | M59: 4.303109722 | N59: 209.9831097 | O59: 807.6515819 | P59: 10 | Q59: 93.88 | S59: 0 | T59: 93.88 | U59: 911.5315819 | V59: 21242.16 | W59: 0 | X59: 205.6797 | Y59: 0.0003 | Z59: 762 | AA59: 0.7942091094 | AB59: 386.4555691 | AC59: -3.639181499 | AD59: 3.639500696 | AE59: 0.0003191970475 | AF59: 390.0947506 | AH59: 2024-11-12 | AI59: 911.5315819
A60: 26 | B60: 1 | C60: 2024-12-12 | E60: 26 | F60: 26 | G60: 360 | H60: 11.5 | I60: 30 | J60: 21242.16 | K60: 615.2884722 | L60: 193.57 | M60: 4.303109722 | N60: 197.8731097 | O60: 813.1615819 | P60: 10 | Q60: 88.37 | S60: 0 | T60: 88.37 | U60: 911.5315819 | V60: 20626.87 | W60: 0 | X60: 193.5685 | Y60: 0.0015 | Z60: 792 | AA60: 0.7870372573 | AB60: 390.0947506 | AC60: -3.554406905 | AD60: 3.554726102 | AE60: 0.0003191970475 | AF60: 393.6491575 | AH60: 2024-12-12 | AI60: 911.5315819
A61: 27 | B61: 1 | C61: 2025-01-12 | E61: 27 | F61: 27 | G61: 360 | H61: 11.5 | I61: 31 | J61: 20626.87 | K61: 614.2984722 | L61: 194.26 | M61: 4.303109722 | N61: 198.5631097 | O61: 812.8615819 | P61: 10 | Q61: 88.67 | S61: 0 | T61: 88.67 | U61: 911.5315819 | V61: 20012.57 | W61: 0 | X61: 194.2565 | Y61: 0.0035 | Z61: 823 | AA61: 0.7796943738 | AB61: 393.6491575 | AC61: -3.706928149 | AD61: 3.707247346 | AE61: 0.0003191970475 | AF61: 397.3560856 | AH61: 2025-01-12 | AI61: 911.5315819
A62: 28 | B62: 1 | C62: 2025-02-12 | E62: 28 | F62: 28 | G62: 360 | H62: 11.5 | I62: 31 | J62: 20012.57 | K62: 622.7284722 | L62: 188.47 | M62: 4.303109722 | N62: 192.7731097 | O62: 815.5015819 | P62: 10 | Q62: 86.03 | S62: 0 | T62: 86.03 | U62: 911.5315819 | V62: 19389.84 | W62: 0 | X62: 188.4712 | Y62: -0.0012 | Z62: 854 | AA62: 0.7724199978 | AB62: 397.3560856 | AC62: -3.741838676 | AD62: 3.742157873 | AE62: 0.0003191970475 | AF62: 401.0979243 | AH62: 2025-02-12 | AI62: 911.5315819
A63: 29 | B63: 1 | C63: 2025-03-12 | E63: 29 | F63: 29 | G63: 360 | H63: 11.5 | I63: 28 | J63: 19389.84 | K63: 657.0884722 | L63: 164.86 | M63: 4.303109722 | N63: 169.1631097 | O63: 826.2515819 | P63: 10 | Q63: 75.28 | S63: 0 | T63: 75.28 | U63: 911.5315819 | V63: 18732.75 | W63: 0 | X63: 164.8601 | Y63: -9.999999997e-05 | Z63: 882 | AA63: 0.7659079455 | AB63: 401.0979243 | AC63: -3.409973988 | AD63: 3.410293185 | AE63: 0.0003191970475 | AF63: 404.5078983 | AH63: 2025-03-12 | AI63: 911.5315819
A64: 30 | B64: 1 | C64: 2025-04-12 | E64: 30 | F64: 30 | G64: 360 | H64: 11.5 | I64: 31 | J64: 18732.75 | K64: 640.2784722 | L64: 176.42 | M64: 4.303109722 | N64: 180.7231097 | O64: 821.0015819 | P64: 10 | Q64: 80.53 | S64: 0 | T64: 80.53 | U64: 911.5315819 | V64: 18092.47 | W64: 0 | X64: 176.4184 | Y64: 0.0016 | Z64: 913 | AA64: 0.7587621938 | AB64: 404.5078983 | AC64: -3.809191896 | AD64: 3.809511093 | AE64: 0.0003191970475 | AF64: 408.3170902 | AH64: 2025-04-12 | AI64: 911.5315819
A65: 31 | B65: 1 | C65: 2025-05-12 | E65: 31 | F65: 31 | G65: 360 | H65: 11.5 | I65: 30 | J65: 18092.47 | K65: 657.0984722 | L65: 164.87 | M65: 4.303109722 | N65: 169.1731097 | O65: 826.2715819 | P65: 10 | Q65: 75.26 | S65: 0 | T65: 75.26 | U65: 911.5315819 | V65: 17435.37 | W65: 0 | X65: 164.8671 | Y65: 0.0029 | Z65: 943 | AA65: 0.7519104337 | AB65: 408.3170902 | AC65: -3.7204574 | AD65: 3.720776597 | AE65: 0.0003191970475 | AF65: 412.0375476 | AH65: 2025-05-12 | AI65: 911.5315819
A66: 32 | B66: 1 | C66: 2025-06-12 | E66: 32 | F66: 32 | G66: 360 | H66: 11.5 | I66: 31 | J66: 17435.37 | K66: 658.0784722 | L66: 164.2 | M66: 4.303109722 | N66: 168.5031097 | O66: 826.5815819 | P66: 10 | Q66: 74.95 | S66: 0 | T66: 74.95 | U66: 911.5315819 | V66: 16777.29 | W66: 0 | X66: 164.2001 | Y66: -0.0001 | Z66: 974 | AA66: 0.7448952757 | AB66: 412.0375476 | AC66: -3.880103447 | AD66: 3.880422644 | AE66: 0.0003191970475 | AF66: 415.917651 | AH66: 2025-06-12 | AI66: 911.5315819
A67: 33 | B67: =IF(A67="","",IF(A67<=$H$24,0,1)) -> 1 | C67: 2025-07-12 | D67: =IF(B67="","",IF(OR(MONTH(C67)=$H$18,MONTH(C67)=$H$19),"D","")) ->  | E67: 33 | F67: 33 | G67: 360 | H67: 11.5 | I67: 30 | J67: 16777.29 | K67: 674.5584722 | L67: 152.88 | M67: 4.303109722 | N67: 157.1831097 | O67: 831.7415819 | P67: 10 | Q67: 69.79 | S67: 0 | T67: =IF(B67="","",Q67+R67+S67) -> 69.79 | U67: 911.5315819 | V67: =IF(B67="","",ROUND(J67-K67,2)) -> 16102.73 | W67: =IF(B67="","",IF(ROUND(ROUND(J67*(((1+(H67/100))^(I67/G67))-1),4),2) - $J$26<0,0,ROUND(ROUND(J67*(((1+(H67/100))^(I67/G67))-1),4),2) - $J$26)) -> 0 | X67: 152.8825 | Y67: -0.0025 | Z67: 1004 | AA67: 0.7381687364 | AB67: 415.917651 | AC67: -3.78971727 | AD67: 3.790036467 | AE67: 0.0003191970475 | AF67: 419.7073683 | AH67: 2025-07-12 | AI67: 911.5315819
A68: =+IF(A67>=$H$12,"",A67+1) -> 34 | B68: 1 | C68: =IF(B68="","",IF(OR(MONTH(EDATE($Q$6,E68))=$H$16,MONTH(EDATE($Q$6,E68))=$H$17),IF(ABS($H$17-$H$16)=1,EDATE($Q$6,E68+2),EDATE($Q$6,E68+1)),EDATE($Q$6,E68))) -> 2025-08-12 | E68: 34 | F68: =IF(B68="","",F67+1) -> 34 | G68: =IF(B68="","",$Q$9) -> 360 | H68: =IF(B68="","",$H$8) -> 11.5 | I68: =IF(B68="","",C68-C67) -> 31 | J68: =IF(B68="","",+V67) -> 16102.73 | K68: 676.3584722 | L68: 151.65 | M68: =IF(B68="","",IF(ISERROR(MATCH(MONTH(C68),$H$18:$H$19,0))=FALSE,$J$25,0) + $J$25) -> 4.303109722 | N68: =IF(B68="","",L68+M68) -> 155.9531097 | O68: =IF(B68="","",K68+L68 + M68) -> 832.3115819 | P68: =IF(B68="","",$J$28) -> 10 | Q68: =IF(B68="","",ROUND($H$9*J68/30*$I68,2)-S68) -> 69.22 | S68: =IF(B68="","",IF(E68-E67>1,ROUNDDOWN($J68*$H$9/30*(DATE(YEAR($C68),MONTH($C68)-1,DAY($C68))-C67),2),0)) -> 0 | T68: 69.22 | U68: 911.5315819 | V68: 15426.37 | W68: 0 | X68: 151.6498 | Y68: 0.0002 | Z68: 1035 | AA68: 0.7312817854 | AB68: 419.7073683 | AC68: -3.952335083 | AD68: 3.95265428 | AE68: 0.0003191970475 | AF68: 423.6597034 | AH68: 2025-08-12 | AI68: 911.5315819
A69: 35 | B69: 1 | C69: 2025-09-12 | E69: 35 | F69: 35 | G69: 360 | H69: 11.5 | I69: 31 | J69: 15426.37 | K69: 685.6384722 | L69: 145.28 | M69: 4.303109722 | N69: 149.5831097 | O69: 835.2215819 | P69: 10 | Q69: 66.31 | S69: 0 | T69: 66.31 | U69: 911.5315819 | V69: 14740.73 | W69: 0 | X69: 145.28 | Y69: 0 | Z69: 1066 | AA69: 0.7244590882 | AB69: 423.6597034 | AC69: -3.989556765 | AD69: 3.989875962 | AE69: 0.0003191970475 | AF69: 427.6492602 | AH69: 2025-09-12 | AI69: 911.5315819
A70: 36 | B70: 1 | C70: 2025-10-12 | E70: 36 | F70: 36 | G70: 360 | H70: 11.5 | I70: 30 | J70: 14740.73 | K70: 701.5884722 | L70: 134.32 | M70: 4.303109722 | N70: 138.6231097 | O70: 840.2115819 | P70: 10 | Q70: 61.32 | S70: 0 | T70: 61.32 | U70: 911.5315819 | V70: 14039.14 | W70: 0 | X70: 134.3244 | Y70: -0.0044 | Z70: 1096 | AA70: 0.7179170913 | AB70: 427.6492602 | AC70: -3.896621188 | AD70: 3.896940385 | AE70: 0.0003191970475 | AF70: 431.5458814 | AH70: 2025-10-12 | AI70: 911.5315819
A71: 37 | B71: 1 | C71: 2025-11-12 | E71: 37 | F71: 37 | G71: 360 | H71: 11.5 | I71: 31 | J71: 14039.14 | K71: 704.6584722 | L71: 132.22 | M71: 4.303109722 | N71: 136.5231097 | O71: 841.1815819 | P71: 10 | Q71: 60.35 | S71: 0 | T71: 60.35 | U71: 911.5315819 | V71: 13334.48 | W71: 0 | X71: 132.2156 | Y71: 0.0044 | Z71: 1127 | AA71: 0.7112190837 | AB71: 431.5458814 | AC71: -4.063825976 | AD71: 4.064145173 | AE71: 0.0003191970475 | AF71: 435.6097073 | AH71: 2025-11-12 | AI71: 911.5315819
A72: 38 | B72: 1 | C72: 2025-12-12 | E72: 38 | F72: 38 | G72: 360 | H72: 11.5 | I72: 30 | J72: 13334.48 | K72: 720.2484722 | L72: 121.51 | M72: 4.303109722 | N72: 125.8131097 | O72: 846.0615819 | P72: 10 | Q72: 55.47 | S72: 0 | T72: 55.47 | U72: 911.5315819 | V72: 12614.23 | W72: 0 | X72: 121.51 | Y72: 0 | Z72: 1157 | AA72: 0.7047966465 | AB72: 435.6097073 | AC72: -3.969160512 | AD72: 3.969479709 | AE72: 0.0003191970475 | AF72: 439.5788678 | AH72: 2025-12-12 | AI72: 911.5315819
A73: 39 | B73: 1 | C73: 2026-01-12 | E73: 39 | F73: 39 | G73: 360 | H73: 11.5 | I73: 31 | J73: 12614.23 | K73: 724.2084722 | L73: 118.8 | M73: 4.303109722 | N73: 123.1031097 | O73: 847.3115819 | P73: 10 | Q73: 54.22 | S73: 0 | T73: 54.22 | U73: 911.5315819 | V73: 11890.02 | W73: 0 | X73: 118.7963 | Y73: 0.0037 | Z73: 1188 | AA73: 0.6982210497 | AB73: 439.5788678 | AC73: -4.139477777 | AD73: 4.139796974 | AE73: 0.0003191970475 | AF73: 443.7183456 | AH73: 2026-01-12 | AI73: 911.5315819
A74: 40 | B74: 1 | C74: 2026-02-12 | E74: 40 | F74: 40 | G74: 360 | H74: 11.5 | I74: 31 | J74: 11890.02 | K74: 734.1384722 | L74: 111.98 | M74: 4.303109722 | N74: 116.2831097 | O74: 850.4215819 | P74: 10 | Q74: 51.11 | S74: 0 | T74: 51.11 | U74: 911.5315819 | V74: 11155.88 | W74: 0 | X74: 111.976 | Y74: 0.004 | Z74: 1219 | AA74: 0.6917068018 | AB74: 443.7183456 | AC74: -4.178461902 | AD74: 4.178781099 | AE74: 0.0003191970475 | AF74: 447.8968075 | AH74: 2026-02-12 | AI74: 911.5315819
A75: 41 | B75: 1 | C75: 2026-03-12 | E75: 41 | F75: 41 | G75: 360 | H75: 11.5 | I75: 28 | J75: 11155.88 | K75: 759.0684722 | L75: 94.85 | M75: 4.303109722 | N75: 99.15310972 | O75: 858.2215819 | P75: 10 | Q75: 43.31 | S75: 0 | T75: 43.31 | U75: 911.5315819 | V75: 10396.81 | W75: 0 | X75: 94.8517 | Y75: -0.0017 | Z75: 1247 | AA75: 0.6858752194 | AB75: 447.8968075 | AC75: -3.807876602 | AD75: 3.808195799 | AE75: 0.0003191970475 | AF75: 451.7046841 | AH75: 2026-03-12 | AI75: 911.5315819
A76: 42 | B76: 1 | C76: 2026-04-12 | E76: 42 | F76: 42 | G76: 360 | H76: 11.5 | I76: 31 | J76: 10396.81 | K76: 754.6284722 | L76: 97.91 | M76: 4.303109722 | N76: 102.2131097 | O76: 856.8415819 | P76: 10 | Q76: 44.69 | S76: 0 | T76: 44.69 | U76: 911.5315819 | V76: 9642.18 | W76: 0 | X76: 97.9134 | Y76: -0.0034 | Z76: 1278 | AA76: 0.6794761554 | AB76: 451.7046841 | AC76: -4.253674389 | AD76: 4.253993586 | AE76: 0.0003191970475 | AF76: 455.9583585 | AH76: 2026-04-12 | AI76: 911.5315819
A77: 43 | B77: 1 | C77: 2026-05-12 | E77: 43 | F77: 43 | G77: 360 | H77: 11.5 | I77: 30 | J77: 9642.18 | K77: 769.2584722 | L77: 87.86 | M77: 4.303109722 | N77: 92.16310972 | O77: 861.4215819 | P77: 10 | Q77: 40.11 | S77: 0 | T77: 40.11 | U77: 911.5315819 | V77: 8872.92 | W77: 0 | X77: 87.8641 | Y77: -0.0041 | Z77: 1308 | AA77: 0.6733403626 | AB77: 455.9583585 | AC77: -4.154586953 | AD77: 4.15490615 | AE77: 0.0003191970475 | AF77: 460.1129455 | AH77: 2026-05-12 | AI77: 911.5315819
A78: 44 | B78: 1 | C78: 2026-06-12 | E78: 44 | F78: 44 | G78: 360 | H78: 11.5 | I78: 31 | J78: 8872.92 | K78: 775.5284722 | L78: 83.56 | M78: 4.303109722 | N78: 87.86310972 | O78: 863.3915819 | P78: 10 | Q78: 38.14 | S78: 0 | T78: 38.14 | U78: 911.5315819 | V78: 8097.39 | W78: 0 | X78: 83.562 | Y78: -0.002 | Z78: 1339 | AA78: 0.667058246 | AB78: 460.1129455 | AC78: -4.332860395 | AD78: 4.333179592 | AE78: 0.0003191970475 | AF78: 464.4458059 | AH78: 2026-06-12 | AI78: 911.5315819
A79: 45 | B79: 1 | C79: 2026-07-12 | E79: 45 | F79: 45 | G79: 360 | H79: 11.5 | I79: 30 | J79: 8097.39 | K79: 789.7484722 | L79: 73.79 | M79: 4.303109722 | N79: 78.09310972 | O79: 867.8415819 | P79: 10 | Q79: 33.69 | S79: 0 | T79: 33.69 | U79: 911.5315819 | V79: 7307.64 | W79: 0 | X79: 73.7872 | Y79: 0.0028 | Z79: 1369 | AA79: 0.6610345891 | AB79: 464.4458059 | AC79: -4.231928549 | AD79: 4.232247747 | AE79: 0.0003191970475 | AF79: 468.6777344 | AH79: 2026-07-12 | AI79: 911.5315819
A80: 46 | B80: 1 | C80: 2026-08-12 | E80: 46 | F80: 46 | G80: 360 | H80: 11.5 | I80: 31 | J80: 7307.64 | K80: 796.9984722 | L80: 68.82 | M80: 4.303109722 | N80: 73.12310972 | O80: 870.1215819 | P80: 10 | Q80: 31.41 | S80: 0 | T80: 31.41 | U80: 911.5315819 | V80: 6510.64 | W80: 0 | X80: 68.8207 | Y80: -0.0007 | Z80: 1400 | AA80: 0.6548672827 | AB80: 468.6777344 | AC80: -4.413520522 | AD80: 4.413839719 | AE80: 0.0003191970475 | AF80: 473.0912549 | AH80: 2026-08-12 | AI80: 911.5315819
A81: 47 | B81: 1 | C81: 2026-09-12 | E81: 47 | F81: 47 | G81: 360 | H81: 11.5 | I81: 31 | J81: 6510.64 | K81: 807.9284722 | L81: 61.31 | M81: 4.303109722 | N81: 65.61310972 | O81: 873.5415819 | P81: 10 | Q81: 27.99 | S81: 0 | T81: 27.99 | U81: 911.5315819 | V81: 5702.71 | W81: 0 | X81: 61.3149 | Y81: -0.0049 | Z81: 1431 | AA81: 0.6487575158 | AB81: 473.0912549 | AC81: -4.455085484 | AD81: 4.455404681 | AE81: 0.0003191970475 | AF81: 477.5463404 | AH81: 2026-09-12 | AI81: 911.5315819
A82: 48 | B82: 1 | C82: 2026-10-12 | E82: 48 | F82: 48 | G82: 360 | H82: 11.5 | I82: 30 | J82: 5702.71 | K82: 821.5384722 | L82: 51.97 | M82: 4.303109722 | N82: 56.27310972 | O82: 877.8115819 | P82: 10 | Q82: 23.72 | S82: 0 | T82: 23.72 | U82: 911.5315819 | V82: 4881.17 | W82: 0 | X82: 51.9658 | Y82: 0.0042 | Z82: 1461 | AA82: 0.6428991179 | AB82: 477.5463404 | AC82: -4.351306757 | AD82: 4.351625954 | AE82: 0.0003191970475 | AF82: 481.8976472 | AH82: 2026-10-12 | AI82: 911.5315819
A83: 49 | B83: 1 | C83: 2026-11-12 | E83: 49 | F83: 49 | G83: 360 | H83: 11.5 | I83: 31 | J83: 4881.17 | K83: 830.2784722 | L83: 45.97 | M83: 4.303109722 | N83: 50.27310972 | O83: 880.5515819 | P83: 10 | Q83: 20.98 | S83: 0 | T83: 20.98 | U83: 911.5315819 | V83: 4050.89 | W83: 0 | X83: 45.9691 | Y83: 0.0009 | Z83: 1492 | AA83: 0.6369010113 | AB83: 481.8976472 | AC83: -4.538020945 | AD83: 4.538340142 | AE83: 0.0003191970475 | AF83: 486.4356681 | AH83: 2026-11-12 | AI83: 911.5315819
A84: 50 | B84: 1 | C84: 2026-12-12 | E84: 50 | F84: 50 | G84: 360 | H84: 11.5 | I84: 30 | J84: 4050.89 | K84: =IF(B84="","",IF(((IF(ISERROR(MATCH(MONTH(C84),$H$18:$H$19,0))=FALSE,$J$26 + $Q$30,0) + $J$26+$Q$30+$S$28)-(IF($J$26+$Q$30 + $S$28<ROUND(ROUND(J84*(((1+(H84/100))^(I84/G84))-1),4),2),$J$26+$Q$30 + $S$28-0.01,IF(ROUND(ROUND(J84*(((1+(H84/100))^(I84/G84))-1),4),2)+ $S$28>$J$26,$J$26+ $S$28+-0.01,ROUND(ROUND(J84*(((1+(H84/100))^(I84/G84))-1),4),2)+$S$28)))- Q84-R84-S84)<0,0.01,IF(ISERROR(MATCH(MONTH(C84),$H$18:$H$19,0))=FALSE,$J$26 + $Q$30,0)+ ($J$26+$Q$30+$S$28)-(IF($J$26+$Q$30 + $S$28<ROUND(ROUND(J84*(((1+(H84/100))^(I84/G84))-1),4),2),$J$26+$Q$30 + $S$28-0.01,IF(ROUND(ROUND(J84*(((1+(H84/100))^(I84/G84))-1),4),2)+ $S$28>$J$26,$J$26+ $S$28+-0.01,ROUND(ROUND(J84*(((1+(H84/100))^(I84/G84))-1),4),2)+$S$28)))- Q84-R84-S84)) -> 843.4684722 | L84: =IF(B84="","",IF(K84=0.01,+$J$26-K84-Q84-R84-S84+$Q$30,IF($J$26+$Q$30 + $S$28<ROUND(ROUND(J84*(((1+(H84/100))^(I84/G84))-1),4),2),$J$26+$Q$30 + $S$28-0.01,IF(ROUND(ROUND(J84*(((1+(H84/100))^(I84/G84))-1),4),2)+ $S$28>$J$26,$J$26+ $S$28+-0.01,ROUND(ROUND(J84*(((1+(H84/100))^(I84/G84))-1),4),2)+$S$28)))) -> 36.91 | M84: 4.303109722 | N84: 41.21310972 | O84: 884.6815819 | P84: 10 | Q84: 16.85 | S84: 0 | T84: 16.85 | U84: 911.5315819 | V84: 3207.42 | W84: 0 | X84: 36.9136 | Y84: -0.0036 | Z84: 1522 | AA84: 0.6311496798 | AB84: 486.4356681 | AC84: -4.432310475 | AD84: 4.432629672 | AE84: 0.0003191970475 | AF84: 490.8679786 | AH84: 2026-12-12 | AI84: 911.5315819
A85: 51 | B85: 1 | C85: 2027-01-12 | E85: 51 | F85: 51 | G85: 360 | H85: 11.5 | I85: 31 | J85: 3207.42 | K85: =IF(B85="","",IF(((IF(ISERROR(MATCH(MONTH(C85),$H$18:$H$19,0))=FALSE,$J$26 + $Q$30,0) + $J$26+$Q$30+$S$28)-(IF($J$26+$Q$30 + $S$28<ROUND(ROUND(J85*(((1+(H85/100))^(I85/G85))-1),4),2),$J$26+$Q$30 + $S$28-0.01,IF(ROUND(ROUND(J85*(((1+(H85/100))^(I85/G85))-1),4),2)+ $S$28>$J$26,$J$26+ $S$28+-0.01,ROUND(ROUND(J85*(((1+(H85/100))^(I85/G85))-1),4),2)+$S$28)))- Q85-R85-S85)<0,0.01,IF(ISERROR(MATCH(MONTH(C85),$H$18:$H$19,0))=FALSE,$J$26 + $Q$30,0)+ ($J$26+$Q$30+$S$28)-(IF($J$26+$Q$30 + $S$28<ROUND(ROUND(J85*(((1+(H85/100))^(I85/G85))-1),4),2),$J$26+$Q$30 + $S$28-0.01,IF(ROUND(ROUND(J85*(((1+(H85/100))^(I85/G85))-1),4),2)+ $S$28>$J$26,$J$26+ $S$28+-0.01,ROUND(ROUND(J85*(((1+(H85/100))^(I85/G85))-1),4),2)+$S$28)))- Q85-R85-S85)) -> 853.2284722 | L85: =IF(B85="","",IF(K85=0.01,+$J$26-K85-Q85-R85-S85+$Q$30,IF($J$26+$Q$30 + $S$28<ROUND(ROUND(J85*(((1+(H85/100))^(I85/G85))-1),4),2),$J$26+$Q$30 + $S$28-0.01,IF(ROUND(ROUND(J85*(((1+(H85/100))^(I85/G85))-1),4),2)+ $S$28>$J$26,$J$26+ $S$28+-0.01,ROUND(ROUND(J85*(((1+(H85/100))^(I85/G85))-1),4),2)+$S$28)))) -> 30.21 | M85: 4.303109722 | N85: 34.51310972 | O85: 887.7415819 | P85: 10 | Q85: 13.79 | S85: 0 | T85: 13.79 | U85: 911.5315819 | V85: 2354.19 | W85: 0 | X85: 30.2063 | Y85: 0.0037 | Z85: 1553 | AA85: 0.6252611929 | AB85: 490.8679786 | AC85: -4.622500327 | AD85: 4.622819524 | AE85: 0.0003191970475 | AF85: 495.4904789 | AH85: 2027-01-12 | AI85: 911.5315819
A86: 52 | B86: 1 | C86: 2027-02-12 | E86: 52 | F86: 52 | G86: 360 | H86: 11.5 | I86: 31 | J86: 2354.19 | K86: =IF(B86="","",IF(((IF(ISERROR(MATCH(MONTH(C86),$H$18:$H$19,0))=FALSE,$J$26 + $Q$30,0) + $J$26+$Q$30+$S$28)-(IF($J$26+$Q$30 + $S$28<ROUND(ROUND(J86*(((1+(H86/100))^(I86/G86))-1),4),2),$J$26+$Q$30 + $S$28-0.01,IF(ROUND(ROUND(J86*(((1+(H86/100))^(I86/G86))-1),4),2)+ $S$28>$J$26,$J$26+ $S$28+-0.01,ROUND(ROUND(J86*(((1+(H86/100))^(I86/G86))-1),4),2)+$S$28)))- Q86-R86-S86)<0,0.01,IF(ISERROR(MATCH(MONTH(C86),$H$18:$H$19,0))=FALSE,$J$26 + $Q$30,0)+ ($J$26+$Q$30+$S$28)-(IF($J$26+$Q$30 + $S$28<ROUND(ROUND(J86*(((1+(H86/100))^(I86/G86))-1),4),2),$J$26+$Q$30 + $S$28-0.01,IF(ROUND(ROUND(J86*(((1+(H86/100))^(I86/G86))-1),4),2)+ $S$28>$J$26,$J$26+ $S$28+-0.01,ROUND(ROUND(J86*(((1+(H86/100))^(I86/G86))-1),4),2)+$S$28)))- Q86-R86-S86)) -> 864.9384722 | L86: =IF(B86="","",IF(K86=0.01,+$J$26-K86-Q86-R86-S86+$Q$30,IF($J$26+$Q$30 + $S$28<ROUND(ROUND(J86*(((1+(H86/100))^(I86/G86))-1),4),2),$J$26+$Q$30 + $S$28-0.01,IF(ROUND(ROUND(J86*(((1+(H86/100))^(I86/G86))-1),4),2)+ $S$28>$J$26,$J$26+ $S$28+-0.01,ROUND(ROUND(J86*(((1+(H86/100))^(I86/G86))-1),4),2)+$S$28)))) -> 22.17 | M86: 4.303109722 | N86: 26.47310972 | O86: 891.4115819 | P86: 10 | Q86: 10.12 | S86: 0 | T86: 10.12 | U86: 911.5315819 | V86: 1489.25 | W86: 0 | X86: 22.1709 | Y86: -0.0009 | Z86: 1584 | AA86: 0.6194276443 | AB86: 495.4904789 | AC86: -4.666033386 | AD86: 4.666352583 | AE86: 0.0003191970475 | AF86: 500.1565123 | AH86: 2027-02-12 | AI86: 911.5315819
A87: 53 | B87: 1 | C87: 2027-03-12 | E87: 53 | F87: 53 | G87: 360 | H87: 11.5 | I87: 28 | J87: 1489.25 | K87: 878.7884722 | L87: 12.66 | M87: 4.303109722 | N87: 16.96310972 | O87: 895.7515819 | P87: 10 | Q87: 5.78 | S87: 0 | T87: 5.78 | U87: 911.5315819 | V87: 610.46 | W87: 0 | X87: 12.6622 | Y87: -0.0022 | Z87: 1612 | AA87: 0.6142054269 | AB87: 500.1565123 | AC87: -4.252209281 | AD87: 4.252528478 | AE87: 0.0003191970475 | AF87: 504.4087216 | AH87: 2027-03-12 | AI87: 911.5315819
A88: 54 | B88: 1 | C88: 2027-04-12 | E88: 54 | F88: 54 | G88: 360 | H88: 11.5 | I88: 31 | J88: 610.46 | K88: 888.8584722 | L88: 5.75 | M88: 4.303109722 | N88: 10.05310972 | O88: 898.9115819 | P88: 10 | Q88: 2.62 | S88: 0 | T88: 2.62 | U88: 911.5315819 | V88: -278.4 | W88: 0 | X88: 5.7491 | Y88: 0.0009 | Z88: 1643 | AA88: 0.6084750261 | AB88: 504.4087216 | AC88: -4.750022214 | AD88: 4.750341411 | AE88: 0.0003191970475 | AF88: 509.1587438 | AH88: 2027-04-12 | AI88: 911.5315819
A89: 55 | B89: 1 | C89: 2027-05-12 | E89: 55 | F89: 55 | G89: 360 | H89: 11.5 | I89: 30 | J89: -278.4 | K89: 900.9284722 | L89: -2.54 | M89: 4.303109722 | N89: 1.763109722 | O89: 902.6915819 | P89: 10 | Q89: -1.16 | S89: 0 | T89: -1.16 | U89: 911.5315819 | V89: -1179.33 | W89: 0 | X89: -2.5369 | Y89: -0.0031 | Z89: 1673 | AA89: 0.6029803864 | AB89: 509.1587438 | AC89: -4.639373785 | AD89: 4.639692982 | AE89: 0.0003191970475 | AF89: 513.7981176 | AH89: 2027-05-12 | AI89: 911.5315819
A90: 56 | B90: 1 | C90: 2027-06-12 | E90: 56 | F90: 56 | G90: 360 | H90: 11.5 | I90: 31 | J90: -1179.33 | K90: 913.4084722 | L90: -11.11 | M90: 4.303109722 | N90: -6.806890278 | O90: 906.6015819 | P90: 10 | Q90: -5.07 | S90: 0 | T90: -5.07 | U90: 911.5315819 | V90: -2092.74 | W90: 0 | X90: -11.1065 | Y90: -0.0035 | Z90: 1704 | AA90: 0.5973547128 | AB90: 513.7981176 | AC90: -4.838448196 | AD90: 4.838767393 | AE90: 0.0003191970475 | AF90: 518.6365658 | AH90: 2027-06-12 | AI90: 911.5315819
A91: 57 | B91: 1 | C91: 2027-07-12 | E91: 57 | F91: 57 | G91: 360 | H91: 11.5 | I91: 30 | J91: -2092.74 | K91: 925.0084722 | L91: -19.07 | M91: 4.303109722 | N91: -14.76689028 | O91: 910.2415819 | P91: 10 | Q91: -8.71 | S91: 0 | T91: -8.71 | U91: 911.5315819 | V91: -3017.75 | W91: 0 | X91: -19.07 | Y91: 0 | Z91: 1734 | AA91: 0.5919604915 | AB91: 518.6365658 | AC91: -4.725740139 | AD91: 4.726059336 | AE91: 0.0003191970475 | AF91: 523.3623059 | AH91: 2027-07-12 | AI91: 911.5315819
A92: 58 | B92: 1 | C92: 2027-08-12 | E92: 58 | F92: 58 | G92: 360 | H92: 11.5 | I92: 31 | J92: -3017.75 | K92: 938.6184722 | L92: -28.42 | M92: 4.303109722 | N92: -24.11689028 | O92: 914.5015819 | P92: 10 | Q92: -12.97 | S92: 0 | T92: -12.97 | U92: 911.5315819 | V92: -3956.37 | W92: 0 | X92: -28.4201 | Y92: 0.0001 | Z92: 1765 | AA92: 0.5864376311 | AB92: 523.3623059 | AC92: -4.92852031 | AD92: 4.928839507 | AE92: 0.0003191970475 | AF92: 528.2908262 | AH92: 2027-08-12 | AI92: 911.5315819
A93: 59 | B93: 1 | C93: 2027-09-12 | E93: 59 | F93: 59 | G93: 360 | H93: 11.5 | I93: 31 | J93: -3956.37 | K93: 951.4984722 | L93: -37.26 | M93: 4.303109722 | N93: -32.95689028 | O93: 918.5415819 | P93: 10 | Q93: -17.01 | S93: 0 | T93: -17.01 | U93: 911.5315819 | V93: -4907.87 | W93: 0 | X93: -37.2597 | Y93: -0.0003 | Z93: 1796 | AA93: 0.5809662977 | AB93: 528.2908262 | AC93: -4.974935356 | AD93: 4.975254553 | AE93: 0.0003191970475 | AF93: 533.2657616 | AH93: 2027-09-12 | AI93: 911.5315819
A94: 60 | B94: 1 | C94: =IF(B94="","",IF(OR(MONTH(EDATE($Q$6,E94))=$H$16,MONTH(EDATE($Q$6,E94))=$H$17),IF(ABS($H$17-$H$16)=1,EDATE($Q$6,E94+2),EDATE($Q$6,E94+1)),EDATE($Q$6,E94))) -> 2027-10-12 | E94: 60 | F94: 60 | G94: 360 | H94: 11.5 | I94: 30 | J94: -4907.87 | K94: 962.3684722 | L94: -44.72 | M94: 4.303109722 | N94: -40.41689028 | O94: 921.9515819 | P94: 10 | Q94: -20.42 | S94: 0 | T94: -20.42 | U94: 911.5315819 | V94: -5870.24 | W94: 0 | X94: -44.7228 | Y94: 0.0028 | Z94: 1826 | AA94: 0.5757200668 | AB94: 533.2657616 | AC94: -4.859048224 | AD94: 4.859367421 | AE94: 0.0003191970475 | AF94: 538.1248098 | AH94: 2027-10-12 | AI94: 911.5315819
A95: 61 | B95: 1 | C95: 2027-11-12 | E95: 61 | F95: 61 | G95: 360 | H95: 11.5 | I95: 31 | J95: -5870.24 | K95: 977.7384722 | L95: -55.28 | M95: 4.303109722 | N95: -50.97689028 | O95: 926.7615819 | P95: 10 | Q95: -25.23 | S95: 0 | T95: -25.23 | U95: 911.5315819 | V95: -6847.98 | W95: 0 | X95: -55.2838 | Y95: 0.0038 | Z95: 1857 | AA95: 0.5703487259 | AB95: 538.1248098 | AC95: -5.067548306 | AD95: 5.067867503 | AE95: 0.0003191970475 | AF95: 543.1923581 | AH95: 2027-11-12 | AI95: 911.5315819
A96: 62 | B96: 1 | C96: 2027-12-12 | E96: 62 | F96: 62 | G96: 360 | H96: 11.5 | I96: 30 | J96: -6847.98 | K96: 988.1184722 | L96: -62.4 | M96: 4.303109722 | N96: -58.09689028 | O96: 930.0215819 | P96: 10 | Q96: -28.49 | S96: 0 | T96: -28.49 | U96: 911.5315819 | V96: -7836.1 | W96: 0 | X96: -62.402 | Y96: 0.002 | Z96: 1887 | AA96: 0.5651983736 | AB96: 543.1923581 | AC96: -4.949504021 | AD96: 4.949823218 | AE96: 0.0003191970475 | AF96: 548.1418621 | AH96: 2027-12-12 | AI96: 911.5315819
A97: 63 | B97: 1 | C97: 2028-01-12 | E97: 63 | F97: 63 | G97: 360 | H97: 11.5 | I97: 31 | J97: -7836.1 | K97: 1004.708472 | L97: -73.8 | M97: 4.303109722 | N97: -69.49689028 | O97: 935.2115819 | P97: 10 | Q97: -33.68 | S97: 0 | T97: -33.68 | U97: 911.5315819 | V97: -8840.81 | W97: 0 | X97: -73.7976 | Y97: -0.0024 | Z97: 1918 | AA97: 0.5599251978 | AB97: 548.1418621 | AC97: -5.161885332 | AD97: 5.162204529 | AE97: 0.0003191970475 | AF97: 553.3037475 | AH97: 2028-01-12 | AI97: 911.5315819
A98: 64 | B98: 1 | C98: 2028-02-12 | E98: 64 | F98: 64 | G98: 360 | H98: 11.5 | I98: 31 | J98: -8840.81 | K98: 1018.488472 | L98: -83.26 | M98: 4.303109722 | N98: -78.95689028 | O98: 939.5315819 | P98: 10 | Q98: -38 | S98: 0 | T98: -38 | U98: 911.5315819 | V98: -9859.3 | W98: 0 | X98: -83.2596 | Y98: -0.0004 | Z98: 1949 | AA98: 0.5547012196 | AB98: 553.3037475 | AC98: -5.210498126 | AD98: 5.210817323 | AE98: 0.0003191970475 | AF98: 558.5142456 | AH98: 2028-02-12 | AI98: 911.5315819
A99: 65 | B99: =IF(A99="","",IF(A99<=$H$24,0,1)) -> 1 | C99: 2028-03-12 | D99: =IF(B99="","",IF(OR(MONTH(C99)=$H$18,MONTH(C99)=$H$19),"D","")) ->  | E99: 65 | F99: 65 | G99: 360 | H99: 11.5 | I99: 29 | J99: -9859.3 | K99: 1023.708472 | L99: -86.83 | M99: 4.303109722 | N99: -82.52689028 | O99: 941.1815819 | P99: 10 | Q99: -39.65 | S99: 0 | T99: =IF(B99="","",Q99+R99+S99) -> -39.65 | U99: 911.5315819 | V99: =IF(B99="","",ROUND(J99-K99,2)) -> -10883.01 | W99: =IF(B99="","",IF(ROUND(ROUND(J99*(((1+(H99/100))^(I99/G99))-1),4),2) - $J$26<0,0,ROUND(ROUND(J99*(((1+(H99/100))^(I99/G99))-1),4),2) - $J$26)) -> 0 | X99: -86.8347 | Y99: 0.0047 | Z99: 1978 | AA99: 0.5498584045 | AB99: 558.5142456 | AC99: -4.918731266 | AD99: =(((1+($J$8/100))^((I99)/$Q$9))-1)*AB99 -> 4.919050463 | AE99: 0.0003191970475 | AF99: 563.4329769 | AH99: =+IF(C99="",0,C99) -> 2028-03-12 | AI99: =+IF(U99="",0,U99) -> 911.5315819
A100: =+IF(A99>=$H$12,"",A99+1) -> 66 | B100: 1 | C100: =IF(B100="","",IF(OR(MONTH(EDATE($Q$6,E100))=$H$16,MONTH(EDATE($Q$6,E100))=$H$17),IF(ABS($H$17-$H$16)=1,EDATE($Q$6,E100+2),EDATE($Q$6,E100+1)),EDATE($Q$6,E100))) -> 2028-04-12 | E100: 66 | F100: =IF(B100="","",F99+1) -> 66 | G100: =IF(B100="","",$Q$9) -> 360 | H100: =IF(B100="","",$H$8) -> 11.5 | I100: =IF(B100="","",C100-C99) -> 31 | J100: =IF(B100="","",+V99) -> -10883.01 | K100: 1046.498472 | L100: -102.49 | M100: =IF(B100="","",IF(ISERROR(MATCH(MONTH(C100),$H$18:$H$19,0))=FALSE,$J$25,0) + $J$25) -> 4.303109722 | N100: =IF(B100="","",L100+M100) -> -98.18689028 | O100: =IF(B100="","",K100+L100 + M100) -> 948.3115819 | P100: =IF(B100="","",$J$28) -> 10 | Q100: =IF(B100="","",ROUND($H$9*J100/30*$I100,2)-S100) -> -46.78 | S100: =IF(B100="","",IF(E100-E99>1,ROUNDDOWN($J100*$H$9/30*(DATE(YEAR($C100),MONTH($C100)-1,DAY($C100))-C99),2),0)) -> 0 | T100: -46.78 | U100: =IF(B100="","",O100+P100+T100+ IF(D100="D",$P100)) -> 911.5315819 | V100: -11929.51 | W100: 0 | X100: =+ROUND(J100*(((1+(H100/100))^(I100/G100))-1),4) -> -102.4923 | Y100: =+L100-X100 -> 0.0023 | Z100: =Z99+I100 -> 2009 | AA100: =1/((1+($J$8/100))^(Z100/$Q$9))*1 -> 0.5447283472 | AB100: 563.4329769 | AC100: -5.305891595 | AD100: 5.306210792 | AE100: =$K$25 -> 0.0003191970475 | AF100: 568.7388685 | AH100: 2028-04-12 | AI100: 911.5315819
A101: 67 | B101: 1 | C101: 2028-05-12 | E101: 67 | F101: 67 | G101: 360 | H101: 11.5 | I101: 30 | J101: -11929.51 | K101: 1055.568472 | L101: -108.71 | M101: 4.303109722 | N101: -104.4068903 | O101: 951.1615819 | P101: 10 | Q101: -49.63 | S101: 0 | T101: -49.63 | U101: 911.5315819 | V101: -12985.08 | W101: 0 | X101: -108.7073 | Y101: -0.0027 | Z101: 2039 | AA101: 0.5398093515 | AB101: =AF100 -> 568.7388685 | AC101: =AE101-AD101 -> -5.182295791 | AD101: 5.182614988 | AE101: 0.0003191970475 | AF101: =AB101-AC101 -> 573.9211642 | AH101: 2028-05-12 | AI101: 911.5315819
A102: 68 | B102: 1 | C102: 2028-06-12 | E102: 68 | F102: 68 | G102: 360 | H102: 11.5 | I102: 31 | J102: -12985.08 | K102: 1075.338472 | L102: -122.29 | M102: 4.303109722 | N102: -117.9868903 | O102: 957.3515819 | P102: 10 | Q102: -55.82 | S102: 0 | T102: -55.82 | U102: 911.5315819 | V102: -14060.42 | W102: 0 | X102: -122.2889 | Y102: -0.0011 | Z102: 2070 | AA102: 0.5347730497 | AB102: 573.9211642 | AC102: -5.404665603 | AD102: 5.4049848 | AE102: 0.0003191970475 | AF102: 579.3258298 | AH102: 2028-06-12 | AI102: 911.5315819
A103: 69 | B103: 1 | C103: 2028-07-12 | E103: 69 | F103: 69 | G103: 360 | H103: 11.5 | I103: 30 | J103: -14060.42 | K103: 1083.848472 | L103: -128.13 | M103: 4.303109722 | N103: -123.8268903 | O103: 960.0215819 | P103: 10 | Q103: -58.49 | S103: 0 | T103: -58.49 | U103: 911.5315819 | V103: -15144.27 | W103: 0 | X103: -128.1251 | Y103: -0.0049 | Z103: 2100 | AA103: 0.5299439522 | AB103: 579.3258298 | AC103: -5.278769142 | AD103: 5.279088339 | AE103: 0.0003191970475 | AF103: 584.604599 | AH103: 2028-07-12 | AI103: 911.5315819
A104: 70 | B104: 1 | C104: 2028-08-12 | E104: 70 | F104: 70 | G104: 360 | H104: 11.5 | I104: 31 | J104: -15144.27 | K104: 1104.948472 | L104: -142.62 | M104: 4.303109722 | N104: -138.3168903 | O104: 966.6315819 | P104: 10 | Q104: -65.1 | S104: 0 | T104: -65.1 | U104: 911.5315819 | V104: -16249.22 | W104: 0 | X104: -142.6233 | Y104: 0.0033 | Z104: 2131 | AA104: 0.5249996923 | AB104: 584.604599 | AC104: -5.50527838 | AD104: 5.505597578 | AE104: 0.0003191970475 | AF104: 590.1098774 | AH104: 2028-08-12 | AI104: 911.5315819
A105: 71 | B105: 1 | C105: 2028-09-12 | E105: 71 | F105: 71 | G105: 360 | H105: 11.5 | I105: 31 | J105: -16249.22 | K105: 1120.108472 | L105: -153.03 | M105: 4.303109722 | N105: -148.7268903 | O105: 971.3815819 | P105: 10 | Q105: -69.85 | S105: 0 | T105: -69.85 | U105: 911.5315819 | V105: -17369.33 | W105: 0 | X105: -153.0294 | Y105: -0.0006 | Z105: 2162 | AA105: 0.5201015614 | AB105: 590.1098774 | AC105: -5.557125128 | AD105: 5.557444326 | AE105: 0.0003191970475 | AF105: 595.6670025 | AH105: 2028-09-12 | AI105: 911.5315819
A106: 72 | B106: 1 | C106: 2028-10-12 | E106: 72 | F106: 72 | G106: 360 | H106: 11.5 | I106: 30 | J106: -17369.33 | K106: 1127.768472 | L106: -158.28 | M106: 4.303109722 | N106: -153.9768903 | O106: 973.7915819 | P106: 10 | Q106: -72.26 | S106: 0 | T106: -72.26 | U106: 911.5315819 | V106: -18497.1 | W106: 0 | X106: -158.2775 | Y106: -0.0025 | Z106: 2192 | AA106: 0.51540495 | AB106: 595.6670025 | AC106: -5.427677562 | AD106: 5.427996759 | AE106: 0.0003191970475 | AF106: 601.0946801 | AH106: 2028-10-12 | AI106: 911.5315819

Sheet Calculos CC (hidden)
A1: Factores utilizados en Meses de No Pago para cálculo del valor cuota
A3: N° de Cuota | B3: Equivalente | C3: Fecha | D3: Mes | E3: Marca Cuota No Pago | F3: Factor (10) | G3: Acumulado | H3: Conteo No Pagos Acum
A4: 1 | B4: =IF(E4<>"C",IF(ISERROR(1+B3)=TRUE,1,1+B3),IF(ISNUMBER(B3),B3,0)) -> 1 | C4: =+simulador_1!Q7 -> 2022-11-12 | D4: =MONTH(C4) -> 11 | E4: =IF(ISERROR(MATCH(D4,simulador_1!$H$16:$H$17,0))=FALSE,"C",IF(ISERROR(MATCH(D4,simulador_1!$H$18:$H$19,0))=FALSE,"D","")) ->  | F4: =IF(E4="C",0,IF(E4 ="D",ROUND(1/((1+simulador_1!$Q$13)^A4),9) * 2,ROUND(1/((1+simulador_1!$Q$13)^A4),9))) -> 0.990837264 | G4: =ROUND(F4,9) -> 0.990837264 | H4: =+COUNTIF($E$4:E4,"C") -> 0
A5: =A4+1 -> 2 | B5: =IF(E5<>"C",IF(ISERROR(1+B4)=TRUE,1,1+B4),IF(ISNUMBER(B4),B4,1)) -> 2 | C5: =DATE(YEAR(C4) + 1/12,MONTH(C4)+1,DAY(C4)) -> 2022-12-12 | D5: 12 | E5: =IF(ISERROR(MATCH(D5,simulador_1!$H$16:$H$17,0))=FALSE,"C",IF(ISERROR(MATCH(D5,simulador_1!$H$18:$H$19,0))=FALSE,"D","")) ->  | F5: =IF(E5="C",0,IF(E5 ="D",ROUND(1/((1+simulador_1!$Q$13)^A5),9) * 2,ROUND(1/((1+simulador_1!$Q$13)^A5),9))) -> 0.981758484 | G5: =G4+ROUND(F5,9) -> 1.972595748 | H5: =+COUNTIF($E$4:E5,"C") -> 0
A6: 3 | B6: 3 | C6: 2023-01-12 | D6: 1 | E6: =IF(ISERROR(MATCH(D6,simulador_1!$H$16:$H$17,0))=FALSE,"C",IF(ISERROR(MATCH(D6,simulador_1!$H$18:$H$19,0))=FALSE,"D","")) ->  | F6: =IF(E6="C",0,IF(E6 ="D",ROUND(1/((1+simulador_1!$Q$13)^A6),9) * 2,ROUND(1/((1+simulador_1!$Q$13)^A6),9))) -> 0.972762891 | G6: =G5+ROUND(F6,9) -> 2.945358639 | H6: =+COUNTIF($E$4:E6,"C") -> 0
A7: 4 | B7: 4 | C7: 2023-02-12 | D7: 2 | E7: =IF(ISERROR(MATCH(D7,simulador_1!$H$16:$H$17,0))=FALSE,"C",IF(ISERROR(MATCH(D7,simulador_1!$H$18:$H$19,0))=FALSE,"D","")) ->  | F7: =IF(E7="C",0,IF(E7 ="D",ROUND(1/((1+simulador_1!$Q$13)^A7),9) * 2,ROUND(1/((1+simulador_1!$Q$13)^A7),9))) -> 0.963849721 | G7: 3.90920836 | H7: =+COUNTIF($E$4:E7,"C") -> 0
A8: 5 | B8: 5 | C8: 2023-03-12 | D8: 3 | E8: =IF(ISERROR(MATCH(D8,simulador_1!$H$16:$H$17,0))=FALSE,"C",IF(ISERROR(MATCH(D8,simulador_1!$H$18:$H$19,0))=FALSE,"D","")) ->  | F8: =IF(E8="C",0,IF(E8 ="D",ROUND(1/((1+simulador_1!$Q$13)^A8),9) * 2,ROUND(1/((1+simulador_1!$Q$13)^A8),9))) -> 0.955018221 | G8: 4.864226581 | H8: =+COUNTIF($E$4:E8,"C") -> 0
A9: 6 | B9: 6 | C9: 2023-04-12 | D9: 4 | E9: =IF(ISERROR(MATCH(D9,simulador_1!$H$16:$H$17,0))=FALSE,"C",IF(ISERROR(MATCH(D9,simulador_1!$H$18:$H$19,0))=FALSE,"D","")) ->  | F9: =IF(E9="C",0,IF(E9 ="D",ROUND(1/((1+simulador_1!$Q$13)^A9),9) * 2,ROUND(1/((1+simulador_1!$Q$13)^A9),9))) -> 0.946267641 | G9: 5.810494222 | H9: =+COUNTIF($E$4:E9,"C") -> 0
A10: 7 | B10: 7 | C10: 2023-05-12 | D10: 5 | E10: =IF(ISERROR(MATCH(D10,simulador_1!$H$16:$H$17,0))=FALSE,"C",IF(ISERROR(MATCH(D10,simulador_1!$H$18:$H$19,0))=FALSE,"D","")) ->  | F10: =IF(E10="C",0,IF(E10 ="D",ROUND(1/((1+simulador_1!$Q$13)^A10),9) * 2,ROUND(1/((1+simulador_1!$Q$13)^A10),9))) -> 0.937597241 | G10: 6.748091463 | H10: =+COUNTIF($E$4:E10,"C") -> 0
A11: 8 | B11: 8 | C11: 2023-06-12 | D11: 6 | E11: =IF(ISERROR(MATCH(D11,simulador_1!$H$16:$H$17,0))=FALSE,"C",IF(ISERROR(MATCH(D11,simulador_1!$H$18:$H$19,0))=FALSE,"D","")) ->  | F11: =IF(E11="C",0,IF(E11 ="D",ROUND(1/((1+simulador_1!$Q$13)^A11),9) * 2,ROUND(1/((1+simulador_1!$Q$13)^A11),9))) -> 0.929006285 | G11: 7.677097748 | H11: =+COUNTIF($E$4:E11,"C") -> 0
A12: 9 | B12: 9 | C12: 2023-07-12 | D12: 7 | E12: =IF(ISERROR(MATCH(D12,simulador_1!$H$16:$H$17,0))=FALSE,"C",IF(ISERROR(MATCH(D12,simulador_1!$H$18:$H$19,0))=FALSE,"D","")) ->  | F12: =IF(E12="C",0,IF(E12 ="D",ROUND(1/((1+simulador_1!$Q$13)^A12),9) * 2,ROUND(1/((1+simulador_1!$Q$13)^A12),9))) -> 0.920494046 | G12: 8.597591794 | H12: =+COUNTIF($E$4:E12,"C") -> 0
A13: 10 | B13: 10 | C13: 2023-08-12 | D13: 8 | E13: =IF(ISERROR(MATCH(D13,simulador_1!$H$16:$H$17,0))=FALSE,"C",IF(ISERROR(MATCH(D13,simulador_1!$H$18:$H$19,0))=FALSE,"D","")) ->  | F13: =IF(E13="C",0,IF(E13 ="D",ROUND(1/((1+simulador_1!$Q$13)^A13),9) * 2,ROUND(1/((1+simulador_1!$Q$13)^A13),9))) -> 0.912059802 | G13: 9.509651596 | H13: =+COUNTIF($E$4:E13,"C") -> 0
A14: 11 | B14: 11 | C14: 2023-09-12 | D14: 9 | E14: =IF(ISERROR(MATCH(D14,simulador_1!$H$16:$H$17,0))=FALSE,"C",IF(ISERROR(MATCH(D14,simulador_1!$H$18:$H$19,0))=FALSE,"D","")) ->  | F14: =IF(E14="C",0,IF(E14 ="D",ROUND(1/((1+simulador_1!$Q$13)^A14),9) * 2,ROUND(1/((1+simulador_1!$Q$13)^A14),9))) -> 0.903702839 | G14: 10.41335443 | H14: =+COUNTIF($E$4:E14,"C") -> 0
A15: 12 | B15: 12 | C15: 2023-10-12 | D15: 10 | E15: =IF(ISERROR(MATCH(D15,simulador_1!$H$16:$H$17,0))=FALSE,"C",IF(ISERROR(MATCH(D15,simulador_1!$H$18:$H$19,0))=FALSE,"D","")) ->  | F15: =IF(E15="C",0,IF(E15 ="D",ROUND(1/((1+simulador_1!$Q$13)^A15),9) * 2,ROUND(1/((1+simulador_1!$Q$13)^A15),9))) -> 0.895422449 | G15: 11.30877688 | H15: =+COUNTIF($E$4:E15,"C") -> 0
A16: 13 | B16: 13 | C16: 2023-11-12 | D16: 11 | E16: =IF(ISERROR(MATCH(D16,simulador_1!$H$16:$H$17,0))=FALSE,"C",IF(ISERROR(MATCH(D16,simulador_1!$H$18:$H$19,0))=FALSE,"D","")) ->  | F16: =IF(E16="C",0,IF(E16 ="D",ROUND(1/((1+simulador_1!$Q$13)^A16),9) * 2,ROUND(1/((1+simulador_1!$Q$13)^A16),9))) -> 0.88721793 | G16: 12.19599481 | H16: =+COUNTIF($E$4:E16,"C") -> 0
A17: 14 | B17: 14 | C17: 2023-12-12 | D17: 12 | E17: =IF(ISERROR(MATCH(D17,simulador_1!$H$16:$H$17,0))=FALSE,"C",IF(ISERROR(MATCH(D17,simulador_1!$H$18:$H$19,0))=FALSE,"D","")) ->  | F17: =IF(E17="C",0,IF(E17 ="D",ROUND(1/((1+simulador_1!$Q$13)^A17),9) * 2,ROUND(1/((1+simulador_1!$Q$13)^A17),9))) -> 0.879088586 | G17: 13.0750834 | H17: =+COUNTIF($E$4:E17,"C") -> 0
A18: 15 | B18: 15 | C18: 2024-01-12 | D18: 1 | E18: =IF(ISERROR(MATCH(D18,simulador_1!$H$16:$H$17,0))=FALSE,"C",IF(ISERROR(MATCH(D18,simulador_1!$H$18:$H$19,0))=FALSE,"D","")) ->  | F18: =IF(E18="C",0,IF(E18 ="D",ROUND(1/((1+simulador_1!$Q$13)^A18),9) * 2,ROUND(1/((1+simulador_1!$Q$13)^A18),9))) -> 0.87103373 | G18: 13.94611713 | H18: =+COUNTIF($E$4:E18,"C") -> 0
A19: 16 | B19: 16 | C19: 2024-02-12 | D19: 2 | E19: =IF(ISERROR(MATCH(D19,simulador_1!$H$16:$H$17,0))=FALSE,"C",IF(ISERROR(MATCH(D19,simulador_1!$H$18:$H$19,0))=FALSE,"D","")) ->  | F19: =IF(E19="C",0,IF(E19 ="D",ROUND(1/((1+simulador_1!$Q$13)^A19),9) * 2,ROUND(1/((1+simulador_1!$Q$13)^A19),9))) -> 0.863052678 | G19: 14.80916981 | H19: =+COUNTIF($E$4:E19,"C") -> 0
A20: 17 | B20: 17 | C20: 2024-03-12 | D20: 3 | E20: =IF(ISERROR(MATCH(D20,simulador_1!$H$16:$H$17,0))=FALSE,"C",IF(ISERROR(MATCH(D20,simulador_1!$H$18:$H$19,0))=FALSE,"D","")) ->  | F20: =IF(E20="C",0,IF(E20 ="D",ROUND(1/((1+simulador_1!$Q$13)^A20),9) * 2,ROUND(1/((1+simulador_1!$Q$13)^A20),9))) -> 0.855144754 | G20: 15.66431456 | H20: =+COUNTIF($E$4:E20,"C") -> 0
A21: 18 | B21: 18 | C21: 2024-04-12 | D21: 4 | E21: =IF(ISERROR(MATCH(D21,simulador_1!$H$16:$H$17,0))=FALSE,"C",IF(ISERROR(MATCH(D21,simulador_1!$H$18:$H$19,0))=FALSE,"D","")) ->  | F21: =IF(E21="C",0,IF(E21 ="D",ROUND(1/((1+simulador_1!$Q$13)^A21),9) * 2,ROUND(1/((1+simulador_1!$Q$13)^A21),9))) -> 0.847309289 | G21: 16.51162385 | H21: =+COUNTIF($E$4:E21,"C") -> 0
A22: 19 | B22: 19 | C22: 2024-05-12 | D22: 5 | E22: =IF(ISERROR(MATCH(D22,simulador_1!$H$16:$H$17,0))=FALSE,"C",IF(ISERROR(MATCH(D22,simulador_1!$H$18:$H$19,0))=FALSE,"D","")) ->  | F22: =IF(E22="C",0,IF(E22 ="D",ROUND(1/((1+simulador_1!$Q$13)^A22),9) * 2,ROUND(1/((1+simulador_1!$Q$13)^A22),9))) -> 0.839545618 | G22: 17.35116947 | H22: =+COUNTIF($E$4:E22,"C") -> 0
A23: 20 | B23: 20 | C23: 2024-06-12 | D23: 6 | E23: =IF(ISERROR(MATCH(D23,simulador_1!$H$16:$H$17,0))=FALSE,"C",IF(ISERROR(MATCH(D23,simulador_1!$H$18:$H$19,0))=FALSE,"D","")) ->  | F23: =IF(E23="C",0,IF(E23 ="D",ROUND(1/((1+simulador_1!$Q$13)^A23),9) * 2,ROUND(1/((1+simulador_1!$Q$13)^A23),9))) -> 0.831853083 | G23: 18.18302255 | H23: =+COUNTIF($E$4:E23,"C") -> 0
A24: 21 | B24: 21 | C24: 2024-07-12 | D24: 7 | E24: =IF(ISERROR(MATCH(D24,simulador_1!$H$16:$H$17,0))=FALSE,"C",IF(ISERROR(MATCH(D24,simulador_1!$H$18:$H$19,0))=FALSE,"D","")) ->  | F24: =IF(E24="C",0,IF(E24 ="D",ROUND(1/((1+simulador_1!$Q$13)^A24),9) * 2,ROUND(1/((1+simulador_1!$Q$13)^A24),9))) -> 0.824231033 | G24: 19.00725358 | H24: =+COUNTIF($E$4:E24,"C") -> 0
A25: 22 | B25: 22 | C25: 2024-08-12 | D25: 8 | E25: =IF(ISERROR(MATCH(D25,simulador_1!$H$16:$H$17,0))=FALSE,"C",IF(ISERROR(MATCH(D25,simulador_1!$H$18:$H$19,0))=FALSE,"D","")) ->  | F25: =IF(E25="C",0,IF(E25 ="D",ROUND(1/((1+simulador_1!$Q$13)^A25),9) * 2,ROUND(1/((1+simulador_1!$Q$13)^A25),9))) -> 0.816678822 | G25: 19.82393241 | H25: =+COUNTIF($E$4:E25,"C") -> 0
A26: 23 | B26: 23 | C26: 2024-09-12 | D26: 9 | E26: =IF(ISERROR(MATCH(D26,simulador_1!$H$16:$H$17,0))=FALSE,"C",IF(ISERROR(MATCH(D26,simulador_1!$H$18:$H$19,0))=FALSE,"D","")) ->  | F26: =IF(E26="C",0,IF(E26 ="D",ROUND(1/((1+simulador_1!$Q$13)^A26),9) * 2,ROUND(1/((1+simulador_1!$Q$13)^A26),9))) -> 0.80919581 | G26: 20.63312822 | H26: =+COUNTIF($E$4:E26,"C") -> 0
A27: 24 | B27: 24 | C27: 2024-10-12 | D27: 10 | E27: =IF(ISERROR(MATCH(D27,simulador_1!$H$16:$H$17,0))=FALSE,"C",IF(ISERROR(MATCH(D27,simulador_1!$H$18:$H$19,0))=FALSE,"D","")) ->  | F27: =IF(E27="C",0,IF(E27 ="D",ROUND(1/((1+simulador_1!$Q$13)^A27),9) * 2,ROUND(1/((1+simulador_1!$Q$13)^A27),9))) -> 0.801781362 | G27: 21.43490958 | H27: =+COUNTIF($E$4:E27,"C") -> 0
A28: 25 | B28: 25 | C28: 2024-11-12 | D28: 11 | E28: =IF(ISERROR(MATCH(D28,simulador_1!$H$16:$H$17,0))=FALSE,"C",IF(ISERROR(MATCH(D28,simulador_1!$H$18:$H$19,0))=FALSE,"D","")) ->  | F28: =IF(E28="C",0,IF(E28 ="D",ROUND(1/((1+simulador_1!$Q$13)^A28),9) * 2,ROUND(1/((1+simulador_1!$Q$13)^A28),9))) -> 0.794434852 | G28: 22.22934443 | H28: =+COUNTIF($E$4:E28,"C") -> 0
A29: 26 | B29: 26 | C29: 2024-12-12 | D29: 12 | E29: =IF(ISERROR(MATCH(D29,simulador_1!$H$16:$H$17,0))=FALSE,"C",IF(ISERROR(MATCH(D29,simulador_1!$H$18:$H$19,0))=FALSE,"D","")) ->  | F29: =IF(E29="C",0,IF(E29 ="D",ROUND(1/((1+simulador_1!$Q$13)^A29),9) * 2,ROUND(1/((1+simulador_1!$Q$13)^A29),9))) -> 0.787155655 | G29: 23.01650009 | H29: =+COUNTIF($E$4:E29,"C") -> 0
A30: 27 | B30: 27 | C30: 2025-01-12 | D30: 1 | E30: =IF(ISERROR(MATCH(D30,simulador_1!$H$16:$H$17,0))=FALSE,"C",IF(ISERROR(MATCH(D30,simulador_1!$H$18:$H$19,0))=FALSE,"D","")) ->  | F30: =IF(E30="C",0,IF(E30 ="D",ROUND(1/((1+simulador_1!$Q$13)^A30),9) * 2,ROUND(1/((1+simulador_1!$Q$13)^A30),9))) -> 0.779943156 | G30: 23.79644324 | H30: =+COUNTIF($E$4:E30,"C") -> 0
A31: 28 | B31: 28 | C31: 2025-02-12 | D31: 2 | E31: =IF(ISERROR(MATCH(D31,simulador_1!$H$16:$H$17,0))=FALSE,"C",IF(ISERROR(MATCH(D31,simulador_1!$H$18:$H$19,0))=FALSE,"D","")) ->  | F31: =IF(E31="C",0,IF(E31 ="D",ROUND(1/((1+simulador_1!$Q$13)^A31),9) * 2,ROUND(1/((1+simulador_1!$Q$13)^A31),9))) -> 0.772796743 | G31: 24.56923998 | H31: =+COUNTIF($E$4:E31,"C") -> 0
A32: 29 | B32: 29 | C32: 2025-03-12 | D32: 3 | E32: =IF(ISERROR(MATCH(D32,simulador_1!$H$16:$H$17,0))=FALSE,"C",IF(ISERROR(MATCH(D32,simulador_1!$H$18:$H$19,0))=FALSE,"D","")) ->  | F32: =IF(E32="C",0,IF(E32 ="D",ROUND(1/((1+simulador_1!$Q$13)^A32),9) * 2,ROUND(1/((1+simulador_1!$Q$13)^A32),9))) -> 0.76571581 | G32: 25.33495579 | H32: =+COUNTIF($E$4:E32,"C") -> 0
A33: 30 | B33: 30 | C33: 2025-04-12 | D33: 4 | E33: =IF(ISERROR(MATCH(D33,simulador_1!$H$16:$H$17,0))=FALSE,"C",IF(ISERROR(MATCH(D33,simulador_1!$H$18:$H$19,0))=FALSE,"D","")) ->  | F33: =IF(E33="C",0,IF(E33 ="D",ROUND(1/((1+simulador_1!$Q$13)^A33),9) * 2,ROUND(1/((1+simulador_1!$Q$13)^A33),9))) -> 0.758699759 | G33: 26.09365555 | H33: =+COUNTIF($E$4:E33,"C") -> 0
A34: 31 | B34: 31 | C34: 2025-05-12 | D34: 5 | E34: =IF(ISERROR(MATCH(D34,simulador_1!$H$16:$H$17,0))=FALSE,"C",IF(ISERROR(MATCH(D34,simulador_1!$H$18:$H$19,0))=FALSE,"D","")) ->  | F34: =IF(E34="C",0,IF(E34 ="D",ROUND(1/((1+simulador_1!$Q$13)^A34),9) * 2,ROUND(1/((1+simulador_1!$Q$13)^A34),9))) -> 0.751747993 | G34: 26.84540355 | H34: =+COUNTIF($E$4:E34,"C") -> 0
A35: 32 | B35: 32 | C35: 2025-06-12 | D35: 6 | E35: =IF(ISERROR(MATCH(D35,simulador_1!$H$16:$H$17,0))=FALSE,"C",IF(ISERROR(MATCH(D35,simulador_1!$H$18:$H$19,0))=FALSE,"D","")) ->  | F35: =IF(E35="C",0,IF(E35 ="D",ROUND(1/((1+simulador_1!$Q$13)^A35),9) * 2,ROUND(1/((1+simulador_1!$Q$13)^A35),9))) -> 0.744859925 | G35: 27.59026347 | H35: =+COUNTIF($E$4:E35,"C") -> 0
A36: 33 | B36: 33 | C36: 2025-07-12 | D36: 7 | E36: =IF(ISERROR(MATCH(D36,simulador_1!$H$16:$H$17,0))=FALSE,"C",IF(ISERROR(MATCH(D36,simulador_1!$H$18:$H$19,0))=FALSE,"D","")) ->  | F36: =IF(E36="C",0,IF(E36 ="D",ROUND(1/((1+simulador_1!$Q$13)^A36),9) * 2,ROUND(1/((1+simulador_1!$Q$13)^A36),9))) -> 0.73803497 | G36: 28.32829844 | H36: =+COUNTIF($E$4:E36,"C") -> 0
A37: 34 | B37: =IF(E37<>"C",IF(ISERROR(1+B36)=TRUE,1,1+B36),IF(ISNUMBER(B36),B36,1)) -> 34 | C37: 2025-08-12 | D37: 8 | E37: =IF(ISERROR(MATCH(D37,simulador_1!$H$16:$H$17,0))=FALSE,"C",IF(ISERROR(MATCH(D37,simulador_1!$H$18:$H$19,0))=FALSE,"D","")) ->  | F37: =IF(E37="C",0,IF(E37 ="D",ROUND(1/((1+simulador_1!$Q$13)^A37),9) * 2,ROUND(1/((1+simulador_1!$Q$13)^A37),9))) -> 0.731272551 | G37: 29.05957099 | H37: =+COUNTIF($E$4:E37,"C") -> 0
A38: 35 | B38: 35 | C38: 2025-09-12 | D38: 9 | E38: =IF(ISERROR(MATCH(D38,simulador_1!$H$16:$H$17,0))=FALSE,"C",IF(ISERROR(MATCH(D38,simulador_1!$H$18:$H$19,0))=FALSE,"D","")) ->  | F38: =IF(E38="C",0,IF(E38 ="D",ROUND(1/((1+simulador_1!$Q$13)^A38),9) * 2,ROUND(1/((1+simulador_1!$Q$13)^A38),9))) -> 0.724572094 | G38: 29.78414309 | H38: =+COUNTIF($E$4:E38,"C") -> 0
A39: 36 | B39: 36 | C39: 2025-10-12 | D39: 10 | E39: =IF(ISERROR(MATCH(D39,simulador_1!$H$16:$H$17,0))=FALSE,"C",IF(ISERROR(MATCH(D39,simulador_1!$H$18:$H$19,0))=FALSE,"D","")) ->  | F39: =IF(E39="C",0,IF(E39 ="D",ROUND(1/((1+simulador_1!$Q$13)^A39),9) * 2,ROUND(1/((1+simulador_1!$Q$13)^A39),9))) -> 0.717933031 | G39: 30.50207612 | H39: =+COUNTIF($E$4:E39,"C") -> 0
A40: 37 | B40: 37 | C40: 2025-11-12 | D40: 11 | E40: =IF(ISERROR(MATCH(D40,simulador_1!$H$16:$H$17,0))=FALSE,"C",IF(ISERROR(MATCH(D40,simulador_1!$H$18:$H$19,0))=FALSE,"D","")) ->  | F40: =IF(E40="C",0,IF(E40 ="D",ROUND(1/((1+simulador_1!$Q$13)^A40),9) * 2,ROUND(1/((1+simulador_1!$Q$13)^A40),9))) -> 0.711354801 | G40: 31.21343092 | H40: =+COUNTIF($E$4:E40,"C") -> 0
A41: 38 | B41: 38 | C41: 2025-12-12 | D41: 12 | E41: =IF(ISERROR(MATCH(D41,simulador_1!$H$16:$H$17,0))=FALSE,"C",IF(ISERROR(MATCH(D41,simulador_1!$H$18:$H$19,0))=FALSE,"D","")) ->  | F41: =IF(E41="C",0,IF(E41 ="D",ROUND(1/((1+simulador_1!$Q$13)^A41),9) * 2,ROUND(1/((1+simulador_1!$Q$13)^A41),9))) -> 0.704836845 | G41: 31.91826776 | H41: =+COUNTIF($E$4:E41,"C") -> 0
A42: 39 | B42: 39 | C42: 2026-01-12 | D42: 1 | E42: =IF(ISERROR(MATCH(D42,simulador_1!$H$16:$H$17,0))=FALSE,"C",IF(ISERROR(MATCH(D42,simulador_1!$H$18:$H$19,0))=FALSE,"D","")) ->  | F42: =IF(E42="C",0,IF(E42 ="D",ROUND(1/((1+simulador_1!$Q$13)^A42),9) * 2,ROUND(1/((1+simulador_1!$Q$13)^A42),9))) -> 0.698378611 | G42: 32.61664637 | H42: =+COUNTIF($E$4:E42,"C") -> 0
A43: 40 | B43: 40 | C43: 2026-02-12 | D43: 2 | E43: =IF(ISERROR(MATCH(D43,simulador_1!$H$16:$H$17,0))=FALSE,"C",IF(ISERROR(MATCH(D43,simulador_1!$H$18:$H$19,0))=FALSE,"D","")) ->  | F43: =IF(E43="C",0,IF(E43 ="D",ROUND(1/((1+simulador_1!$Q$13)^A43),9) * 2,ROUND(1/((1+simulador_1!$Q$13)^A43),9))) -> 0.691979552 | G43: 33.30862593 | H43: =+COUNTIF($E$4:E43,"C") -> 0
A44: 41 | B44: 41 | C44: 2026-03-12 | D44: 3 | E44: =IF(ISERROR(MATCH(D44,simulador_1!$H$16:$H$17,0))=FALSE,"C",IF(ISERROR(MATCH(D44,simulador_1!$H$18:$H$19,0))=FALSE,"D","")) ->  | F44: =IF(E44="C",0,IF(E44 ="D",ROUND(1/((1+simulador_1!$Q$13)^A44),9) * 2,ROUND(1/((1+simulador_1!$Q$13)^A44),9))) -> 0.685639126 | G44: 33.99426505 | H44: =+COUNTIF($E$4:E44,"C") -> 0
A45: 42 | B45: 42 | C45: 2026-04-12 | D45: 4 | E45: =IF(ISERROR(MATCH(D45,simulador_1!$H$16:$H$17,0))=FALSE,"C",IF(ISERROR(MATCH(D45,simulador_1!$H$18:$H$19,0))=FALSE,"D","")) ->  | F45: =IF(E45="C",0,IF(E45 ="D",ROUND(1/((1+simulador_1!$Q$13)^A45),9) * 2,ROUND(1/((1+simulador_1!$Q$13)^A45),9))) -> 0.679356796 | G45: 34.67362185 | H45: =+COUNTIF($E$4:E45,"C") -> 0
A46: 43 | B46: 43 | C46: 2026-05-12 | D46: 5 | E46: =IF(ISERROR(MATCH(D46,simulador_1!$H$16:$H$17,0))=FALSE,"C",IF(ISERROR(MATCH(D46,simulador_1!$H$18:$H$19,0))=FALSE,"D","")) ->  | F46: =IF(E46="C",0,IF(E46 ="D",ROUND(1/((1+simulador_1!$Q$13)^A46),9) * 2,ROUND(1/((1+simulador_1!$Q$13)^A46),9))) -> 0.673132029 | G46: 35.34675388 | H46: =+COUNTIF($E$4:E46,"C") -> 0
A47: 44 | B47: 44 | C47: 2026-06-12 | D47: 6 | E47: =IF(ISERROR(MATCH(D47,simulador_1!$H$16:$H$17,0))=FALSE,"C",IF(ISERROR(MATCH(D47,simulador_1!$H$18:$H$19,0))=FALSE,"D","")) ->  | F47: =IF(E47="C",0,IF(E47 ="D",ROUND(1/((1+simulador_1!$Q$13)^A47),9) * 2,ROUND(1/((1+simulador_1!$Q$13)^A47),9))) -> 0.666964298 | G47: 36.01371818 | H47: =+COUNTIF($E$4:E47,"C") -> 0
A48: 45 | B48: 45 | C48: 2026-07-12 | D48: 7 | E48: =IF(ISERROR(MATCH(D48,simulador_1!$H$16:$H$17,0))=FALSE,"C",IF(ISERROR(MATCH(D48,simulador_1!$H$18:$H$19,0))=FALSE,"D","")) ->  | F48: =IF(E48="C",0,IF(E48 ="D",ROUND(1/((1+simulador_1!$Q$13)^A48),9) * 2,ROUND(1/((1+simulador_1!$Q$13)^A48),9))) -> 0.660853081 | G48: 36.67457126 | H48: =+COUNTIF($E$4:E48,"C") -> 0
A49: 46 | B49: 46 | C49: 2026-08-12 | D49: 8 | E49: =IF(ISERROR(MATCH(D49,simulador_1!$H$16:$H$17,0))=FALSE,"C",IF(ISERROR(MATCH(D49,simulador_1!$H$18:$H$19,0))=FALSE,"D","")) ->  | F49: =IF(E49="C",0,IF(E49 ="D",ROUND(1/((1+simulador_1!$Q$13)^A49),9) * 2,ROUND(1/((1+simulador_1!$Q$13)^A49),9))) -> 0.654797859 | G49: 37.32936912 | H49: =+COUNTIF($E$4:E49,"C") -> 0
A50: 47 | B50: 47 | C50: 2026-09-12 | D50: 9 | E50: =IF(ISERROR(MATCH(D50,simulador_1!$H$16:$H$17,0))=FALSE,"C",IF(ISERROR(MATCH(D50,simulador_1!$H$18:$H$19,0))=FALSE,"D","")) ->  | F50: =IF(E50="C",0,IF(E50 ="D",ROUND(1/((1+simulador_1!$Q$13)^A50),9) * 2,ROUND(1/((1+simulador_1!$Q$13)^A50),9))) -> 0.648798119 | G50: 37.97816723 | H50: =+COUNTIF($E$4:E50,"C") -> 0
A51: 48 | B51: 48 | C51: 2026-10-12 | D51: 10 | E51: =IF(ISERROR(MATCH(D51,simulador_1!$H$16:$H$17,0))=FALSE,"C",IF(ISERROR(MATCH(D51,simulador_1!$H$18:$H$19,0))=FALSE,"D","")) ->  | F51: =IF(E51="C",0,IF(E51 ="D",ROUND(1/((1+simulador_1!$Q$13)^A51),9) * 2,ROUND(1/((1+simulador_1!$Q$13)^A51),9))) -> 0.642853353 | G51: 38.62102059 | H51: =+COUNTIF($E$4:E51,"C") -> 0
A52: 49 | B52: 49 | C52: 2026-11-12 | D52: 11 | E52: =IF(ISERROR(MATCH(D52,simulador_1!$H$16:$H$17,0))=FALSE,"C",IF(ISERROR(MATCH(D52,simulador_1!$H$18:$H$19,0))=FALSE,"D","")) ->  | F52: =IF(E52="C",0,IF(E52 ="D",ROUND(1/((1+simulador_1!$Q$13)^A52),9) * 2,ROUND(1/((1+simulador_1!$Q$13)^A52),9))) -> 0.636963058 | G52: 39.25798365 | H52: =+COUNTIF($E$4:E52,"C") -> 0
A53: 50 | B53: 50 | C53: 2026-12-12 | D53: 12 | E53: =IF(ISERROR(MATCH(D53,simulador_1!$H$16:$H$17,0))=FALSE,"C",IF(ISERROR(MATCH(D53,simulador_1!$H$18:$H$19,0))=FALSE,"D","")) ->  | F53: =IF(E53="C",0,IF(E53 ="D",ROUND(1/((1+simulador_1!$Q$13)^A53),9) * 2,ROUND(1/((1+simulador_1!$Q$13)^A53),9))) -> 0.631126734 | G53: 39.88911038 | H53: =+COUNTIF($E$4:E53,"C") -> 0
A54: 51 | B54: 51 | C54: 2027-01-12 | D54: 1 | E54: =IF(ISERROR(MATCH(D54,simulador_1!$H$16:$H$17,0))=FALSE,"C",IF(ISERROR(MATCH(D54,simulador_1!$H$18:$H$19,0))=FALSE,"D","")) ->  | F54: =IF(E54="C",0,IF(E54 ="D",ROUND(1/((1+simulador_1!$Q$13)^A54),9) * 2,ROUND(1/((1+simulador_1!$Q$13)^A54),9))) -> 0.625343886 | G54: 40.51445427 | H54: =+COUNTIF($E$4:E54,"C") -> 0
A55: 52 | B55: 52 | C55: 2027-02-12 | D55: 2 | E55: =IF(ISERROR(MATCH(D55,simulador_1!$H$16:$H$17,0))=FALSE,"C",IF(ISERROR(MATCH(D55,simulador_1!$H$18:$H$19,0))=FALSE,"D","")) ->  | F55: =IF(E55="C",0,IF(E55 ="D",ROUND(1/((1+simulador_1!$Q$13)^A55),9) * 2,ROUND(1/((1+simulador_1!$Q$13)^A55),9))) -> 0.619614025 | G55: 41.13406829 | H55: =+COUNTIF($E$4:E55,"C") -> 0
A56: 53 | B56: 53 | C56: 2027-03-12 | D56: 3 | E56: =IF(ISERROR(MATCH(D56,simulador_1!$H$16:$H$17,0))=FALSE,"C",IF(ISERROR(MATCH(D56,simulador_1!$H$18:$H$19,0))=FALSE,"D","")) ->  | F56: =IF(E56="C",0,IF(E56 ="D",ROUND(1/((1+simulador_1!$Q$13)^A56),9) * 2,ROUND(1/((1+simulador_1!$Q$13)^A56),9))) -> 0.613936666 | G56: 41.74800496 | H56: =+COUNTIF($E$4:E56,"C") -> 0
A57: 54 | B57: 54 | C57: 2027-04-12 | D57: 4 | E57: =IF(ISERROR(MATCH(D57,simulador_1!$H$16:$H$17,0))=FALSE,"C",IF(ISERROR(MATCH(D57,simulador_1!$H$18:$H$19,0))=FALSE,"D","")) ->  | F57: =IF(E57="C",0,IF(E57 ="D",ROUND(1/((1+simulador_1!$Q$13)^A57),9) * 2,ROUND(1/((1+simulador_1!$Q$13)^A57),9))) -> 0.608311326 | G57: 42.35631628 | H57: =+COUNTIF($E$4:E57,"C") -> 0
A58: 55 | B58: 55 | C58: 2027-05-12 | D58: 5 | E58: =IF(ISERROR(MATCH(D58,simulador_1!$H$16:$H$17,0))=FALSE,"C",IF(ISERROR(MATCH(D58,simulador_1!$H$18:$H$19,0))=FALSE,"D","")) ->  | F58: =IF(E58="C",0,IF(E58 ="D",ROUND(1/((1+simulador_1!$Q$13)^A58),9) * 2,ROUND(1/((1+simulador_1!$Q$13)^A58),9))) -> 0.60273753 | G58: 42.95905381 | H58: =+COUNTIF($E$4:E58,"C") -> 0
A59: 56 | B59: 56 | C59: 2027-06-12 | D59: 6 | E59: =IF(ISERROR(MATCH(D59,simulador_1!$H$16:$H$17,0))=FALSE,"C",IF(ISERROR(MATCH(D59,simulador_1!$H$18:$H$19,0))=FALSE,"D","")) ->  | F59: =IF(E59="C",0,IF(E59 ="D",ROUND(1/((1+simulador_1!$Q$13)^A59),9) * 2,ROUND(1/((1+simulador_1!$Q$13)^A59),9))) -> 0.597214806 | G59: 43.55626862 | H59: =+COUNTIF($E$4:E59,"C") -> 0
A60: 57 | B60: 57 | C60: 2027-07-12 | D60: 7 | E60: =IF(ISERROR(MATCH(D60,simulador_1!$H$16:$H$17,0))=FALSE,"C",IF(ISERROR(MATCH(D60,simulador_1!$H$18:$H$19,0))=FALSE,"D","")) ->  | F60: =IF(E60="C",0,IF(E60 ="D",ROUND(1/((1+simulador_1!$Q$13)^A60),9) * 2,ROUND(1/((1+simulador_1!$Q$13)^A60),9))) -> 0.591742684 | G60: 44.1480113 | H60: =+COUNTIF($E$4:E60,"C") -> 0
A61: 58 | B61: 58 | C61: 2027-08-12 | D61: 8 | E61: =IF(ISERROR(MATCH(D61,simulador_1!$H$16:$H$17,0))=FALSE,"C",IF(ISERROR(MATCH(D61,simulador_1!$H$18:$H$19,0))=FALSE,"D","")) ->  | F61: =IF(E61="C",0,IF(E61 ="D",ROUND(1/((1+simulador_1!$Q$13)^A61),9) * 2,ROUND(1/((1+simulador_1!$Q$13)^A61),9))) -> 0.586320702 | G61: 44.734332 | H61: =+COUNTIF($E$4:E61,"C") -> 0
A62: 59 | B62: 59 | C62: 2027-09-12 | D62: 9 | E62: =IF(ISERROR(MATCH(D62,simulador_1!$H$16:$H$17,0))=FALSE,"C",IF(ISERROR(MATCH(D62,simulador_1!$H$18:$H$19,0))=FALSE,"D","")) ->  | F62: =IF(E62="C",0,IF(E62 ="D",ROUND(1/((1+simulador_1!$Q$13)^A62),9) * 2,ROUND(1/((1+simulador_1!$Q$13)^A62),9))) -> 0.580948401 | G62: 45.31528041 | H62: =+COUNTIF($E$4:E62,"C") -> 0
A63: 60 | B63: 60 | C63: 2027-10-12 | D63: 10 | E63: =IF(ISERROR(MATCH(D63,simulador_1!$H$16:$H$17,0))=FALSE,"C",IF(ISERROR(MATCH(D63,simulador_1!$H$18:$H$19,0))=FALSE,"D","")) ->  | F63: =IF(E63="C",0,IF(E63 ="D",ROUND(1/((1+simulador_1!$Q$13)^A63),9) * 2,ROUND(1/((1+simulador_1!$Q$13)^A63),9))) -> 0.575625324 | G63: 45.89090573 | H63: =+COUNTIF($E$4:E63,"C") -> 0
A64: 61 | B64: 61 | C64: 2027-11-12 | D64: 11 | E64: =IF(ISERROR(MATCH(D64,simulador_1!$H$16:$H$17,0))=FALSE,"C",IF(ISERROR(MATCH(D64,simulador_1!$H$18:$H$19,0))=FALSE,"D","")) ->  | F64: =IF(E64="C",0,IF(E64 ="D",ROUND(1/((1+simulador_1!$Q$13)^A64),9) * 2,ROUND(1/((1+simulador_1!$Q$13)^A64),9))) -> 0.570351021 | G64: 46.46125675 | H64: =+COUNTIF($E$4:E64,"C") -> 0
A65: 62 | B65: 62 | C65: 2027-12-12 | D65: 12 | E65: =IF(ISERROR(MATCH(D65,simulador_1!$H$16:$H$17,0))=FALSE,"C",IF(ISERROR(MATCH(D65,simulador_1!$H$18:$H$19,0))=FALSE,"D","")) ->  | F65: =IF(E65="C",0,IF(E65 ="D",ROUND(1/((1+simulador_1!$Q$13)^A65),9) * 2,ROUND(1/((1+simulador_1!$Q$13)^A65),9))) -> 0.565125046 | G65: 47.0263818 | H65: =+COUNTIF($E$4:E65,"C") -> 0
A66: 63 | B66: 63 | C66: 2028-01-12 | D66: 1 | E66: =IF(ISERROR(MATCH(D66,simulador_1!$H$16:$H$17,0))=FALSE,"C",IF(ISERROR(MATCH(D66,simulador_1!$H$18:$H$19,0))=FALSE,"D","")) ->  | F66: =IF(E66="C",0,IF(E66 ="D",ROUND(1/((1+simulador_1!$Q$13)^A66),9) * 2,ROUND(1/((1+simulador_1!$Q$13)^A66),9))) -> 0.559946954 | G66: 47.58632875 | H66: =+COUNTIF($E$4:E66,"C") -> 0
A67: 64 | B67: 64 | C67: 2028-02-12 | D67: 2 | E67: =IF(ISERROR(MATCH(D67,simulador_1!$H$16:$H$17,0))=FALSE,"C",IF(ISERROR(MATCH(D67,simulador_1!$H$18:$H$19,0))=FALSE,"D","")) ->  | F67: =IF(E67="C",0,IF(E67 ="D",ROUND(1/((1+simulador_1!$Q$13)^A67),9) * 2,ROUND(1/((1+simulador_1!$Q$13)^A67),9))) -> 0.554816308 | G67: 48.14114506 | H67: =+COUNTIF($E$4:E67,"C") -> 0
A68: 65 | B68: 65 | C68: 2028-03-12 | D68: =MONTH(C68) -> 3 | E68: =IF(ISERROR(MATCH(D68,simulador_1!$H$16:$H$17,0))=FALSE,"C",IF(ISERROR(MATCH(D68,simulador_1!$H$18:$H$19,0))=FALSE,"D","")) ->  | F68: =IF(E68="C",0,IF(E68 ="D",ROUND(1/((1+simulador_1!$Q$13)^A68),9) * 2,ROUND(1/((1+simulador_1!$Q$13)^A68),9))) -> 0.549732673 | G68: 48.69087773 | H68: =+COUNTIF($E$4:E68,"C") -> 0
A69: =A68+1 -> 66 | B69: =IF(E69<>"C",IF(ISERROR(1+B68)=TRUE,1,1+B68),IF(ISNUMBER(B68),B68,1)) -> 66 | C69: =DATE(YEAR(C68) + 1/12,MONTH(C68)+1,DAY(C68)) -> 2028-04-12 | D69: 4 | E69: =IF(ISERROR(MATCH(D69,simulador_1!$H$16:$H$17,0))=FALSE,"C",IF(ISERROR(MATCH(D69,simulador_1!$H$18:$H$19,0))=FALSE,"D","")) ->  | F69: =IF(E69="C",0,IF(E69 ="D",ROUND(1/((1+simulador_1!$Q$13)^A69),9) * 2,ROUND(1/((1+simulador_1!$Q$13)^A69),9))) -> 0.544695618 | G69: 49.23557335 | H69: =+COUNTIF($E$4:E69,"C") -> 0
A70: 67 | B70: 67 | C70: 2028-05-12 | D70: 5 | E70: =IF(ISERROR(MATCH(D70,simulador_1!$H$16:$H$17,0))=FALSE,"C",IF(ISERROR(MATCH(D70,simulador_1!$H$18:$H$19,0))=FALSE,"D","")) ->  | F70: =IF(E70="C",0,IF(E70 ="D",ROUND(1/((1+simulador_1!$Q$13)^A70),9) * 2,ROUND(1/((1+simulador_1!$Q$13)^A70),9))) -> 0.539704716 | G70: =G69+ROUND(F70,9) -> 49.77527807 | H70: =+COUNTIF($E$4:E70,"C") -> 0
A71: 68 | B71: 68 | C71: 2028-06-12 | D71: 6 | E71: =IF(ISERROR(MATCH(D71,simulador_1!$H$16:$H$17,0))=FALSE,"C",IF(ISERROR(MATCH(D71,simulador_1!$H$18:$H$19,0))=FALSE,"D","")) ->  | F71: =IF(E71="C",0,IF(E71 ="D",ROUND(1/((1+simulador_1!$Q$13)^A71),9) * 2,ROUND(1/((1+simulador_1!$Q$13)^A71),9))) -> 0.534759544 | G71: 50.31003761 | H71: =+COUNTIF($E$4:E71,"C") -> 0
A72: 69 | B72: 69 | C72: 2028-07-12 | D72: 7 | E72: =IF(ISERROR(MATCH(D72,simulador_1!$H$16:$H$17,0))=FALSE,"C",IF(ISERROR(MATCH(D72,simulador_1!$H$18:$H$19,0))=FALSE,"D","")) ->  | F72: =IF(E72="C",0,IF(E72 ="D",ROUND(1/((1+simulador_1!$Q$13)^A72),9) * 2,ROUND(1/((1+simulador_1!$Q$13)^A72),9))) -> 0.529859684 | G72: 50.83989729 | H72: =+COUNTIF($E$4:E72,"C") -> 0
A73: 70 | B73: =IF(E73<>"C",IF(ISERROR(1+B72)=TRUE,1,1+B72),IF(ISNUMBER(B72),B72,1)) -> 70 | C73: 2028-08-12 | D73: 8 | E73: =IF(ISERROR(MATCH(D73,simulador_1!$H$16:$H$17,0))=FALSE,"C",IF(ISERROR(MATCH(D73,simulador_1!$H$18:$H$19,0))=FALSE,"D","")) ->  | F73: =IF(E73="C",0,IF(E73 ="D",ROUND(1/((1+simulador_1!$Q$13)^A73),9) * 2,ROUND(1/((1+simulador_1!$Q$13)^A73),9))) -> 0.525004719 | G73: 51.36490201 | H73: =+COUNTIF($E$4:E73,"C") -> 0
A74: 71 | B74: 71 | C74: 2028-09-12 | D74: 9 | E74: =IF(ISERROR(MATCH(D74,simulador_1!$H$16:$H$17,0))=FALSE,"C",IF(ISERROR(MATCH(D74,simulador_1!$H$18:$H$19,0))=FALSE,"D","")) ->  | F74: =IF(E74="C",0,IF(E74 ="D",ROUND(1/((1+simulador_1!$Q$13)^A74),9) * 2,ROUND(1/((1+simulador_1!$Q$13)^A74),9))) -> 0.52019424 | G74: 51.88509625 | H74: =+COUNTIF($E$4:E74,"C") -> 0
A75: 72 | B75: 72 | C75: 2028-10-12 | D75: 10 | E75: =IF(ISERROR(MATCH(D75,simulador_1!$H$16:$H$17,0))=FALSE,"C",IF(ISERROR(MATCH(D75,simulador_1!$H$18:$H$19,0))=FALSE,"D","")) ->  | F75: =IF(E75="C",0,IF(E75 ="D",ROUND(1/((1+simulador_1!$Q$13)^A75),9) * 2,ROUND(1/((1+simulador_1!$Q$13)^A75),9))) -> 0.515427837 | G75: 52.40052409 | H75: =+COUNTIF($E$4:E75,"C") -> 0
A76: 73 | B76: 73 | C76: 2028-11-12 | D76: 11 | E76: =IF(ISERROR(MATCH(D76,simulador_1!$H$16:$H$17,0))=FALSE,"C",IF(ISERROR(MATCH(D76,simulador_1!$H$18:$H$19,0))=FALSE,"D","")) ->  | F76: =IF(E76="C",0,IF(E76 ="D",ROUND(1/((1+simulador_1!$Q$13)^A76),9) * 2,ROUND(1/((1+simulador_1!$Q$13)^A76),9))) -> 0.510705108 | G76: 52.9112292 | H76: =+COUNTIF($E$4:E76,"C") -> 0
A77: 74 | B77: 74 | C77: 2028-12-12 | D77: 12 | E77: =IF(ISERROR(MATCH(D77,simulador_1!$H$16:$H$17,0))=FALSE,"C",IF(ISERROR(MATCH(D77,simulador_1!$H$18:$H$19,0))=FALSE,"D","")) ->  | F77: =IF(E77="C",0,IF(E77 ="D",ROUND(1/((1+simulador_1!$Q$13)^A77),9) * 2,ROUND(1/((1+simulador_1!$Q$13)^A77),9))) -> 0.506025652 | G77: 53.41725485 | H77: =+COUNTIF($E$4:E77,"C") -> 0
A78: 75 | B78: 75 | C78: 2029-01-12 | D78: 1 | E78: =IF(ISERROR(MATCH(D78,simulador_1!$H$16:$H$17,0))=FALSE,"C",IF(ISERROR(MATCH(D78,simulador_1!$H$18:$H$19,0))=FALSE,"D","")) ->  | F78: =IF(E78="C",0,IF(E78 ="D",ROUND(1/((1+simulador_1!$Q$13)^A78),9) * 2,ROUND(1/((1+simulador_1!$Q$13)^A78),9))) -> 0.501389073 | G78: 53.91864392 | H78: =+COUNTIF($E$4:E78,"C") -> 0
A79: 76 | B79: 76 | C79: 2029-02-12 | D79: 2 | E79: =IF(ISERROR(MATCH(D79,simulador_1!$H$16:$H$17,0))=FALSE,"C",IF(ISERROR(MATCH(D79,simulador_1!$H$18:$H$19,0))=FALSE,"D","")) ->  | F79: =IF(E79="C",0,IF(E79 ="D",ROUND(1/((1+simulador_1!$Q$13)^A79),9) * 2,ROUND(1/((1+simulador_1!$Q$13)^A79),9))) -> 0.496794977 | G79: 54.4154389 | H79: =+COUNTIF($E$4:E79,"C") -> 0
A80: 77 | B80: 77 | C80: 2029-03-12 | D80: 3 | E80: =IF(ISERROR(MATCH(D80,simulador_1!$H$16:$H$17,0))=FALSE,"C",IF(ISERROR(MATCH(D80,simulador_1!$H$18:$H$19,0))=FALSE,"D","")) ->  | F80: =IF(E80="C",0,IF(E80 ="D",ROUND(1/((1+simulador_1!$Q$13)^A80),9) * 2,ROUND(1/((1+simulador_1!$Q$13)^A80),9))) -> 0.492242976 | G80: 54.90768188 | H80: =+COUNTIF($E$4:E80,"C") -> 0
A81: 78 | B81: 78 | C81: 2029-04-12 | D81: 4 | E81: =IF(ISERROR(MATCH(D81,simulador_1!$H$16:$H$17,0))=FALSE,"C",IF(ISERROR(MATCH(D81,simulador_1!$H$18:$H$19,0))=FALSE,"D","")) ->  | F81: =IF(E81="C",0,IF(E81 ="D",ROUND(1/((1+simulador_1!$Q$13)^A81),9) * 2,ROUND(1/((1+simulador_1!$Q$13)^A81),9))) -> 0.487732684 | G81: 55.39541456 | H81: =+COUNTIF($E$4:E81,"C") -> 0
A82: 79 | B82: 79 | C82: 2029-05-12 | D82: 5 | E82: =IF(ISERROR(MATCH(D82,simulador_1!$H$16:$H$17,0))=FALSE,"C",IF(ISERROR(MATCH(D82,simulador_1!$H$18:$H$19,0))=FALSE,"D","")) ->  | F82: =IF(E82="C",0,IF(E82 ="D",ROUND(1/((1+simulador_1!$Q$13)^A82),9) * 2,ROUND(1/((1+simulador_1!$Q$13)^A82),9))) -> 0.483263718 | G82: 55.87867828 | H82: =+COUNTIF($E$4:E82,"C") -> 0
A83: 80 | B83: 80 | C83: 2029-06-12 | D83: 6 | E83: =IF(ISERROR(MATCH(D83,simulador_1!$H$16:$H$17,0))=FALSE,"C",IF(ISERROR(MATCH(D83,simulador_1!$H$18:$H$19,0))=FALSE,"D","")) ->  | F83: =IF(E83="C",0,IF(E83 ="D",ROUND(1/((1+simulador_1!$Q$13)^A83),9) * 2,ROUND(1/((1+simulador_1!$Q$13)^A83),9))) -> 0.478835701 | G83: 56.35751398 | H83: =+COUNTIF($E$4:E83,"C") -> 0
A84: 81 | B84: 81 | C84: 2029-07-12 | D84: 7 | E84: =IF(ISERROR(MATCH(D84,simulador_1!$H$16:$H$17,0))=FALSE,"C",IF(ISERROR(MATCH(D84,simulador_1!$H$18:$H$19,0))=FALSE,"D","")) ->  | F84: =IF(E84="C",0,IF(E84 ="D",ROUND(1/((1+simulador_1!$Q$13)^A84),9) * 2,ROUND(1/((1+simulador_1!$Q$13)^A84),9))) -> 0.474448256 | G84: 56.83196224 | H84: =+COUNTIF($E$4:E84,"C") -> 0
A85: 82 | B85: 82 | C85: 2029-08-12 | D85: 8 | E85: =IF(ISERROR(MATCH(D85,simulador_1!$H$16:$H$17,0))=FALSE,"C",IF(ISERROR(MATCH(D85,simulador_1!$H$18:$H$19,0))=FALSE,"D","")) ->  | F85: =IF(E85="C",0,IF(E85 ="D",ROUND(1/((1+simulador_1!$Q$13)^A85),9) * 2,ROUND(1/((1+simulador_1!$Q$13)^A85),9))) -> 0.470101012 | G85: 57.30206325 | H85: =+COUNTIF($E$4:E85,"C") -> 0
A86: 83 | B86: 83 | C86: 2029-09-12 | D86: 9 | E86: =IF(ISERROR(MATCH(D86,simulador_1!$H$16:$H$17,0))=FALSE,"C",IF(ISERROR(MATCH(D86,simulador_1!$H$18:$H$19,0))=FALSE,"D","")) ->  | F86: =IF(E86="C",0,IF(E86 ="D",ROUND(1/((1+simulador_1!$Q$13)^A86),9) * 2,ROUND(1/((1+simulador_1!$Q$13)^A86),9))) -> 0.4657936 | G86: 57.76785685 | H86: =+COUNTIF($E$4:E86,"C") -> 0
A87: 84 | B87: 84 | C87: 2029-10-12 | D87: 10 | E87: =IF(ISERROR(MATCH(D87,simulador_1!$H$16:$H$17,0))=FALSE,"C",IF(ISERROR(MATCH(D87,simulador_1!$H$18:$H$19,0))=FALSE,"D","")) ->  | F87: =IF(E87="C",0,IF(E87 ="D",ROUND(1/((1+simulador_1!$Q$13)^A87),9) * 2,ROUND(1/((1+simulador_1!$Q$13)^A87),9))) -> 0.461525657 | G87: 58.2293825 | H87: =+COUNTIF($E$4:E87,"C") -> 0
A88: 85 | B88: 85 | C88: 2029-11-12 | D88: 11 | E88: =IF(ISERROR(MATCH(D88,simulador_1!$H$16:$H$17,0))=FALSE,"C",IF(ISERROR(MATCH(D88,simulador_1!$H$18:$H$19,0))=FALSE,"D","")) ->  | F88: =IF(E88="C",0,IF(E88 ="D",ROUND(1/((1+simulador_1!$Q$13)^A88),9) * 2,ROUND(1/((1+simulador_1!$Q$13)^A88),9))) -> 0.457296819 | G88: 58.68667932 | H88: =+COUNTIF($E$4:E88,"C") -> 0
A89: 86 | B89: 86 | C89: 2029-12-12 | D89: 12 | E89: =IF(ISERROR(MATCH(D89,simulador_1!$H$16:$H$17,0))=FALSE,"C",IF(ISERROR(MATCH(D89,simulador_1!$H$18:$H$19,0))=FALSE,"D","")) ->  | F89: =IF(E89="C",0,IF(E89 ="D",ROUND(1/((1+simulador_1!$Q$13)^A89),9) * 2,ROUND(1/((1+simulador_1!$Q$13)^A89),9))) -> 0.453106729 | G89: 59.13978605 | H89: =+COUNTIF($E$4:E89,"C") -> 0
A90: 87 | B90: 87 | C90: 2030-01-12 | D90: 1 | E90: =IF(ISERROR(MATCH(D90,simulador_1!$H$16:$H$17,0))=FALSE,"C",IF(ISERROR(MATCH(D90,simulador_1!$H$18:$H$19,0))=FALSE,"D","")) ->  | F90: =IF(E90="C",0,IF(E90 ="D",ROUND(1/((1+simulador_1!$Q$13)^A90),9) * 2,ROUND(1/((1+simulador_1!$Q$13)^A90),9))) -> 0.448955032 | G90: 59.58874108 | H90: =+COUNTIF($E$4:E90,"C") -> 0
A91: 88 | B91: 88 | C91: 2030-02-12 | D91: 2 | E91: =IF(ISERROR(MATCH(D91,simulador_1!$H$16:$H$17,0))=FALSE,"C",IF(ISERROR(MATCH(D91,simulador_1!$H$18:$H$19,0))=FALSE,"D","")) ->  | F91: =IF(E91="C",0,IF(E91 ="D",ROUND(1/((1+simulador_1!$Q$13)^A91),9) * 2,ROUND(1/((1+simulador_1!$Q$13)^A91),9))) -> 0.444841375 | G91: 60.03358246 | H91: =+COUNTIF($E$4:E91,"C") -> 0
A92: 89 | B92: 89 | C92: 2030-03-12 | D92: 3 | E92: =IF(ISERROR(MATCH(D92,simulador_1!$H$16:$H$17,0))=FALSE,"C",IF(ISERROR(MATCH(D92,simulador_1!$H$18:$H$19,0))=FALSE,"D","")) ->  | F92: =IF(E92="C",0,IF(E92 ="D",ROUND(1/((1+simulador_1!$Q$13)^A92),9) * 2,ROUND(1/((1+simulador_1!$Q$13)^A92),9))) -> 0.440765411 | G92: 60.47434787 | H92: =+COUNTIF($E$4:E92,"C") -> 0
A93: 90 | B93: 90 | C93: 2030-04-12 | D93: 4 | E93: =IF(ISERROR(MATCH(D93,simulador_1!$H$16:$H$17,0))=FALSE,"C",IF(ISERROR(MATCH(D93,simulador_1!$H$18:$H$19,0))=FALSE,"D","")) ->  | F93: =IF(E93="C",0,IF(E93 ="D",ROUND(1/((1+simulador_1!$Q$13)^A93),9) * 2,ROUND(1/((1+simulador_1!$Q$13)^A93),9))) -> 0.436726794 | G93: 60.91107466 | H93: =+COUNTIF($E$4:E93,"C") -> 0
A94: 91 | B94: 91 | C94: 2030-05-12 | D94: 5 | E94: =IF(ISERROR(MATCH(D94,simulador_1!$H$16:$H$17,0))=FALSE,"C",IF(ISERROR(MATCH(D94,simulador_1!$H$18:$H$19,0))=FALSE,"D","")) ->  | F94: =IF(E94="C",0,IF(E94 ="D",ROUND(1/((1+simulador_1!$Q$13)^A94),9) * 2,ROUND(1/((1+simulador_1!$Q$13)^A94),9))) -> 0.432725182 | G94: 61.34379985 | H94: =+COUNTIF($E$4:E94,"C") -> 0
A95: 92 | B95: 92 | C95: 2030-06-12 | D95: 6 | E95: =IF(ISERROR(MATCH(D95,simulador_1!$H$16:$H$17,0))=FALSE,"C",IF(ISERROR(MATCH(D95,simulador_1!$H$18:$H$19,0))=FALSE,"D","")) ->  | F95: =IF(E95="C",0,IF(E95 ="D",ROUND(1/((1+simulador_1!$Q$13)^A95),9) * 2,ROUND(1/((1+simulador_1!$Q$13)^A95),9))) -> 0.428760236 | G95: 61.77256008 | H95: =+COUNTIF($E$4:E95,"C") -> 0
A96: 93 | B96: 93 | C96: 2030-07-12 | D96: 7 | E96: =IF(ISERROR(MATCH(D96,simulador_1!$H$16:$H$17,0))=FALSE,"C",IF(ISERROR(MATCH(D96,simulador_1!$H$18:$H$19,0))=FALSE,"D","")) ->  | F96: =IF(E96="C",0,IF(E96 ="D",ROUND(1/((1+simulador_1!$Q$13)^A96),9) * 2,ROUND(1/((1+simulador_1!$Q$13)^A96),9))) -> 0.424831619 | G96: 62.1973917 | H96: =+COUNTIF($E$4:E96,"C") -> 0
A97: 94 | B97: 94 | C97: 2030-08-12 | D97: 8 | E97: =IF(ISERROR(MATCH(D97,simulador_1!$H$16:$H$17,0))=FALSE,"C",IF(ISERROR(MATCH(D97,simulador_1!$H$18:$H$19,0))=FALSE,"D","")) ->  | F97: =IF(E97="C",0,IF(E97 ="D",ROUND(1/((1+simulador_1!$Q$13)^A97),9) * 2,ROUND(1/((1+simulador_1!$Q$13)^A97),9))) -> 0.420938999 | G97: 62.6183307 | H97: =+COUNTIF($E$4:E97,"C") -> 0
A98: 95 | B98: 95 | C98: 2030-09-12 | D98: 9 | E98: =IF(ISERROR(MATCH(D98,simulador_1!$H$16:$H$17,0))=FALSE,"C",IF(ISERROR(MATCH(D98,simulador_1!$H$18:$H$19,0))=FALSE,"D","")) ->  | F98: =IF(E98="C",0,IF(E98 ="D",ROUND(1/((1+simulador_1!$Q$13)^A98),9) * 2,ROUND(1/((1+simulador_1!$Q$13)^A98),9))) -> 0.417082046 | G98: 63.03541275 | H98: =+COUNTIF($E$4:E98,"C") -> 0
A99: 96 | B99: 96 | C99: 2030-10-12 | D99: 10 | E99: =IF(ISERROR(MATCH(D99,simulador_1!$H$16:$H$17,0))=FALSE,"C",IF(ISERROR(MATCH(D99,simulador_1!$H$18:$H$19,0))=FALSE,"D","")) ->  | F99: =IF(E99="C",0,IF(E99 ="D",ROUND(1/((1+simulador_1!$Q$13)^A99),9) * 2,ROUND(1/((1+simulador_1!$Q$13)^A99),9))) -> 0.413260434 | G99: 63.44867318 | H99: =+COUNTIF($E$4:E99,"C") -> 0

Sheet Simulador Original (hidden)
C2: SIMULADOR DE CUOTAS - CRÉDITO CONVENIOS
C5: Importe Solicitado | G5: =+RESUMEN!$C$2 -> 33050 | K5: Fecha Desembolso | P5: =+RESUMEN!$C$6 -> 2022-04-28
C6: Saldo de Capital | G6: =G5 -> 33050 | K6: Fecha Final de Gracia | P6: =DATE(YEAR(P5+G14),MONTH(P5 + G14),DAY(P5 +G14)) -> 2022-05-15
C7: Saldo de Interes | G7: 0 | K7: Fecha de la 1° cuota | P7: =DATE(YEAR(EDATE(P6,1)),MONTH(EDATE(P6,1)),DAY(EDATE(P6,1))) -> 2022-06-15
C8: Tasa Anual (TEA) | G8: =+RESUMEN!$C$3 -> 13.5 | H8: Tasa de Gracia | I8: =G8 -> 13.5 | K8: Fecha final de vencimiento | P8: =IF(OR($G$16>0,$G$17>0),VLOOKUP($G$12,$A$32:$C$120,3,0),DATE(YEAR(EDATE(P6,G12)),MONTH(EDATE(P6,G12)),DAY(EDATE(P6,G12)))) -> 2027-05-15
C9: Tasa de Seguro de Desgravámen | G9: =+RESUMEN!$C$4 -> 0.00015 | K9: Base | P9: 360
K10: Frecuencia pago en días | P10: 30
C11: Comisiones + Pago Casillero | G11: =+RESUMEN!$C$7 -> 3.03 | K11: Tasa Equivalente | P11: =ROUND((((G8/100+1)^(1/(P9/P10))-1)*P9/P10)*100,6) -> 12.730317 | Q11: tea conv. A tem luego nominal anual
C12: Plazo y Nro. Cuotas (Aplicar Si hay Mes No Pago) | G12: =+G13-VLOOKUP($G$13,'Calculos Original'!$A$4:$H$99,8,0) -> 50 | H12: =+G12 -> 50 | K12: Días entre cuotas | P12: =(P8-P6)/G12 -> 36.52 | Q12: dias promedio entre cuotas
C13: Plazo y Nro. Cuotas | G13: =+RESUMEN!$C$5 -> 60 | K13: Factor Aplicado | P13: =($P$11/100)/($P$9/$P$12) -> 0.01291419936 | Q13: tem convertida de manera nominal a los dias entre cuotas
C14: Días de Gracia | G14: =+RESUMEN!$C$8 -> 17 | K14: Factor Aplicado para la cuota | P14: =1/((1-((1+$P$13)^(-1*$G$12)))/$P$13) -> 0.02727172818 | Q14: Factor de cuota (ok)
C15: (+/- 30 días antes de la fecha 1° cuota) | K15: Interes de Gracia | P15: =IF(G14>0,ROUND(G6*(((1+G8/100)^(ABS(G14)/P9))-1),4),ROUND(G6*(((1+G8/100)^(ABS(G14)/P9))-1),4) * -1) -> 198.227 | Q15: Ok
C16: Mes de No Pago 1 | G16: =+RESUMEN!$C$9 -> 1 | K16: Saldo Interes +/- Interes Gracia | P16: =IF(G7 + P15>0,G7+ P15,0) -> 198.227
C17: Mes de No Pago 2 | G17: =+RESUMEN!$C$10 -> 6
C18: Mes Cuota Doble 1 | G18: 0 | K18: Comisión de Gracia Desgravamen (Primera Cuota) | P18: =IF(G14>0,ROUNDDOWN(G5 * G9/30*G14,2),0) -> 2.8
C19: Mes Cuota Doble 2 | G19: 0 | S19: 994.12
I20: =REDONDEAR(SI(O(F16+ F17> 0,F18 + F19>0),REDONDEAR.MAS(O16/BUSCARV(F13,Calculos!$A$3:$G$99,7,FALSO),2),O16*$O$14),2) | S20: 976.59
R21: =VLOOKUP(H12,$E$31:$R$103,14,FALSE) -> -6394.42 | S21: =S19-S20 -> 17.53
I22: Con Factor | J22: Con Minicronograma | L22: Suavización | N22: Ultimo saldo de Principal | P22: =VLOOKUP(H12,$E$31:$R$103,14,FALSE) - VLOOKUP(H12,$E$31:$T$103,16,FALSE) -> -6394.42 | R22: =-VLOOKUP(H12,$E$31:$T$103,16,FALSE) -> 0
F23: Valor de cuota por dias de gracia | I23: =$P$16/($H$12*(1/((1+0)^($P$10/$P$9)))) -> 3.96454 | J23: =P16/SUM(W32:INDIRECT(CONCATENATE("V",32+H12-1))) -> 0.004208236997 | N23: Numero de Dias | P23: =P8-P6 -> 1826
F24: Valor de cuota por capital | I24: =ROUND(IF(OR(G16 + G17 > 0,G18 + G19>0), ROUNDUP(G6/VLOOKUP(G12,'Calculos Original'!$A$3:$G$99,7,FALSE),2),G6*$P$14),2) -> 1100 | J24: Promedio | K24: Exceso Desgravamen | N24: Valor de Cuota Nivelada | P24: =ROUND(+P22/ROUND(1*(((1+G8/100)^(P23/P9))-1),4),2) -> -7097.81 | R24: =+(((1+G8/100)^(P23/P9))-1) -> 0.9008648107 | S24: =+P22/R24 -> -7098.090551
F25: Seguro de Desgravamen (FPF) | I25: =ROUNDDOWN($G$5*$G$9,2) -> 4.95 | J25: =((I25*G12) + P18)/G12 -> 5.006 | K25: =J25-I25 -> 0.056 | N25: Factor Ajuste | P25: =P24*P14 -> -193.569545 | R25: Se copia el valor de la celda P26 solo en la primera corrida, siempre que sea mayor a cero
F26: Comisiones + Pago de Casillero | I26: =$G$11 -> 3.03 | N26: Exceso de Int + Gracia | P26: =SUM(S32:S46) -> 0 | Q26: =ROUND(IF(G16+ G17> 0,ROUNDUP($P$26/VLOOKUP(G12,'Calculos Original'!$A$3:$G$99,7,FALSE),2),$P$26*$P$14),2) -> 0 | R26: 0
N27: Factor Ajuste 2 | P27: =+P22/G12 -> -127.8884
F28: Cuota | I28: =I23+I24+I25+I26 -> 1111.94454 | J28: =I23+I24+J25+I26 -> 1112.00054 | N28: Digite Factor de Ajuste Anterior mas El Actual | P28: -101.9255357 | R28: =+R55 -> 17294.13 | S28: =-1727.55373262017+4756.46892161516+-13096.0030749489+6623.75341315595+6623.75341315595+-13664.6232949772+6623.75341315595+6623.75341315595+-12099.0469751545+6623.75341315595+6623.75341315595+-16409.571252974+6623.75341315595+6623.75341315595+-4541.40525297992+6623.75341315595-12357.0929427365+6623.75341315595+6623.75341315595+-15699.0688667145+6623.75341315595+6623.75341315595+-6497.61880707829
K29: =+(IF(ISERROR(MATCH(MONTH(C37),$G$18:$G$19,0))=FALSE,$I$24 + $P$28,0) + $I$24+$P$28+$R$26)-K37 -> 678.0344643 | S29: -460.279128302192
C30: =SI(O(MES(FECHA.MES($O$6,D32))=$F$16,MES(FECHA.MES($O$6,D32))=$F$17),SI(ABS($F$17-$F$16)=1,FECHA.MES($O$6,D32+2),FECHA.MES($O$6,D32+1)),FECHA.MES($O$6,D32)) | Q30: 2509.257971 | R30: =+Q32-Q30 -> -1499.238967 | V30: Minicronograma de Gracia
C31: Fecha Vcto. | D31: Nro. Cuota (De acuerdo a Plazo) | E31: Nro. Cuota | F31: Periodo Base | G31: Tasa | H31: Nro. Dias | I31: Principal | J31: Capital | K31: Interes | L31: Interes de Gracia | M31: Interes Total | N31: Valor Cuota | O31: Comision Envio Informacion | P31: Seguro de Desgravamen | Q31: Cuota | R31: Saldo Principal | S31: Exceso | T31: Importe de Gracia Desgravamen | V31: Dias Transcurridos Acumulados | W31: Factor Simple Actualizacion | X31: Principal | Y31: Capital | Z31: Interes | AA31: Cuota Gracia | AB31: Saldo Deuda
A32: 1 | B32: 1 | C32: =DATE(YEAR(EDATE($P$6,D32)),MONTH(EDATE($P$6,D32)),DAY(EDATE($P$6,D32))) -> 2022-07-15 | D32: =IF(OR(MONTH(P7)=G16, MONTH(P7)=G17),IF(ABS(G17-G16)=1,3,2),1) -> 2 | E32: =1 -> 1 | F32: =$P$9 -> 360 | G32: =$G$8 -> 13.5 | H32: =C32-P6 -> 61 | I32: =G6 -> 33050 | J32: =IF((IF(ISERROR(MATCH(MONTH(C32),$G$18:$G$19,0))=FALSE,$I$24 + $P$28,0) + $I$24+$P$28+$R$26)-K32-T32<0,0.01,IF(ISERROR(MATCH(MONTH(C32),$G$18:$G$19,0))=FALSE,$I$24 + $P$28,0)+ ($I$24+$P$28+$R$26)-K32- T32) -> 273.5044643 | K32: =IF($I$24+$P$28 + $R$26<ROUND(ROUND(I32*(((1+(G32/100))^(H32/F32))-1),4),2),$I$24+$P$28 + $R$26-0.01,IF(ROUND(ROUND(I32*(((1+(G32/100))^(H32/F32))-1),4),2)+ $R$26>$I$24,$I$24+ $R$26+-0.01,ROUND(ROUND(I32*(((1+(G32/100))^(H32/F32))-1),4),2)+$R$26)) -> 716.82 | L32: =IF(ISERROR(MATCH(MONTH(C32),$G$18:$G$19,0))=FALSE,$I$23,0) + $I$23 -> 3.96454 | M32: =K32+L32 -> 720.78454 | N32: =J32+K32 + L32 -> 994.2890043 | O32: =$I$26 -> 3.03 | P32: =$I$25 + T32 -> 12.7 | Q32: =N32+O32+P32 -> 1010.019004 | R32: =ROUND(I32-J32,2) -> 32776.5 | S32: =IF(ROUND(ROUND(I32*(((1+(G32/100))^(H32/F32))-1),4),2) - $I$24<0,0,ROUND(ROUND(I32*(((1+(G32/100))^(H32/F32))-1),4),2) - $I$24) -> 0 | T32: =(D32-E32)*ROUNDDOWN($G$5*$G$9/30*30,2) + ROUNDDOWN($G$5*$G$9/30*G14,2) -> 7.75 | U32: 2969.531304 | V32: =H32 -> 61 | W32: =1/((1+($I$8/100))^(V32/$P$9))*1 -> 0.9787713688 | X32: =P16 -> 198.227 | Y32: =AA32-Z32 -> -4.295149115 | Z32: =(((1+($I$8/100))^((H32)/$P$9))-1)*X32 -> 4.299357352 | AA32: =$J$23 -> 0.004208236997 | AB32: =X32-Y32 -> 202.5221491
A33: =+IF(A32>=$G$12,"",A32+1) -> 2 | B33: =IF(A33="","",IF(A33<=$H$21,0,1)) -> 1 | C33: =DATE(YEAR(EDATE($P$6,D33)),MONTH(EDATE($P$6,D33)),DAY(EDATE($P$6,D33))) -> 2022-08-15 | D33: =IF(OR(MONTH(DATE(YEAR(C32) + 1/12,MONTH(C32)+1,DAY(C32)))=$G$16,MONTH(DATE(YEAR(C32) + 1/12,MONTH(C32)+1,DAY(C32)))=$G$17),IF(ABS($G$17-$G$16)=1,D32+1,D32 + 2),D32 + 1) -> 3 | E33: =E32+1 -> 2 | F33: 360 | G33: =$G$8 -> 13.5 | H33: =C33-C32 -> 31 | I33: =+R32 -> 32776.5 | J33: =IF((IF(ISERROR(MATCH(MONTH(C33),$G$18:$G$19,0))=FALSE,$I$24 + $P$28,0) + $I$24+$P$28+$R$26)-K33-T33<0,0.01,IF(ISERROR(MATCH(MONTH(C33),$G$18:$G$19,0))=FALSE,$I$24 + $P$28,0)+ ($I$24+$P$28+$R$26)-K33- T33) -> 638.7044643 | K33: =IF($I$24+$P$28 + $R$26<ROUND(ROUND(I33*(((1+(G33/100))^(H33/F33))-1),4),2),$I$24+$P$28 + $R$26-0.01,IF(ROUND(ROUND(I33*(((1+(G33/100))^(H33/F33))-1),4),2)+ $R$26>$I$24,$I$24+ $R$26+-0.01,ROUND(ROUND(I33*(((1+(G33/100))^(H33/F33))-1),4),2)+$R$26)) -> 359.37 | L33: 3.96454 | M33: =K33+L33 -> 363.33454 | N33: 1002.039004 | O33: 3.03 | P33: =$I$25 + T33 -> 4.95 | Q33: 1010.019004 | R33: 32137.8 | S33: 0 | T33: =IF(D33-D32>1,ROUNDDOWN($G$5*$G$9/30*30,2),0) -> 0 | U33: 2969.531304 | V33: =V32+H33 -> 92 | W33: =1/((1+($I$8/100))^(V33/$P$9))*1 -> 0.9681563584 | X33: =AB32 -> 202.5221491 | Y33: =AA33-Z33 -> -2.21627474 | Z33: =(((1+($I$8/100))^((H33)/$P$9))-1)*X33 -> 2.220482977 | AA33: =$J$23 -> 0.004208236997 | AB33: =X33-Y33 -> 204.7384239
A34: 3 | B34: =IF(A34="","",IF(A34<=$H$21,0,1)) -> 1 | C34: =DATE(YEAR(EDATE($P$6,D34)),MONTH(EDATE($P$6,D34)),DAY(EDATE($P$6,D34))) -> 2022-09-15 | D34: =IF(OR(MONTH(DATE(YEAR(C33) + 1/12,MONTH(C33)+1,DAY(C33)))=$G$16,MONTH(DATE(YEAR(C33) + 1/12,MONTH(C33)+1,DAY(C33)))=$G$17),IF(ABS($G$17-$G$16)=1,D33+1,D33 + 2),D33 + 1) -> 4 | E34: =E33+1 -> 3 | F34: 360 | G34: 13.5 | H34: =C34-C33 -> 31 | I34: 32137.8 | J34: 645.7144643 | K34: 352.36 | L34: 3.96454 | M34: 356.32454 | N34: 1002.039004 | O34: 3.03 | P34: =$I$25 + T34 -> 4.95 | Q34: 1010.019004 | R34: 31492.09 | S34: 0 | T34: =IF(D34-D33>1,ROUNDDOWN($G$5*$G$9/30*30,2),0) -> 0 | U34: 2969.531304 | V34: =V33+H34 -> 123 | W34: 0.9576564704 | X34: =AB33 -> 204.7384239 | Y34: =AA34-Z34 -> -2.240574306 | Z34: =(((1+($I$8/100))^((H34)/$P$9))-1)*X34 -> 2.244782543 | AA34: 0.004208236997 | AB34: =X34-Y34 -> 206.9789982
A35: 4 | B35: =IF(A35="","",IF(A35<=$H$21,0,1)) -> 1 | C35: =DATE(YEAR(EDATE($P$6,D35)),MONTH(EDATE($P$6,D35)),DAY(EDATE($P$6,D35))) -> 2022-10-15 | D35: =IF(OR(MONTH(DATE(YEAR(C34) + 1/12,MONTH(C34)+1,DAY(C34)))=$G$16,MONTH(DATE(YEAR(C34) + 1/12,MONTH(C34)+1,DAY(C34)))=$G$17),IF(ABS($G$17-$G$16)=1,D34+1,D34 + 2),D34 + 1) -> 5 | E35: 4 | F35: 360 | G35: 13.5 | H35: 30 | I35: 31492.09 | J35: 663.9844643 | K35: 334.09 | L35: 3.96454 | M35: 338.05454 | N35: 1002.039004 | O35: 3.03 | P35: 4.95 | Q35: 1010.019004 | R35: 30828.11 | S35: 0 | T35: 0 | U35: 2969.531304 | V35: 153 | W35: 0.9476037241 | X35: 206.9789982 | Y35: -2.191548593 | Z35: 2.19575683 | AA35: 0.004208236997 | AB35: 209.1705468
A36: 5 | B36: 1 | C36: 2022-11-15 | D36: 6 | E36: 5 | F36: 360 | G36: 13.5 | H36: 31 | I36: 30828.11 | J36: 660.0744643 | K36: 338 | L36: 3.96454 | M36: 341.96454 | N36: 1002.039004 | O36: 3.03 | P36: 4.95 | Q36: 1010.019004 | R36: 30168.04 | S36: 0 | T36: 0 | U36: 2969.531304 | V36: 184 | W36: 0.9373267343 | X36: 209.1705468 | Y36: -2.289168761 | Z36: 2.293376998 | AA36: 0.004208236997 | AB36: 211.4597155
A37: 6 | B37: 1 | C37: 2022-12-15 | D37: 7 | E37: 6 | F37: 360 | G37: 13.5 | H37: 30 | I37: 30168.04 | J37: 678.0344643 | K37: 320.04 | L37: 3.96454 | M37: 324.00454 | N37: 1002.039004 | O37: 3.03 | P37: 4.95 | Q37: 1010.019004 | R37: 29490.01 | S37: 0 | T37: 0 | U37: 2969.531304 | V37: 214 | W37: 0.9274873941 | X37: 211.4597155 | Y37: -2.239082719 | Z37: 2.243290956 | AA37: 0.004208236997 | AB37: 213.6987982
A38: 7 | B38: 1 | C38: 2023-02-15 | D38: 9 | E38: 7 | F38: 360 | G38: 13.5 | H38: 62 | I38: 29490.01 | J38: 342.9144643 | K38: 650.21 | L38: 3.96454 | M38: 654.17454 | N38: 997.0890043 | O38: 3.03 | P38: 9.9 | Q38: 1010.019004 | R38: 29147.1 | S38: 0 | T38: 4.95 | U38: 2969.531304 | V38: 276 | W38: 0.9074788378 | X38: 213.6987982 | Y38: -4.707531884 | Z38: 4.711740121 | AA38: 0.004208236997 | AB38: 218.4063301
A39: 8 | B39: 1 | C39: 2023-03-15 | D39: 10 | E39: 8 | F39: 360 | G39: 13.5 | H39: 28 | I39: 29147.1 | J39: 709.5844643 | K39: 288.49 | L39: 3.96454 | M39: 292.45454 | N39: 1002.039004 | O39: 3.03 | P39: 4.95 | Q39: 1010.019004 | R39: 28437.52 | S39: 0 | T39: 0 | U39: 2969.531304 | V39: 304 | W39: 0.8985847633 | X39: 218.4063301 | Y39: -2.157549061 | Z39: 2.161757298 | AA39: 0.004208236997 | AB39: 220.5638792
A40: 9 | B40: 1 | C40: 2023-04-15 | D40: 11 | E40: 9 | F40: 360 | G40: 13.5 | H40: 31 | I40: 28437.52 | J40: 686.2844643 | K40: 311.79 | L40: 3.96454 | M40: 315.75454 | N40: 1002.039004 | O40: 3.03 | P40: 4.95 | Q40: 1010.019004 | R40: 27751.24 | S40: 0 | T40: 0 | U40: 2969.531304 | V40: 335 | W40: 0.8888393959 | X40: 220.5638792 | Y40: -2.414086953 | Z40: 2.41829519 | AA40: 0.004208236997 | AB40: 222.9779661
A41: 10 | B41: 1 | C41: 2023-05-15 | D41: 12 | E41: 10 | F41: 360 | G41: 13.5 | H41: 30 | I41: 27751.24 | J41: 703.6744643 | K41: 294.4 | L41: 3.96454 | M41: 298.36454 | N41: 1002.039004 | O41: 3.03 | P41: 4.95 | Q41: 1010.019004 | R41: 27047.57 | S41: 0 | T41: 0 | U41: 2969.531304 | V41: 365 | W41: 0.8795090387 | X41: 222.9779661 | Y41: -2.361275201 | Z41: 2.365483438 | AA41: 0.004208236997 | AB41: 225.3392413
A42: 11 | B42: 1 | C42: 2023-07-15 | D42: 14 | E42: 11 | F42: 360 | G42: 13.5 | H42: 61 | I42: 27047.57 | J42: 406.4844643 | K42: 586.64 | L42: 3.96454 | M42: 590.60454 | N42: 997.0890043 | O42: 3.03 | P42: 9.9 | Q42: 1010.019004 | R42: 26641.09 | S42: 0 | T42: 4.95 | U42: 2969.531304 | V42: 426 | W42: 0.8608382657 | X42: 225.3392413 | Y42: -4.883188151 | Z42: 4.887396388 | AA42: 0.004208236997 | AB42: 230.2224295
A43: 12 | B43: 1 | C43: 2023-08-15 | D43: 15 | E43: 12 | F43: 360 | G43: 13.5 | H43: 31 | I43: 26641.09 | J43: 705.9744643 | K43: 292.1 | L43: 3.96454 | M43: 296.06454 | N43: 1002.039004 | O43: 3.03 | P43: 4.95 | Q43: 1010.019004 | R43: 25935.12 | S43: 0 | T43: 0 | U43: 2969.531304 | V43: 457 | W43: 0.8515022681 | X43: 230.2224295 | Y43: -2.519984735 | Z43: 2.524192972 | AA43: 0.004208236997 | AB43: 232.7424142
A44: 13 | B44: 1 | C44: 2023-09-15 | D44: 16 | E44: 13 | F44: 360 | G44: 13.5 | H44: 31 | I44: 25935.12 | J44: 713.7144643 | K44: 284.36 | L44: 3.96454 | M44: 288.32454 | N44: 1002.039004 | O44: 3.03 | P44: 4.95 | Q44: 1010.019004 | R44: 25221.41 | S44: 0 | T44: 0 | U44: 2969.531304 | V44: 488 | W44: 0.8422675217 | X44: 232.7424142 | Y44: -2.547614223 | Z44: 2.55182246 | AA44: 0.004208236997 | AB44: 235.2900284
A45: 14 | B45: 1 | C45: 2023-10-15 | D45: 17 | E45: 14 | F45: 360 | G45: 13.5 | H45: 30 | I45: 25221.41 | J45: 730.5144643 | K45: 267.56 | L45: 3.96454 | M45: 271.52454 | N45: 1002.039004 | O45: 3.03 | P45: 4.95 | Q45: 1010.019004 | R45: 24490.9 | S45: 0 | T45: 0 | U45: 2969.531304 | V45: 518 | W45: 0.8334260405 | X45: 235.2900284 | Y45: -2.491888911 | Z45: 2.496097148 | AA45: 0.004208236997 | AB45: 237.7819174
A46: 15 | B46: 1 | C46: 2023-11-15 | D46: 18 | E46: 15 | F46: 360 | G46: 13.5 | H46: 31 | I46: 24490.9 | J46: 729.5544643 | K46: 268.52 | L46: 3.96454 | M46: 272.48454 | N46: 1002.039004 | O46: 3.03 | P46: 4.95 | Q46: 1010.019004 | R46: 23761.35 | S46: 0 | T46: 0 | U46: 2969.531304 | V46: 549 | W46: 0.8243873351 | X46: 237.7819174 | Y46: -2.602868085 | Z46: 2.607076322 | AA46: 0.004208236997 | AB46: 240.3847854
A47: 16 | B47: 1 | C47: 2023-12-15 | D47: 19 | E47: 16 | F47: 360 | G47: 13.5 | H47: 30 | I47: 23761.35 | J47: 746.0044643 | K47: 252.07 | L47: 3.96454 | M47: 256.03454 | N47: 1002.039004 | O47: 3.03 | P47: 4.95 | Q47: 1010.019004 | R47: 23015.35 | S47: 0 | T47: 0 | U47: 2969.531304 | V47: 579 | W47: 0.8157335464 | X47: 240.3847854 | Y47: -2.545937136 | Z47: 2.550145373 | AA47: 0.004208236997 | AB47: 242.9307226
A48: 17 | B48: 1 | C48: 2024-02-15 | D48: 21 | E48: 17 | F48: 360 | G48: 13.5 | H48: 62 | I48: 23015.35 | J48: 485.6744643 | K48: 507.45 | L48: 3.96454 | M48: 511.41454 | N48: 997.0890043 | O48: 3.03 | P48: 9.9 | Q48: 1010.019004 | R48: 22529.68 | S48: 0 | T48: 4.95 | U48: 2969.531304 | V48: 641 | W48: 0.7981358403 | X48: 242.9307226 | Y48: -5.352052264 | Z48: 5.356260501 | AA48: 0.004208236997 | AB48: 248.2827748
A49: 18 | B49: 1 | C49: 2024-03-15 | D49: 22 | E49: 18 | F49: 360 | G49: 13.5 | H49: 29 | I49: 22529.68 | J49: 767.0744643 | K49: 231 | L49: 3.96454 | M49: 234.96454 | N49: 1002.039004 | O49: 3.03 | P49: 4.95 | Q49: 1010.019004 | R49: 21762.61 | S49: 0 | T49: 0 | U49: 2969.531304 | V49: 670 | W49: 0.7900354717 | X49: 248.2827748 | Y49: -2.541477447 | Z49: 2.545685684 | AA49: 0.004208236997 | AB49: 250.8242523
A50: 19 | B50: 1 | C50: 2024-04-15 | D50: 23 | E50: 19 | F50: 360 | G50: 13.5 | H50: 31 | I50: 21762.61 | J50: 759.4644643 | K50: 238.61 | L50: 3.96454 | M50: 242.57454 | N50: 1002.039004 | O50: 3.03 | P50: 4.95 | Q50: 1010.019004 | R50: 21003.15 | S50: 0 | T50: 0 | U50: 2969.531304 | V50: 701 | W50: 0.7814673474 | X50: 250.8242523 | Y50: -2.745866186 | Z50: 2.750074423 | AA50: 0.004208236997 | AB50: 253.5701185
A51: 20 | B51: 1 | C51: 2024-05-15 | D51: 24 | E51: 20 | F51: 360 | G51: 13.5 | H51: 30 | I51: 21003.15 | J51: 775.2644643 | K51: 222.81 | L51: 3.96454 | M51: 226.77454 | N51: 1002.039004 | O51: 3.03 | P51: 4.95 | Q51: 1010.019004 | R51: 20227.89 | S51: 0 | T51: 0 | U51: 2969.531304 | V51: 731 | W51: 0.7732641 | X51: 253.5701185 | Y51: -2.685815024 | Z51: 2.690023261 | AA51: 0.004208236997 | AB51: 256.2559335
A52: 21 | B52: 1 | C52: 2024-07-15 | D52: 26 | E52: 21 | F52: 360 | G52: 13.5 | H52: 61 | I52: 20227.89 | J52: 554.4044643 | K52: 438.72 | L52: 3.96454 | M52: 442.68454 | N52: 997.0890043 | O52: 3.03 | P52: 9.9 | Q52: 1010.019004 | R52: 19673.49 | S52: 0 | T52: 4.95 | U52: 2969.531304 | V52: 792 | W52: 0.7568487616 | X52: 256.2559335 | Y52: -5.553742151 | Z52: 5.557950388 | AA52: 0.004208236997 | AB52: 261.8096756
A53: 22 | B53: 1 | C53: 2024-08-15 | D53: 27 | E53: 22 | F53: 360 | G53: 13.5 | H53: 31 | I53: 19673.49 | J53: 782.3744643 | K53: 215.7 | L53: 3.96454 | M53: 219.66454 | N53: 1002.039004 | O53: 3.03 | P53: 4.95 | Q53: 1010.019004 | R53: 18891.12 | S53: 0 | T53: 0 | U53: 2969.531304 | V53: 823 | W53: 0.7486405551 | X53: 261.8096756 | Y53: -2.866312002 | Z53: 2.870520239 | AA53: 0.004208236997 | AB53: 264.6759876
A54: 23 | B54: 1 | C54: 2024-09-15 | D54: 28 | E54: 23 | F54: 360 | G54: 13.5 | H54: 31 | I54: 18891.12 | J54: 790.9444643 | K54: 207.13 | L54: 3.96454 | M54: 211.09454 | N54: 1002.039004 | O54: 3.03 | P54: 4.95 | Q54: 1010.019004 | R54: 18100.18 | S54: 0 | T54: 0 | U54: 2969.531304 | V54: 854 | W54: 0.7405213687 | X54: 264.6759876 | Y54: -2.897738673 | Z54: 2.90194691 | AA54: 0.004208236997 | AB54: 267.5737263
A55: 24 | B55: 1 | C55: 2024-10-15 | D55: 29 | E55: 24 | F55: 360 | G55: 13.5 | H55: 30 | I55: 18100.18 | J55: 806.0544643 | K55: 192.02 | L55: 3.96454 | M55: 195.98454 | N55: 1002.039004 | O55: 3.03 | P55: 4.95 | Q55: 1010.019004 | R55: 17294.13 | S55: 0 | T55: 0 | U55: 2969.531304 | V55: 884 | W55: 0.7327479409 | X55: 267.5737263 | Y55: -2.834373659 | Z55: 2.838581896 | AA55: 0.004208236997 | AB55: 270.4081
A56: 25 | B56: 1 | C56: =IF(B56="","",DATE(YEAR(EDATE($P$6,D56)),MONTH(EDATE($P$6,D56)),DAY(EDATE($P$6,D56)))) -> 2024-11-15 | D56: =IF(B56="","",IF(OR(MONTH(DATE(YEAR(C55) + 1/12,MONTH(C55)+1,DAY(C55)))=$G$16,MONTH(DATE(YEAR(C55) + 1/12,MONTH(C55)+1,DAY(C55)))=$G$17),IF(ABS($G$17-$G$16)=1,D55+1,D55 + 2),D55 + 1)) -> 30 | E56: =IF(B56="","",E55+1) -> 25 | F56: =IF(B56="","",$P$9) -> 360 | G56: =IF(B56="","",$G$8) -> 13.5 | H56: =IF(B56="","",C56-C55) -> 31 | I56: =IF(B56="","",+R55) -> 17294.13 | J56: =IF(B56="","",IF((IF(ISERROR(MATCH(MONTH(C56),$G$18:$G$19,0))=FALSE,$I$24 + $P$28,0) + $I$24+$P$28+$R$26)-K56-T56<0,0.01,IF(ISERROR(MATCH(MONTH(C56),$G$18:$G$19,0))=FALSE,$I$24 + $P$28,0)+ ($I$24+$P$28+$R$26)-K56- T56)) -> 808.4544643 | K56: =IF(B56="","",IF($I$24+$P$28 + $R$26<ROUND(ROUND(I56*(((1+(G56/100))^(H56/F56))-1),4),2),$I$24+$P$28 + $R$26-0.01,IF(ROUND(ROUND(I56*(((1+(G56/100))^(H56/F56))-1),4),2)+ $R$26>$I$24,$I$24+ $R$26+-0.01,ROUND(ROUND(I56*(((1+(G56/100))^(H56/F56))-1),4),2)+$R$26))) -> 189.62 | L56: =IF(B56="","",IF(ISERROR(MATCH(MONTH(C56),$G$18:$G$19,0))=FALSE,$I$23,0) + $I$23) -> 3.96454 | M56: =IF(B56="","",K56+L56) -> 193.58454 | N56: =IF(B56="","",J56+K56 + L56) -> 1002.039004 | O56: =IF(B56="","",$I$26) -> 3.03 | P56: =IF(B56="","",$I$25 + T56) -> 4.95 | Q56: =IF(B56="","",N56+O56+P56) -> 1010.019004 | R56: =IF(B56="","",ROUND(I56-J56,2)) -> 16485.68 | S56: =IF(B56="","",IF(ROUND(ROUND(I56*(((1+(G56/100))^(H56/F56))-1),4),2) - $I$24<0,0,ROUND(ROUND(I56*(((1+(G56/100))^(H56/F56))-1),4),2) - $I$24)) -> 0 | T56: =IF(B56="","",IF(D56-D55>1,ROUNDDOWN($G$5*$G$9/30*30,2),0)) -> 0 | V56: 915 | W56: 0.7248011136 | X56: 270.4081 | Y56: -2.960586406 | Z56: 2.964794643 | AA56: 0.004208236997 | AB56: 273.3686864
A57: 26 | B57: 1 | C57: =IF(B57="","",DATE(YEAR(EDATE($P$6,D57)),MONTH(EDATE($P$6,D57)),DAY(EDATE($P$6,D57)))) -> 2024-12-15 | D57: =IF(B57="","",IF(OR(MONTH(DATE(YEAR(C56) + 1/12,MONTH(C56)+1,DAY(C56)))=$G$16,MONTH(DATE(YEAR(C56) + 1/12,MONTH(C56)+1,DAY(C56)))=$G$17),IF(ABS($G$17-$G$16)=1,D56+1,D56 + 2),D56 + 1)) -> 31 | E57: =IF(B57="","",E56+1) -> 26 | F57: =IF(B57="","",$P$9) -> 360 | G57: =IF(B57="","",$G$8) -> 13.5 | H57: =IF(B57="","",C57-C56) -> 30 | I57: =IF(B57="","",+R56) -> 16485.68 | J57: =IF(B57="","",IF((IF(ISERROR(MATCH(MONTH(C57),$G$18:$G$19,0))=FALSE,$I$24 + $P$28,0) + $I$24+$P$28+$R$26)-K57-T57<0,0.01,IF(ISERROR(MATCH(MONTH(C57),$G$18:$G$19,0))=FALSE,$I$24 + $P$28,0)+ ($I$24+$P$28+$R$26)-K57- T57)) -> 823.1844643 | K57: =IF(B57="","",IF($I$24+$P$28 + $R$26<ROUND(ROUND(I57*(((1+(G57/100))^(H57/F57))-1),4),2),$I$24+$P$28 + $R$26-0.01,IF(ROUND(ROUND(I57*(((1+(G57/100))^(H57/F57))-1),4),2)+ $R$26>$I$24,$I$24+ $R$26+-0.01,ROUND(ROUND(I57*(((1+(G57/100))^(H57/F57))-1),4),2)+$R$26))) -> 174.89 | L57: =IF(B57="","",IF(ISERROR(MATCH(MONTH(C57),$G$18:$G$19,0))=FALSE,$I$23,0) + $I$23) -> 3.96454 | M57: =IF(B57="","",K57+L57) -> 178.85454 | N57: =IF(B57="","",J57+K57 + L57) -> 1002.039004 | O57: =IF(B57="","",$I$26) -> 3.03 | P57: =IF(B57="","",$I$25 + T57) -> 4.95 | Q57: =IF(B57="","",N57+O57+P57) -> 1010.019004 | R57: =IF(B57="","",ROUND(I57-J57,2)) -> 15662.5 | S57: =IF(B57="","",IF(ROUND(ROUND(I57*(((1+(G57/100))^(H57/F57))-1),4),2) - $I$24<0,0,ROUND(ROUND(I57*(((1+(G57/100))^(H57/F57))-1),4),2) - $I$24)) -> 0 | T57: =IF(B57="","",IF(D57-D56>1,ROUNDDOWN($G$5*$G$9/30*30,2),0)) -> 0 | V57: 945 | W57: 0.7171927051 | X57: 273.3686864 | Y57: -2.895850057 | Z57: 2.900058294 | AA57: 0.004208236997 | AB57: 276.2645364
A58: 27 | B58: 1 | C58: 2025-02-15 | D58: 33 | E58: 27 | F58: 360 | G58: 13.5 | H58: 62 | I58: 15662.5 | J58: 647.7944643 | K58: 345.33 | L58: 3.96454 | M58: 349.29454 | N58: 997.0890043 | O58: 3.03 | P58: 9.9 | Q58: 1010.019004 | R58: 15014.71 | S58: 0 | T58: 4.95 | V58: 1007 | W58: 0.7017208067 | X58: 276.2645364 | Y58: -6.087013197 | Z58: 6.091221434 | AA58: 0.004208236997 | AB58: 282.3515496
A59: 28 | B59: 1 | C59: 2025-03-15 | D59: 34 | E59: 28 | F59: 360 | G59: 13.5 | H59: 28 | I59: 15014.71 | J59: 849.4644643 | K59: 148.61 | L59: 3.96454 | M59: 152.57454 | N59: 1002.039004 | O59: 3.03 | P59: 4.95 | Q59: 1010.019004 | R59: 14165.25 | S59: 0 | T59: 0 | V59: 1035 | W59: 0.6948433382 | X59: 282.3515496 | Y59: -2.790470483 | Z59: 2.79467872 | AA59: 0.004208236997 | AB59: 285.1420201
A60: 29 | B60: 1 | C60: 2025-04-15 | D60: 35 | E60: 29 | F60: 360 | G60: 13.5 | H60: 31 | I60: 14165.25 | J60: 842.7644643 | K60: 155.31 | L60: 3.96454 | M60: 159.27454 | N60: 1002.039004 | O60: 3.03 | P60: 4.95 | Q60: 1010.019004 | R60: 13322.49 | S60: 0 | T60: 0 | V60: 1066 | W60: 0.6873075955 | X60: 285.1420201 | Y60: -3.122131299 | Z60: 3.126339536 | AA60: 0.004208236997 | AB60: 288.2641514
A61: 30 | B61: 1 | C61: 2025-05-15 | D61: 36 | E61: 30 | F61: 360 | G61: 13.5 | H61: 30 | I61: 13322.49 | J61: 856.7444643 | K61: 141.33 | L61: 3.96454 | M61: 145.29454 | N61: 1002.039004 | O61: 3.03 | P61: 4.95 | Q61: 1010.019004 | R61: 12465.75 | S61: 0 | T61: 0 | V61: 1096 | W61: 0.6800927653 | X61: 288.2641514 | Y61: -3.053870046 | Z61: 3.058078283 | AA61: 0.004208236997 | AB61: 291.3180215
A62: 31 | B62: 1 | C62: 2025-07-15 | D62: 38 | E62: 31 | F62: 360 | G62: 13.5 | H62: 61 | I62: 12465.75 | J62: 722.7544643 | K62: 270.37 | L62: 3.96454 | M62: 274.33454 | N62: 997.0890043 | O62: 3.03 | P62: 9.9 | Q62: 1010.019004 | R62: 11743 | S62: 0 | T62: 4.95 | V62: 1157 | W62: 0.6656553268 | X62: 291.3180215 | Y62: -6.314205891 | Z62: 6.318414128 | AA62: 0.004208236997 | AB62: 297.6322274
A63: 32 | B63: 1 | C63: 2025-08-15 | D63: 39 | E63: 32 | F63: 360 | G63: 13.5 | H63: 31 | I63: 11743 | J63: 869.3244643 | K63: 128.75 | L63: 3.96454 | M63: 132.71454 | N63: 1002.039004 | O63: 3.03 | P63: 4.95 | Q63: 1010.019004 | R63: 10873.68 | S63: 0 | T63: 0 | V63: 1188 | W63: 0.658436135 | X63: 297.6322274 | Y63: -3.259075789 | Z63: 3.263284026 | AA63: 0.004208236997 | AB63: 300.8913031
A64: 33 | B64: 1 | C64: 2025-09-15 | D64: 40 | E64: 33 | F64: 360 | G64: 13.5 | H64: 31 | I64: 10873.68 | J64: 878.8544643 | K64: 119.22 | L64: 3.96454 | M64: 123.18454 | N64: 1002.039004 | O64: 3.03 | P64: 4.95 | Q64: 1010.019004 | R64: 9994.83 | S64: 0 | T64: 0 | V64: 1219 | W64: 0.6512952371 | X64: 300.8913031 | Y64: -3.294808781 | Z64: 3.299017018 | AA64: 0.004208236997 | AB64: 304.1861119
A65: =+IF(A64>=$G$12,"",A64+1) -> 34 | B65: 1 | C65: 2025-10-15 | D65: 41 | E65: 34 | F65: 360 | G65: 13.5 | H65: 30 | I65: 9994.83 | J65: 892.0444643 | K65: 106.03 | L65: 3.96454 | M65: 109.99454 | N65: 1002.039004 | O65: 3.03 | P65: 4.95 | Q65: 1010.019004 | R65: 9102.79 | S65: 0 | T65: 0 | V65: 1249 | W65: 0.6444584371 | X65: 304.1861119 | Y65: -3.222779712 | Z65: 3.226987949 | AA65: 0.004208236997 | AB65: 307.4088916
A66: 35 | B66: 1 | C66: 2025-11-15 | D66: 42 | E66: 35 | F66: 360 | G66: 13.5 | H66: 31 | I66: 9102.79 | J66: 898.2744643 | K66: 99.8 | L66: 3.96454 | M66: 103.76454 | N66: 1002.039004 | O66: 3.03 | P66: 4.95 | Q66: 1010.019004 | R66: 8204.52 | S66: 0 | T66: 0 | V66: 1280 | W66: 0.6374691307 | X66: 307.4088916 | Y66: -3.366268591 | Z66: 3.370476828 | AA66: 0.004208236997 | AB66: 310.7751602
A67: 36 | B67: 1 | C67: 2025-12-15 | D67: 43 | E67: 36 | F67: 360 | G67: 13.5 | H67: 30 | I67: 8204.52 | J67: 911.0344643 | K67: 87.04 | L67: 3.96454 | M67: 91.00454 | N67: 1002.039004 | O67: 3.03 | P67: 4.95 | Q67: 1010.019004 | R67: 7293.49 | S67: 0 | T67: 0 | V67: 1310 | W67: 0.6307774666 | X67: 310.7751602 | Y67: -3.292680272 | Z67: 3.296888509 | AA67: 0.004208236997 | AB67: 314.0678405
A68: 37 | B68: 1 | C68: 2026-02-15 | D68: 45 | E68: 37 | F68: 360 | G68: 13.5 | H68: 62 | I68: 7293.49 | J68: 832.3144643 | K68: 160.81 | L68: 3.96454 | M68: 164.77454 | N68: 997.0890043 | O68: 3.03 | P68: 9.9 | Q68: 1010.019004 | R68: 6461.18 | S68: 0 | T68: 4.95 | V68: 1372 | W68: 0.6171697922 | X68: 314.0678405 | Y68: -6.92051973 | Z68: 6.924727967 | AA68: 0.004208236997 | AB68: 320.9883602
A69: 38 | B69: 1 | C69: 2026-03-15 | D69: 46 | E69: 38 | F69: 360 | G69: 13.5 | H69: 28 | I69: 6461.18 | J69: 934.1244643 | K69: 63.95 | L69: 3.96454 | M69: 67.91454 | N69: 1002.039004 | O69: 3.03 | P69: 4.95 | Q69: 1010.019004 | R69: 5527.06 | S69: 0 | T69: 0 | V69: 1400 | W69: 0.6111209965 | X69: 320.9883602 | Y69: -3.172892583 | Z69: 3.17710082 | AA69: 0.004208236997 | AB69: 324.1612528
A70: 39 | B70: 1 | C70: 2026-04-15 | D70: 47 | E70: 39 | F70: 360 | G70: 13.5 | H70: 31 | I70: 5527.06 | J70: 937.4744643 | K70: 60.6 | L70: 3.96454 | M70: 64.56454 | N70: 1002.039004 | O70: 3.03 | P70: 4.95 | Q70: 1010.019004 | R70: 4589.59 | S70: 0 | T70: 0 | V70: 1431 | W70: 0.6044932426 | X70: 324.1612528 | Y70: -3.549943972 | Z70: 3.554152209 | AA70: 0.004208236997 | AB70: 327.7111968
A71: 40 | B71: 1 | C71: 2026-05-15 | D71: 48 | E71: 40 | F71: 360 | G71: 13.5 | H71: 30 | I71: 4589.59 | J71: 949.3844643 | K71: 48.69 | L71: 3.96454 | M71: 52.65454 | N71: 1002.039004 | O71: 3.03 | P71: 4.95 | Q71: 1010.019004 | R71: 3640.21 | S71: 0 | T71: 0 | V71: 1461 | W71: 0.5981477342 | X71: 327.7111968 | Y71: -3.472347863 | Z71: 3.4765561 | AA71: 0.004208236997 | AB71: 331.1835447
A72: 41 | B72: 1 | C72: 2026-07-15 | D72: 50 | E72: 41 | F72: 360 | G72: 13.5 | H72: 61 | I72: 3640.21 | J72: 914.1744643 | K72: 78.95 | L72: 3.96454 | M72: 82.91454 | N72: 997.0890043 | O72: 3.03 | P72: 9.9 | Q72: 1010.019004 | R72: 2726.04 | S72: 0 | T72: 4.95 | V72: 1522 | W72: 0.5854498765 | X72: 331.1835447 | Y72: -7.178851626 | Z72: 7.183059863 | AA72: 0.004208236997 | AB72: 338.3623963
A73: 42 | B73: 1 | C73: 2026-08-15 | D73: 51 | E73: 42 | F73: 360 | G73: 13.5 | H73: 31 | I73: 2726.04 | J73: 968.1844643 | K73: 29.89 | L73: 3.96454 | M73: 33.85454 | N73: 1002.039004 | O73: 3.03 | P73: 4.95 | Q73: 1010.019004 | R73: 1757.86 | S73: 0 | T73: 0 | V73: 1553 | W73: 0.5791005321 | X73: 338.3623963 | Y73: -3.705647422 | Z73: 3.709855659 | AA73: 0.004208236997 | AB73: 342.0680437
A74: 43 | B74: 1 | C74: 2026-09-15 | D74: 52 | E74: 43 | F74: 360 | G74: 13.5 | H74: 31 | I74: 1757.86 | J74: 978.8044643 | K74: 19.27 | L74: 3.96454 | M74: 23.23454 | N74: 1002.039004 | O74: 3.03 | P74: 4.95 | Q74: 1010.019004 | R74: 779.06 | S74: 0 | T74: 0 | V74: 1584 | W74: 0.5728200479 | X74: 342.0680437 | Y74: -3.746276691 | Z74: 3.750484928 | AA74: 0.004208236997 | AB74: 345.8143204
A75: 44 | B75: 1 | C75: 2026-10-15 | D75: 53 | E75: 44 | F75: 360 | G75: 13.5 | H75: 30 | I75: 779.06 | J75: 989.8144643 | K75: 8.26 | L75: 3.96454 | M75: 12.22454 | N75: 1002.039004 | O75: 3.03 | P75: 4.95 | Q75: 1010.019004 | R75: -210.75 | S75: 0 | T75: 0 | V75: 1614 | W75: 0.5668070205 | X75: 345.8143204 | Y75: -3.66439661 | Z75: 3.668604847 | AA75: 0.004208236997 | AB75: 349.478717
A76: 45 | B76: 1 | C76: 2026-11-15 | D76: 54 | E76: 45 | F76: 360 | G76: 13.5 | H76: 31 | I76: -210.75 | J76: 1000.384464 | K76: -2.31 | L76: 3.96454 | M76: 1.65454 | N76: 1002.039004 | O76: 3.03 | P76: 4.95 | Q76: 1010.019004 | R76: -1211.13 | S76: 0 | T76: 0 | V76: 1645 | W76: 0.5606598624 | X76: 349.478717 | Y76: -3.827528416 | Z76: 3.831736653 | AA76: 0.004208236997 | AB76: 353.3062454
A77: 46 | B77: 1 | C77: 2026-12-15 | D77: 55 | E77: 46 | F77: 360 | G77: 13.5 | H77: 30 | I77: -1211.13 | J77: 1010.924464 | K77: -12.85 | L77: 3.96454 | M77: -8.88546 | N77: 1002.039004 | O77: 3.03 | P77: 4.95 | Q77: 1010.019004 | R77: -2222.05 | S77: 0 | T77: 0 | V77: 1675 | W77: 0.5547744833 | X77: 353.3062454 | Y77: -3.743875425 | Z77: 3.748083662 | AA77: 0.004208236997 | AB77: 357.0501208
A78: 47 | B78: 1 | C78: 2027-02-15 | D78: 57 | E78: 47 | F78: 360 | G78: 13.5 | H78: 62 | I78: -2222.05 | J78: 1042.114464 | K78: -48.99 | L78: 3.96454 | M78: -45.02546 | N78: 997.0890043 | O78: 3.03 | P78: 9.9 | Q78: 1010.019004 | R78: -3264.16 | S78: 0 | T78: 4.95 | V78: 1737 | W78: 0.5428064107 | X78: 357.0501208 | Y78: -7.868214974 | Z78: 7.872423211 | AA78: 0.004208236997 | AB78: 364.9183358
A79: 48 | B79: 1 | C79: 2027-03-15 | D79: 58 | E79: 48 | F79: 360 | G79: 13.5 | H79: 28 | I79: -3264.16 | J79: 1030.384464 | K79: -32.31 | L79: 3.96454 | M79: -28.34546 | N79: 1002.039004 | O79: 3.03 | P79: 4.95 | Q79: 1010.019004 | R79: -4294.54 | S79: 0 | T79: 0 | V79: 1765 | W79: 0.5374864401 | X79: 364.9183358 | Y79: -3.607705737 | Z79: 3.611913974 | AA79: 0.004208236997 | AB79: 368.5260416
A80: 49 | B80: 1 | C80: 2027-04-15 | D80: 59 | E80: 49 | F80: 360 | G80: 13.5 | H80: 31 | I80: -4294.54 | J80: 1045.164464 | K80: -47.09 | L80: 3.96454 | M80: -43.12546 | N80: 1002.039004 | O80: 3.03 | P80: 4.95 | Q80: 1010.019004 | R80: -5339.7 | S80: 0 | T80: 0 | V80: 1796 | W80: 0.5316572707 | X80: 368.5260416 | Y80: -4.036366117 | Z80: 4.040574354 | AA80: 0.004208236997 | AB80: 372.5624077
A81: 50 | B81: 1 | C81: 2027-05-15 | D81: 60 | E81: 50 | F81: 360 | G81: 13.5 | H81: 30 | I81: -5339.7 | J81: 1054.724464 | K81: -56.65 | L81: 3.96454 | M81: -52.68546 | N81: 1002.039004 | O81: 3.03 | P81: 4.95 | Q81: 1010.019004 | R81: -6394.42 | S81: 0 | T81: 0 | V81: 1826 | W81: 0.5260763387 | X81: 372.5624077 | Y81: -3.948156295 | Z81: 3.952364532 | AA81: 0.004208236997 | AB81: 376.510564
X82: 376.510564 | AA82: 0.004208236997
AA83: 0.004208236997
AA84: 0.004208236997
AA85: 0.004208236997
AA86: 0.004208236997
AA87: 0.004208236997
AA88: 0.004208236997
AA89: 0.004208236997
AA90: 0.004208236997
AA91: 0.004208236997
AA92: 0.004208236997
AA93: 0.004208236997
AA94: 0.004208236997
AA95: 0.004208236997
AA96: 0.004208236997
A97: =+IF(A96>=$G$12,"",A96+1) ->  | W97: =1/((1+($I$8/100))^(V97/$P$9))*1 ->  | AA97: =$J$23 -> 0.004208236997
V98: =V97+H98 ->  | X98: =AB97 ->  | Y98: =AA98-Z98 ->  | Z98: =(((1+($I$8/100))^((H98)/$P$9))-1)*X98 ->  | AA98: 0.004208236997 | AB98: =X98-Y98 -> 
B99: =IF(A99="","",IF(A99<=$H$21,0,1)) ->  | AA99: 0.004208236997
AA100: 0.004208236997
AA101: 0.004208236997
AA102: 0.004208236997
AA103: 0.004208236997
J105: =SUM(J32:J104) -> 39444.64321
J106: =+J105-G5 -> 6394.643214

Sheet Calculos Original (hidden)
A1: Factores utilizados en Meses de No Pago para cálculo del valor cuota
A3: N° de Cuota | B3: Equivalente | C3: Fecha | D3: Mes | E3: Marca Cuota No Pago | F3: Factor (10) | G3: Acumulado | H3: Conteo No Pagos Acum
A4: 1 | B4: =IF(E4<>"C",IF(ISERROR(1+B3)=TRUE,1,1+B3),IF(ISNUMBER(B3),B3,0)) -> 0 | C4: ='Simulador Original'!P7 -> 2022-06-15 | D4: =MONTH(C4) -> 6 | E4: =IF(ISERROR(MATCH(D4,'Simulador Original'!$G$16:$G$17,0))=FALSE,"C",IF(ISERROR(MATCH(D4,'Simulador Original'!$G$18:$G$19,0))=FALSE,"D","")) -> C | F4: =IF(E4="C",0,IF(E4 ="D",ROUND(1/((1+'Simulador Original'!$P$13)^A4),9) * 2,ROUND(1/((1+'Simulador Original'!$P$13)^A4),9))) -> 0 | G4: =ROUND(F4,9) -> 0 | H4: =+COUNTIF($E$4:E4,"C") -> 1
A5: =A4+1 -> 2 | B5: =IF(E5<>"C",IF(ISERROR(1+B4)=TRUE,1,1+B4),IF(ISNUMBER(B4),B4,1)) -> 1 | C5: =DATE(YEAR(C4) + 1/12,MONTH(C4)+1,DAY(C4)) -> 2022-07-15 | D5: 7 | E5: =IF(ISERROR(MATCH(D5,'Simulador Original'!$G$16:$G$17,0))=FALSE,"C",IF(ISERROR(MATCH(D5,'Simulador Original'!$G$18:$G$19,0))=FALSE,"D","")) ->  | F5: =IF(E5="C",0,IF(E5 ="D",ROUND(1/((1+'Simulador Original'!$P$13)^A5),9) * 2,ROUND(1/((1+'Simulador Original'!$P$13)^A5),9))) -> 0.974663453 | G5: =G4+ROUND(F5,9) -> 0.974663453 | H5: =+COUNTIF($E$4:E5,"C") -> 1
A6: 3 | B6: 2 | C6: 2022-08-15 | D6: 8 | E6: =IF(ISERROR(MATCH(D6,'Simulador Original'!$G$16:$G$17,0))=FALSE,"C",IF(ISERROR(MATCH(D6,'Simulador Original'!$G$18:$G$19,0))=FALSE,"D","")) ->  | F6: =IF(E6="C",0,IF(E6 ="D",ROUND(1/((1+'Simulador Original'!$P$13)^A6),9) * 2,ROUND(1/((1+'Simulador Original'!$P$13)^A6),9))) -> 0.962236933 | G6: =G5+ROUND(F6,9) -> 1.936900386 | H6: =+COUNTIF($E$4:E6,"C") -> 1
A7: 4 | B7: 3 | C7: 2022-09-15 | D7: 9 | E7: =IF(ISERROR(MATCH(D7,'Simulador Original'!$G$16:$G$17,0))=FALSE,"C",IF(ISERROR(MATCH(D7,'Simulador Original'!$G$18:$G$19,0))=FALSE,"D","")) ->  | F7: =IF(E7="C",0,IF(E7 ="D",ROUND(1/((1+'Simulador Original'!$P$13)^A7),9) * 2,ROUND(1/((1+'Simulador Original'!$P$13)^A7),9))) -> 0.949968846 | G7: 2.886869232 | H7: =+COUNTIF($E$4:E7,"C") -> 1
A8: 5 | B8: 4 | C8: 2022-10-15 | D8: 10 | E8: =IF(ISERROR(MATCH(D8,'Simulador Original'!$G$16:$G$17,0))=FALSE,"C",IF(ISERROR(MATCH(D8,'Simulador Original'!$G$18:$G$19,0))=FALSE,"D","")) ->  | F8: =IF(E8="C",0,IF(E8 ="D",ROUND(1/((1+'Simulador Original'!$P$13)^A8),9) * 2,ROUND(1/((1+'Simulador Original'!$P$13)^A8),9))) -> 0.937857172 | G8: 3.824726404 | H8: =+COUNTIF($E$4:E8,"C") -> 1
A9: 6 | B9: 5 | C9: 2022-11-15 | D9: 11 | E9: =IF(ISERROR(MATCH(D9,'Simulador Original'!$G$16:$G$17,0))=FALSE,"C",IF(ISERROR(MATCH(D9,'Simulador Original'!$G$18:$G$19,0))=FALSE,"D","")) ->  | F9: =IF(E9="C",0,IF(E9 ="D",ROUND(1/((1+'Simulador Original'!$P$13)^A9),9) * 2,ROUND(1/((1+'Simulador Original'!$P$13)^A9),9))) -> 0.925899916 | G9: 4.75062632 | H9: =+COUNTIF($E$4:E9,"C") -> 1
A10: 7 | B10: 6 | C10: 2022-12-15 | D10: 12 | E10: =IF(ISERROR(MATCH(D10,'Simulador Original'!$G$16:$G$17,0))=FALSE,"C",IF(ISERROR(MATCH(D10,'Simulador Original'!$G$18:$G$19,0))=FALSE,"D","")) ->  | F10: =IF(E10="C",0,IF(E10 ="D",ROUND(1/((1+'Simulador Original'!$P$13)^A10),9) * 2,ROUND(1/((1+'Simulador Original'!$P$13)^A10),9))) -> 0.914095109 | G10: 5.664721429 | H10: =+COUNTIF($E$4:E10,"C") -> 1
A11: 8 | B11: 6 | C11: 2023-01-15 | D11: 1 | E11: =IF(ISERROR(MATCH(D11,'Simulador Original'!$G$16:$G$17,0))=FALSE,"C",IF(ISERROR(MATCH(D11,'Simulador Original'!$G$18:$G$19,0))=FALSE,"D","")) -> C | F11: =IF(E11="C",0,IF(E11 ="D",ROUND(1/((1+'Simulador Original'!$P$13)^A11),9) * 2,ROUND(1/((1+'Simulador Original'!$P$13)^A11),9))) -> 0 | G11: 5.664721429 | H11: =+COUNTIF($E$4:E11,"C") -> 2
A12: 9 | B12: 7 | C12: 2023-02-15 | D12: 2 | E12: =IF(ISERROR(MATCH(D12,'Simulador Original'!$G$16:$G$17,0))=FALSE,"C",IF(ISERROR(MATCH(D12,'Simulador Original'!$G$18:$G$19,0))=FALSE,"D","")) ->  | F12: =IF(E12="C",0,IF(E12 ="D",ROUND(1/((1+'Simulador Original'!$P$13)^A12),9) * 2,ROUND(1/((1+'Simulador Original'!$P$13)^A12),9))) -> 0.890935095 | G12: 6.555656524 | H12: =+COUNTIF($E$4:E12,"C") -> 2
A13: 10 | B13: 8 | C13: 2023-03-15 | D13: 3 | E13: =IF(ISERROR(MATCH(D13,'Simulador Original'!$G$16:$G$17,0))=FALSE,"C",IF(ISERROR(MATCH(D13,'Simulador Original'!$G$18:$G$19,0))=FALSE,"D","")) ->  | F13: =IF(E13="C",0,IF(E13 ="D",ROUND(1/((1+'Simulador Original'!$P$13)^A13),9) * 2,ROUND(1/((1+'Simulador Original'!$P$13)^A13),9))) -> 0.879576074 | G13: 7.435232598 | H13: =+COUNTIF($E$4:E13,"C") -> 2
A14: 11 | B14: 9 | C14: 2023-04-15 | D14: 4 | E14: =IF(ISERROR(MATCH(D14,'Simulador Original'!$G$16:$G$17,0))=FALSE,"C",IF(ISERROR(MATCH(D14,'Simulador Original'!$G$18:$G$19,0))=FALSE,"D","")) ->  | F14: =IF(E14="C",0,IF(E14 ="D",ROUND(1/((1+'Simulador Original'!$P$13)^A14),9) * 2,ROUND(1/((1+'Simulador Original'!$P$13)^A14),9))) -> 0.868361876 | G14: 8.303594474 | H14: =+COUNTIF($E$4:E14,"C") -> 2
A15: 12 | B15: 10 | C15: 2023-05-15 | D15: 5 | E15: =IF(ISERROR(MATCH(D15,'Simulador Original'!$G$16:$G$17,0))=FALSE,"C",IF(ISERROR(MATCH(D15,'Simulador Original'!$G$18:$G$19,0))=FALSE,"D","")) ->  | F15: =IF(E15="C",0,IF(E15 ="D",ROUND(1/((1+'Simulador Original'!$P$13)^A15),9) * 2,ROUND(1/((1+'Simulador Original'!$P$13)^A15),9))) -> 0.857290654 | G15: 9.160885128 | H15: =+COUNTIF($E$4:E15,"C") -> 2
A16: 13 | B16: 10 | C16: 2023-06-15 | D16: 6 | E16: =IF(ISERROR(MATCH(D16,'Simulador Original'!$G$16:$G$17,0))=FALSE,"C",IF(ISERROR(MATCH(D16,'Simulador Original'!$G$18:$G$19,0))=FALSE,"D","")) -> C | F16: =IF(E16="C",0,IF(E16 ="D",ROUND(1/((1+'Simulador Original'!$P$13)^A16),9) * 2,ROUND(1/((1+'Simulador Original'!$P$13)^A16),9))) -> 0 | G16: 9.160885128 | H16: =+COUNTIF($E$4:E16,"C") -> 3
A17: 14 | B17: 11 | C17: 2023-07-15 | D17: 7 | E17: =IF(ISERROR(MATCH(D17,'Simulador Original'!$G$16:$G$17,0))=FALSE,"C",IF(ISERROR(MATCH(D17,'Simulador Original'!$G$18:$G$19,0))=FALSE,"D","")) ->  | F17: =IF(E17="C",0,IF(E17 ="D",ROUND(1/((1+'Simulador Original'!$P$13)^A17),9) * 2,ROUND(1/((1+'Simulador Original'!$P$13)^A17),9))) -> 0.835569868 | G17: 9.996454996 | H17: =+COUNTIF($E$4:E17,"C") -> 3
A18: 15 | B18: 12 | C18: 2023-08-15 | D18: 8 | E18: =IF(ISERROR(MATCH(D18,'Simulador Original'!$G$16:$G$17,0))=FALSE,"C",IF(ISERROR(MATCH(D18,'Simulador Original'!$G$18:$G$19,0))=FALSE,"D","")) ->  | F18: =IF(E18="C",0,IF(E18 ="D",ROUND(1/((1+'Simulador Original'!$P$13)^A18),9) * 2,ROUND(1/((1+'Simulador Original'!$P$13)^A18),9))) -> 0.824916729 | G18: 10.82137172 | H18: =+COUNTIF($E$4:E18,"C") -> 3
A19: 16 | B19: 13 | C19: 2023-09-15 | D19: 9 | E19: =IF(ISERROR(MATCH(D19,'Simulador Original'!$G$16:$G$17,0))=FALSE,"C",IF(ISERROR(MATCH(D19,'Simulador Original'!$G$18:$G$19,0))=FALSE,"D","")) ->  | F19: =IF(E19="C",0,IF(E19 ="D",ROUND(1/((1+'Simulador Original'!$P$13)^A19),9) * 2,ROUND(1/((1+'Simulador Original'!$P$13)^A19),9))) -> 0.814399413 | G19: 11.63577114 | H19: =+COUNTIF($E$4:E19,"C") -> 3
A20: 17 | B20: 14 | C20: 2023-10-15 | D20: 10 | E20: =IF(ISERROR(MATCH(D20,'Simulador Original'!$G$16:$G$17,0))=FALSE,"C",IF(ISERROR(MATCH(D20,'Simulador Original'!$G$18:$G$19,0))=FALSE,"D","")) ->  | F20: =IF(E20="C",0,IF(E20 ="D",ROUND(1/((1+'Simulador Original'!$P$13)^A20),9) * 2,ROUND(1/((1+'Simulador Original'!$P$13)^A20),9))) -> 0.804016188 | G20: 12.43978733 | H20: =+COUNTIF($E$4:E20,"C") -> 3
A21: 18 | B21: 15 | C21: 2023-11-15 | D21: 11 | E21: =IF(ISERROR(MATCH(D21,'Simulador Original'!$G$16:$G$17,0))=FALSE,"C",IF(ISERROR(MATCH(D21,'Simulador Original'!$G$18:$G$19,0))=FALSE,"D","")) ->  | F21: =IF(E21="C",0,IF(E21 ="D",ROUND(1/((1+'Simulador Original'!$P$13)^A21),9) * 2,ROUND(1/((1+'Simulador Original'!$P$13)^A21),9))) -> 0.793765344 | G21: 13.23355267 | H21: =+COUNTIF($E$4:E21,"C") -> 3
A22: 19 | B22: 16 | C22: 2023-12-15 | D22: 12 | E22: =IF(ISERROR(MATCH(D22,'Simulador Original'!$G$16:$G$17,0))=FALSE,"C",IF(ISERROR(MATCH(D22,'Simulador Original'!$G$18:$G$19,0))=FALSE,"D","")) ->  | F22: =IF(E22="C",0,IF(E22 ="D",ROUND(1/((1+'Simulador Original'!$P$13)^A22),9) * 2,ROUND(1/((1+'Simulador Original'!$P$13)^A22),9))) -> 0.783645193 | G22: 14.01719786 | H22: =+COUNTIF($E$4:E22,"C") -> 3
A23: 20 | B23: 16 | C23: 2024-01-15 | D23: 1 | E23: =IF(ISERROR(MATCH(D23,'Simulador Original'!$G$16:$G$17,0))=FALSE,"C",IF(ISERROR(MATCH(D23,'Simulador Original'!$G$18:$G$19,0))=FALSE,"D","")) -> C | F23: =IF(E23="C",0,IF(E23 ="D",ROUND(1/((1+'Simulador Original'!$P$13)^A23),9) * 2,ROUND(1/((1+'Simulador Original'!$P$13)^A23),9))) -> 0 | G23: 14.01719786 | H23: =+COUNTIF($E$4:E23,"C") -> 4
A24: 21 | B24: 17 | C24: 2024-02-15 | D24: 2 | E24: =IF(ISERROR(MATCH(D24,'Simulador Original'!$G$16:$G$17,0))=FALSE,"C",IF(ISERROR(MATCH(D24,'Simulador Original'!$G$18:$G$19,0))=FALSE,"D","")) ->  | F24: =IF(E24="C",0,IF(E24 ="D",ROUND(1/((1+'Simulador Original'!$P$13)^A24),9) * 2,ROUND(1/((1+'Simulador Original'!$P$13)^A24),9))) -> 0.76379033 | G24: 14.78098819 | H24: =+COUNTIF($E$4:E24,"C") -> 4
A25: 22 | B25: 18 | C25: 2024-03-15 | D25: 3 | E25: =IF(ISERROR(MATCH(D25,'Simulador Original'!$G$16:$G$17,0))=FALSE,"C",IF(ISERROR(MATCH(D25,'Simulador Original'!$G$18:$G$19,0))=FALSE,"D","")) ->  | F25: =IF(E25="C",0,IF(E25 ="D",ROUND(1/((1+'Simulador Original'!$P$13)^A25),9) * 2,ROUND(1/((1+'Simulador Original'!$P$13)^A25),9))) -> 0.754052348 | G25: 15.53504054 | H25: =+COUNTIF($E$4:E25,"C") -> 4
A26: 23 | B26: 19 | C26: 2024-04-15 | D26: 4 | E26: =IF(ISERROR(MATCH(D26,'Simulador Original'!$G$16:$G$17,0))=FALSE,"C",IF(ISERROR(MATCH(D26,'Simulador Original'!$G$18:$G$19,0))=FALSE,"D","")) ->  | F26: =IF(E26="C",0,IF(E26 ="D",ROUND(1/((1+'Simulador Original'!$P$13)^A26),9) * 2,ROUND(1/((1+'Simulador Original'!$P$13)^A26),9))) -> 0.74443852 | G26: 16.27947906 | H26: =+COUNTIF($E$4:E26,"C") -> 4
A27: 24 | B27: 20 | C27: 2024-05-15 | D27: 5 | E27: =IF(ISERROR(MATCH(D27,'Simulador Original'!$G$16:$G$17,0))=FALSE,"C",IF(ISERROR(MATCH(D27,'Simulador Original'!$G$18:$G$19,0))=FALSE,"D","")) ->  | F27: =IF(E27="C",0,IF(E27 ="D",ROUND(1/((1+'Simulador Original'!$P$13)^A27),9) * 2,ROUND(1/((1+'Simulador Original'!$P$13)^A27),9))) -> 0.734947265 | G27: 17.01442633 | H27: =+COUNTIF($E$4:E27,"C") -> 4
A28: 25 | B28: 20 | C28: 2024-06-15 | D28: 6 | E28: =IF(ISERROR(MATCH(D28,'Simulador Original'!$G$16:$G$17,0))=FALSE,"C",IF(ISERROR(MATCH(D28,'Simulador Original'!$G$18:$G$19,0))=FALSE,"D","")) -> C | F28: =IF(E28="C",0,IF(E28 ="D",ROUND(1/((1+'Simulador Original'!$P$13)^A28),9) * 2,ROUND(1/((1+'Simulador Original'!$P$13)^A28),9))) -> 0 | G28: 17.01442633 | H28: =+COUNTIF($E$4:E28,"C") -> 5
A29: 26 | B29: 21 | C29: 2024-07-15 | D29: 7 | E29: =IF(ISERROR(MATCH(D29,'Simulador Original'!$G$16:$G$17,0))=FALSE,"C",IF(ISERROR(MATCH(D29,'Simulador Original'!$G$18:$G$19,0))=FALSE,"D","")) ->  | F29: =IF(E29="C",0,IF(E29 ="D",ROUND(1/((1+'Simulador Original'!$P$13)^A29),9) * 2,ROUND(1/((1+'Simulador Original'!$P$13)^A29),9))) -> 0.716326239 | G29: 17.73075256 | H29: =+COUNTIF($E$4:E29,"C") -> 5
A30: 27 | B30: 22 | C30: 2024-08-15 | D30: 8 | E30: =IF(ISERROR(MATCH(D30,'Simulador Original'!$G$16:$G$17,0))=FALSE,"C",IF(ISERROR(MATCH(D30,'Simulador Original'!$G$18:$G$19,0))=FALSE,"D","")) ->  | F30: =IF(E30="C",0,IF(E30 ="D",ROUND(1/((1+'Simulador Original'!$P$13)^A30),9) * 2,ROUND(1/((1+'Simulador Original'!$P$13)^A30),9))) -> 0.707193402 | G30: 18.43794597 | H30: =+COUNTIF($E$4:E30,"C") -> 5
A31: 28 | B31: 23 | C31: 2024-09-15 | D31: 9 | E31: =IF(ISERROR(MATCH(D31,'Simulador Original'!$G$16:$G$17,0))=FALSE,"C",IF(ISERROR(MATCH(D31,'Simulador Original'!$G$18:$G$19,0))=FALSE,"D","")) ->  | F31: =IF(E31="C",0,IF(E31 ="D",ROUND(1/((1+'Simulador Original'!$P$13)^A31),9) * 2,ROUND(1/((1+'Simulador Original'!$P$13)^A31),9))) -> 0.698177005 | G31: 19.13612297 | H31: =+COUNTIF($E$4:E31,"C") -> 5
A32: 29 | B32: 24 | C32: 2024-10-15 | D32: 10 | E32: =IF(ISERROR(MATCH(D32,'Simulador Original'!$G$16:$G$17,0))=FALSE,"C",IF(ISERROR(MATCH(D32,'Simulador Original'!$G$18:$G$19,0))=FALSE,"D","")) ->  | F32: =IF(E32="C",0,IF(E32 ="D",ROUND(1/((1+'Simulador Original'!$P$13)^A32),9) * 2,ROUND(1/((1+'Simulador Original'!$P$13)^A32),9))) -> 0.689275563 | G32: 19.82539854 | H32: =+COUNTIF($E$4:E32,"C") -> 5
A33: 30 | B33: 25 | C33: 2024-11-15 | D33: 11 | E33: =IF(ISERROR(MATCH(D33,'Simulador Original'!$G$16:$G$17,0))=FALSE,"C",IF(ISERROR(MATCH(D33,'Simulador Original'!$G$18:$G$19,0))=FALSE,"D","")) ->  | F33: =IF(E33="C",0,IF(E33 ="D",ROUND(1/((1+'Simulador Original'!$P$13)^A33),9) * 2,ROUND(1/((1+'Simulador Original'!$P$13)^A33),9))) -> 0.68048761 | G33: 20.50588615 | H33: =+COUNTIF($E$4:E33,"C") -> 5
A34: 31 | B34: 26 | C34: 2024-12-15 | D34: 12 | E34: =IF(ISERROR(MATCH(D34,'Simulador Original'!$G$16:$G$17,0))=FALSE,"C",IF(ISERROR(MATCH(D34,'Simulador Original'!$G$18:$G$19,0))=FALSE,"D","")) ->  | F34: =IF(E34="C",0,IF(E34 ="D",ROUND(1/((1+'Simulador Original'!$P$13)^A34),9) * 2,ROUND(1/((1+'Simulador Original'!$P$13)^A34),9))) -> 0.6718117 | G34: 21.17769785 | H34: =+COUNTIF($E$4:E34,"C") -> 5
A35: 32 | B35: 26 | C35: 2025-01-15 | D35: 1 | E35: =IF(ISERROR(MATCH(D35,'Simulador Original'!$G$16:$G$17,0))=FALSE,"C",IF(ISERROR(MATCH(D35,'Simulador Original'!$G$18:$G$19,0))=FALSE,"D","")) -> C | F35: =IF(E35="C",0,IF(E35 ="D",ROUND(1/((1+'Simulador Original'!$P$13)^A35),9) * 2,ROUND(1/((1+'Simulador Original'!$P$13)^A35),9))) -> 0 | G35: 21.17769785 | H35: =+COUNTIF($E$4:E35,"C") -> 6
A36: 33 | B36: 27 | C36: 2025-02-15 | D36: 2 | E36: =IF(ISERROR(MATCH(D36,'Simulador Original'!$G$16:$G$17,0))=FALSE,"C",IF(ISERROR(MATCH(D36,'Simulador Original'!$G$18:$G$19,0))=FALSE,"D","")) ->  | F36: =IF(E36="C",0,IF(E36 ="D",ROUND(1/((1+'Simulador Original'!$P$13)^A36),9) * 2,ROUND(1/((1+'Simulador Original'!$P$13)^A36),9))) -> 0.654790311 | G36: 21.83248816 | H36: =+COUNTIF($E$4:E36,"C") -> 6
A37: 34 | B37: 28 | C37: 2025-03-15 | D37: 3 | E37: =IF(ISERROR(MATCH(D37,'Simulador Original'!$G$16:$G$17,0))=FALSE,"C",IF(ISERROR(MATCH(D37,'Simulador Original'!$G$18:$G$19,0))=FALSE,"D","")) ->  | F37: =IF(E37="C",0,IF(E37 ="D",ROUND(1/((1+'Simulador Original'!$P$13)^A37),9) * 2,ROUND(1/((1+'Simulador Original'!$P$13)^A37),9))) -> 0.64644203 | G37: 22.47893019 | H37: =+COUNTIF($E$4:E37,"C") -> 6
A38: 35 | B38: 29 | C38: 2025-04-15 | D38: 4 | E38: =IF(ISERROR(MATCH(D38,'Simulador Original'!$G$16:$G$17,0))=FALSE,"C",IF(ISERROR(MATCH(D38,'Simulador Original'!$G$18:$G$19,0))=FALSE,"D","")) ->  | F38: =IF(E38="C",0,IF(E38 ="D",ROUND(1/((1+'Simulador Original'!$P$13)^A38),9) * 2,ROUND(1/((1+'Simulador Original'!$P$13)^A38),9))) -> 0.638200185 | G38: 23.11713037 | H38: =+COUNTIF($E$4:E38,"C") -> 6
A39: 36 | B39: 30 | C39: 2025-05-15 | D39: 5 | E39: =IF(ISERROR(MATCH(D39,'Simulador Original'!$G$16:$G$17,0))=FALSE,"C",IF(ISERROR(MATCH(D39,'Simulador Original'!$G$18:$G$19,0))=FALSE,"D","")) ->  | F39: =IF(E39="C",0,IF(E39 ="D",ROUND(1/((1+'Simulador Original'!$P$13)^A39),9) * 2,ROUND(1/((1+'Simulador Original'!$P$13)^A39),9))) -> 0.630063421 | G39: 23.74719379 | H39: =+COUNTIF($E$4:E39,"C") -> 6
A40: 37 | B40: 30 | C40: 2025-06-15 | D40: 6 | E40: =IF(ISERROR(MATCH(D40,'Simulador Original'!$G$16:$G$17,0))=FALSE,"C",IF(ISERROR(MATCH(D40,'Simulador Original'!$G$18:$G$19,0))=FALSE,"D","")) -> C | F40: =IF(E40="C",0,IF(E40 ="D",ROUND(1/((1+'Simulador Original'!$P$13)^A40),9) * 2,ROUND(1/((1+'Simulador Original'!$P$13)^A40),9))) -> 0 | G40: 23.74719379 | H40: =+COUNTIF($E$4:E40,"C") -> 7
A41: 38 | B41: 31 | C41: 2025-07-15 | D41: 7 | E41: =IF(ISERROR(MATCH(D41,'Simulador Original'!$G$16:$G$17,0))=FALSE,"C",IF(ISERROR(MATCH(D41,'Simulador Original'!$G$18:$G$19,0))=FALSE,"D","")) ->  | F41: =IF(E41="C",0,IF(E41 ="D",ROUND(1/((1+'Simulador Original'!$P$13)^A41),9) * 2,ROUND(1/((1+'Simulador Original'!$P$13)^A41),9))) -> 0.614099789 | G41: 24.36129358 | H41: =+COUNTIF($E$4:E41,"C") -> 7
A42: 39 | B42: 32 | C42: 2025-08-15 | D42: 8 | E42: =IF(ISERROR(MATCH(D42,'Simulador Original'!$G$16:$G$17,0))=FALSE,"C",IF(ISERROR(MATCH(D42,'Simulador Original'!$G$18:$G$19,0))=FALSE,"D","")) ->  | F42: =IF(E42="C",0,IF(E42 ="D",ROUND(1/((1+'Simulador Original'!$P$13)^A42),9) * 2,ROUND(1/((1+'Simulador Original'!$P$13)^A42),9))) -> 0.606270294 | G42: 24.96756387 | H42: =+COUNTIF($E$4:E42,"C") -> 7
A43: 40 | B43: 33 | C43: 2025-09-15 | D43: 9 | E43: =IF(ISERROR(MATCH(D43,'Simulador Original'!$G$16:$G$17,0))=FALSE,"C",IF(ISERROR(MATCH(D43,'Simulador Original'!$G$18:$G$19,0))=FALSE,"D","")) ->  | F43: =IF(E43="C",0,IF(E43 ="D",ROUND(1/((1+'Simulador Original'!$P$13)^A43),9) * 2,ROUND(1/((1+'Simulador Original'!$P$13)^A43),9))) -> 0.598540621 | G43: 25.5661045 | H43: =+COUNTIF($E$4:E43,"C") -> 7
A44: 41 | B44: 34 | C44: 2025-10-15 | D44: 10 | E44: =IF(ISERROR(MATCH(D44,'Simulador Original'!$G$16:$G$17,0))=FALSE,"C",IF(ISERROR(MATCH(D44,'Simulador Original'!$G$18:$G$19,0))=FALSE,"D","")) ->  | F44: =IF(E44="C",0,IF(E44 ="D",ROUND(1/((1+'Simulador Original'!$P$13)^A44),9) * 2,ROUND(1/((1+'Simulador Original'!$P$13)^A44),9))) -> 0.590909498 | G44: 26.15701399 | H44: =+COUNTIF($E$4:E44,"C") -> 7
A45: 42 | B45: 35 | C45: 2025-11-15 | D45: 11 | E45: =IF(ISERROR(MATCH(D45,'Simulador Original'!$G$16:$G$17,0))=FALSE,"C",IF(ISERROR(MATCH(D45,'Simulador Original'!$G$18:$G$19,0))=FALSE,"D","")) ->  | F45: =IF(E45="C",0,IF(E45 ="D",ROUND(1/((1+'Simulador Original'!$P$13)^A45),9) * 2,ROUND(1/((1+'Simulador Original'!$P$13)^A45),9))) -> 0.583375668 | G45: 26.74038966 | H45: =+COUNTIF($E$4:E45,"C") -> 7
A46: 43 | B46: 36 | C46: 2025-12-15 | D46: 12 | E46: =IF(ISERROR(MATCH(D46,'Simulador Original'!$G$16:$G$17,0))=FALSE,"C",IF(ISERROR(MATCH(D46,'Simulador Original'!$G$18:$G$19,0))=FALSE,"D","")) ->  | F46: =IF(E46="C",0,IF(E46 ="D",ROUND(1/((1+'Simulador Original'!$P$13)^A46),9) * 2,ROUND(1/((1+'Simulador Original'!$P$13)^A46),9))) -> 0.575937891 | G46: 27.31632755 | H46: =+COUNTIF($E$4:E46,"C") -> 7
A47: 44 | B47: 36 | C47: 2026-01-15 | D47: 1 | E47: =IF(ISERROR(MATCH(D47,'Simulador Original'!$G$16:$G$17,0))=FALSE,"C",IF(ISERROR(MATCH(D47,'Simulador Original'!$G$18:$G$19,0))=FALSE,"D","")) -> C | F47: =IF(E47="C",0,IF(E47 ="D",ROUND(1/((1+'Simulador Original'!$P$13)^A47),9) * 2,ROUND(1/((1+'Simulador Original'!$P$13)^A47),9))) -> 0 | G47: 27.31632755 | H47: =+COUNTIF($E$4:E47,"C") -> 8
A48: 45 | B48: 37 | C48: 2026-02-15 | D48: 2 | E48: =IF(ISERROR(MATCH(D48,'Simulador Original'!$G$16:$G$17,0))=FALSE,"C",IF(ISERROR(MATCH(D48,'Simulador Original'!$G$18:$G$19,0))=FALSE,"D","")) ->  | F48: =IF(E48="C",0,IF(E48 ="D",ROUND(1/((1+'Simulador Original'!$P$13)^A48),9) * 2,ROUND(1/((1+'Simulador Original'!$P$13)^A48),9))) -> 0.561345614 | G48: 27.87767317 | H48: =+COUNTIF($E$4:E48,"C") -> 8
A49: 46 | B49: 38 | C49: 2026-03-15 | D49: 3 | E49: =IF(ISERROR(MATCH(D49,'Simulador Original'!$G$16:$G$17,0))=FALSE,"C",IF(ISERROR(MATCH(D49,'Simulador Original'!$G$18:$G$19,0))=FALSE,"D","")) ->  | F49: =IF(E49="C",0,IF(E49 ="D",ROUND(1/((1+'Simulador Original'!$P$13)^A49),9) * 2,ROUND(1/((1+'Simulador Original'!$P$13)^A49),9))) -> 0.55418871 | G49: 28.43186188 | H49: =+COUNTIF($E$4:E49,"C") -> 8
A50: 47 | B50: 39 | C50: 2026-04-15 | D50: 4 | E50: =IF(ISERROR(MATCH(D50,'Simulador Original'!$G$16:$G$17,0))=FALSE,"C",IF(ISERROR(MATCH(D50,'Simulador Original'!$G$18:$G$19,0))=FALSE,"D","")) ->  | F50: =IF(E50="C",0,IF(E50 ="D",ROUND(1/((1+'Simulador Original'!$P$13)^A50),9) * 2,ROUND(1/((1+'Simulador Original'!$P$13)^A50),9))) -> 0.547123054 | G50: 28.97898493 | H50: =+COUNTIF($E$4:E50,"C") -> 8
A51: 48 | B51: 40 | C51: 2026-05-15 | D51: 5 | E51: =IF(ISERROR(MATCH(D51,'Simulador Original'!$G$16:$G$17,0))=FALSE,"C",IF(ISERROR(MATCH(D51,'Simulador Original'!$G$18:$G$19,0))=FALSE,"D","")) ->  | F51: =IF(E51="C",0,IF(E51 ="D",ROUND(1/((1+'Simulador Original'!$P$13)^A51),9) * 2,ROUND(1/((1+'Simulador Original'!$P$13)^A51),9))) -> 0.540147482 | G51: 29.51913241 | H51: =+COUNTIF($E$4:E51,"C") -> 8
A52: 49 | B52: 40 | C52: 2026-06-15 | D52: 6 | E52: =IF(ISERROR(MATCH(D52,'Simulador Original'!$G$16:$G$17,0))=FALSE,"C",IF(ISERROR(MATCH(D52,'Simulador Original'!$G$18:$G$19,0))=FALSE,"D","")) -> C | F52: =IF(E52="C",0,IF(E52 ="D",ROUND(1/((1+'Simulador Original'!$P$13)^A52),9) * 2,ROUND(1/((1+'Simulador Original'!$P$13)^A52),9))) -> 0 | G52: 29.51913241 | H52: =+COUNTIF($E$4:E52,"C") -> 9
A53: 50 | B53: 41 | C53: 2026-07-15 | D53: 7 | E53: =IF(ISERROR(MATCH(D53,'Simulador Original'!$G$16:$G$17,0))=FALSE,"C",IF(ISERROR(MATCH(D53,'Simulador Original'!$G$18:$G$19,0))=FALSE,"D","")) ->  | F53: =IF(E53="C",0,IF(E53 ="D",ROUND(1/((1+'Simulador Original'!$P$13)^A53),9) * 2,ROUND(1/((1+'Simulador Original'!$P$13)^A53),9))) -> 0.52646201 | G53: 30.04559442 | H53: =+COUNTIF($E$4:E53,"C") -> 9
A54: 51 | B54: 42 | C54: 2026-08-15 | D54: 8 | E54: =IF(ISERROR(MATCH(D54,'Simulador Original'!$G$16:$G$17,0))=FALSE,"C",IF(ISERROR(MATCH(D54,'Simulador Original'!$G$18:$G$19,0))=FALSE,"D","")) ->  | F54: =IF(E54="C",0,IF(E54 ="D",ROUND(1/((1+'Simulador Original'!$P$13)^A54),9) * 2,ROUND(1/((1+'Simulador Original'!$P$13)^A54),9))) -> 0.519749856 | G54: 30.56534428 | H54: =+COUNTIF($E$4:E54,"C") -> 9
A55: 52 | B55: 43 | C55: 2026-09-15 | D55: 9 | E55: =IF(ISERROR(MATCH(D55,'Simulador Original'!$G$16:$G$17,0))=FALSE,"C",IF(ISERROR(MATCH(D55,'Simulador Original'!$G$18:$G$19,0))=FALSE,"D","")) ->  | F55: =IF(E55="C",0,IF(E55 ="D",ROUND(1/((1+'Simulador Original'!$P$13)^A55),9) * 2,ROUND(1/((1+'Simulador Original'!$P$13)^A55),9))) -> 0.51312328 | G55: 31.07846756 | H55: =+COUNTIF($E$4:E55,"C") -> 9
A56: 53 | B56: 44 | C56: 2026-10-15 | D56: 10 | E56: =IF(ISERROR(MATCH(D56,'Simulador Original'!$G$16:$G$17,0))=FALSE,"C",IF(ISERROR(MATCH(D56,'Simulador Original'!$G$18:$G$19,0))=FALSE,"D","")) ->  | F56: =IF(E56="C",0,IF(E56 ="D",ROUND(1/((1+'Simulador Original'!$P$13)^A56),9) * 2,ROUND(1/((1+'Simulador Original'!$P$13)^A56),9))) -> 0.50658119 | G56: 31.58504875 | H56: =+COUNTIF($E$4:E56,"C") -> 9
A57: 54 | B57: 45 | C57: 2026-11-15 | D57: 11 | E57: =IF(ISERROR(MATCH(D57,'Simulador Original'!$G$16:$G$17,0))=FALSE,"C",IF(ISERROR(MATCH(D57,'Simulador Original'!$G$18:$G$19,0))=FALSE,"D","")) ->  | F57: =IF(E57="C",0,IF(E57 ="D",ROUND(1/((1+'Simulador Original'!$P$13)^A57),9) * 2,ROUND(1/((1+'Simulador Original'!$P$13)^A57),9))) -> 0.500122508 | G57: 32.08517126 | H57: =+COUNTIF($E$4:E57,"C") -> 9
A58: 55 | B58: 46 | C58: 2026-12-15 | D58: 12 | E58: =IF(ISERROR(MATCH(D58,'Simulador Original'!$G$16:$G$17,0))=FALSE,"C",IF(ISERROR(MATCH(D58,'Simulador Original'!$G$18:$G$19,0))=FALSE,"D","")) ->  | F58: =IF(E58="C",0,IF(E58 ="D",ROUND(1/((1+'Simulador Original'!$P$13)^A58),9) * 2,ROUND(1/((1+'Simulador Original'!$P$13)^A58),9))) -> 0.493746171 | G58: 32.57891743 | H58: =+COUNTIF($E$4:E58,"C") -> 9
A59: 56 | B59: 46 | C59: 2027-01-15 | D59: 1 | E59: =IF(ISERROR(MATCH(D59,'Simulador Original'!$G$16:$G$17,0))=FALSE,"C",IF(ISERROR(MATCH(D59,'Simulador Original'!$G$18:$G$19,0))=FALSE,"D","")) -> C | F59: =IF(E59="C",0,IF(E59 ="D",ROUND(1/((1+'Simulador Original'!$P$13)^A59),9) * 2,ROUND(1/((1+'Simulador Original'!$P$13)^A59),9))) -> 0 | G59: 32.57891743 | H59: =+COUNTIF($E$4:E59,"C") -> 10
A60: 57 | B60: 47 | C60: 2027-02-15 | D60: 2 | E60: =IF(ISERROR(MATCH(D60,'Simulador Original'!$G$16:$G$17,0))=FALSE,"C",IF(ISERROR(MATCH(D60,'Simulador Original'!$G$18:$G$19,0))=FALSE,"D","")) ->  | F60: =IF(E60="C",0,IF(E60 ="D",ROUND(1/((1+'Simulador Original'!$P$13)^A60),9) * 2,ROUND(1/((1+'Simulador Original'!$P$13)^A60),9))) -> 0.481236348 | G60: 33.06015378 | H60: =+COUNTIF($E$4:E60,"C") -> 10
A61: 58 | B61: 48 | C61: 2027-03-15 | D61: 3 | E61: =IF(ISERROR(MATCH(D61,'Simulador Original'!$G$16:$G$17,0))=FALSE,"C",IF(ISERROR(MATCH(D61,'Simulador Original'!$G$18:$G$19,0))=FALSE,"D","")) ->  | F61: =IF(E61="C",0,IF(E61 ="D",ROUND(1/((1+'Simulador Original'!$P$13)^A61),9) * 2,ROUND(1/((1+'Simulador Original'!$P$13)^A61),9))) -> 0.475100802 | G61: 33.53525458 | H61: =+COUNTIF($E$4:E61,"C") -> 10
A62: 59 | B62: 49 | C62: 2027-04-15 | D62: 4 | E62: =IF(ISERROR(MATCH(D62,'Simulador Original'!$G$16:$G$17,0))=FALSE,"C",IF(ISERROR(MATCH(D62,'Simulador Original'!$G$18:$G$19,0))=FALSE,"D","")) ->  | F62: =IF(E62="C",0,IF(E62 ="D",ROUND(1/((1+'Simulador Original'!$P$13)^A62),9) * 2,ROUND(1/((1+'Simulador Original'!$P$13)^A62),9))) -> 0.469043481 | G62: 34.00429806 | H62: =+COUNTIF($E$4:E62,"C") -> 10
A63: 60 | B63: 50 | C63: 2027-05-15 | D63: 5 | E63: =IF(ISERROR(MATCH(D63,'Simulador Original'!$G$16:$G$17,0))=FALSE,"C",IF(ISERROR(MATCH(D63,'Simulador Original'!$G$18:$G$19,0))=FALSE,"D","")) ->  | F63: =IF(E63="C",0,IF(E63 ="D",ROUND(1/((1+'Simulador Original'!$P$13)^A63),9) * 2,ROUND(1/((1+'Simulador Original'!$P$13)^A63),9))) -> 0.463063388 | G63: 34.46736145 | H63: =+COUNTIF($E$4:E63,"C") -> 10
A64: 61 | B64: 50 | C64: 2027-06-15 | D64: 6 | E64: =IF(ISERROR(MATCH(D64,'Simulador Original'!$G$16:$G$17,0))=FALSE,"C",IF(ISERROR(MATCH(D64,'Simulador Original'!$G$18:$G$19,0))=FALSE,"D","")) -> C | F64: =IF(E64="C",0,IF(E64 ="D",ROUND(1/((1+'Simulador Original'!$P$13)^A64),9) * 2,ROUND(1/((1+'Simulador Original'!$P$13)^A64),9))) -> 0 | G64: 34.46736145 | H64: =+COUNTIF($E$4:E64,"C") -> 11
A65: 62 | B65: 51 | C65: 2027-07-15 | D65: 7 | E65: =IF(ISERROR(MATCH(D65,'Simulador Original'!$G$16:$G$17,0))=FALSE,"C",IF(ISERROR(MATCH(D65,'Simulador Original'!$G$18:$G$19,0))=FALSE,"D","")) ->  | F65: =IF(E65="C",0,IF(E65 ="D",ROUND(1/((1+'Simulador Original'!$P$13)^A65),9) * 2,ROUND(1/((1+'Simulador Original'!$P$13)^A65),9))) -> 0.45133096 | G65: 34.91869241 | H65: =+COUNTIF($E$4:E65,"C") -> 11
A66: 63 | B66: 52 | C66: 2027-08-15 | D66: 8 | E66: =IF(ISERROR(MATCH(D66,'Simulador Original'!$G$16:$G$17,0))=FALSE,"C",IF(ISERROR(MATCH(D66,'Simulador Original'!$G$18:$G$19,0))=FALSE,"D","")) ->  | F66: =IF(E66="C",0,IF(E66 ="D",ROUND(1/((1+'Simulador Original'!$P$13)^A66),9) * 2,ROUND(1/((1+'Simulador Original'!$P$13)^A66),9))) -> 0.445576694 | G66: 35.3642691 | H66: =+COUNTIF($E$4:E66,"C") -> 11
A67: 64 | B67: 53 | C67: 2027-09-15 | D67: 9 | E67: =IF(ISERROR(MATCH(D67,'Simulador Original'!$G$16:$G$17,0))=FALSE,"C",IF(ISERROR(MATCH(D67,'Simulador Original'!$G$18:$G$19,0))=FALSE,"D","")) ->  | F67: =IF(E67="C",0,IF(E67 ="D",ROUND(1/((1+'Simulador Original'!$P$13)^A67),9) * 2,ROUND(1/((1+'Simulador Original'!$P$13)^A67),9))) -> 0.439895792 | G67: 35.80416489 | H67: =+COUNTIF($E$4:E67,"C") -> 11
A68: 65 | B68: 54 | C68: 2027-10-15 | D68: =MONTH(C68) -> 10 | E68: =IF(ISERROR(MATCH(D68,'Simulador Original'!$G$16:$G$17,0))=FALSE,"C",IF(ISERROR(MATCH(D68,'Simulador Original'!$G$18:$G$19,0))=FALSE,"D","")) ->  | F68: =IF(E68="C",0,IF(E68 ="D",ROUND(1/((1+'Simulador Original'!$P$13)^A68),9) * 2,ROUND(1/((1+'Simulador Original'!$P$13)^A68),9))) -> 0.434287319 | G68: 36.23845221 | H68: =+COUNTIF($E$4:E68,"C") -> 11
A69: =A68+1 -> 66 | B69: =IF(E69<>"C",IF(ISERROR(1+B68)=TRUE,1,1+B68),IF(ISNUMBER(B68),B68,1)) -> 55 | C69: =DATE(YEAR(C68) + 1/12,MONTH(C68)+1,DAY(C68)) -> 2027-11-15 | D69: 11 | E69: =IF(ISERROR(MATCH(D69,'Simulador Original'!$G$16:$G$17,0))=FALSE,"C",IF(ISERROR(MATCH(D69,'Simulador Original'!$G$18:$G$19,0))=FALSE,"D","")) ->  | F69: =IF(E69="C",0,IF(E69 ="D",ROUND(1/((1+'Simulador Original'!$P$13)^A69),9) * 2,ROUND(1/((1+'Simulador Original'!$P$13)^A69),9))) -> 0.428750352 | G69: 36.66720256 | H69: =+COUNTIF($E$4:E69,"C") -> 11
A70: 67 | B70: 56 | C70: 2027-12-15 | D70: 12 | E70: =IF(ISERROR(MATCH(D70,'Simulador Original'!$G$16:$G$17,0))=FALSE,"C",IF(ISERROR(MATCH(D70,'Simulador Original'!$G$18:$G$19,0))=FALSE,"D","")) ->  | F70: =IF(E70="C",0,IF(E70 ="D",ROUND(1/((1+'Simulador Original'!$P$13)^A70),9) * 2,ROUND(1/((1+'Simulador Original'!$P$13)^A70),9))) -> 0.423283978 | G70: =G69+ROUND(F70,9) -> 37.09048654 | H70: =+COUNTIF($E$4:E70,"C") -> 11
A71: 68 | B71: 56 | C71: 2028-01-15 | D71: 1 | E71: =IF(ISERROR(MATCH(D71,'Simulador Original'!$G$16:$G$17,0))=FALSE,"C",IF(ISERROR(MATCH(D71,'Simulador Original'!$G$18:$G$19,0))=FALSE,"D","")) -> C | F71: =IF(E71="C",0,IF(E71 ="D",ROUND(1/((1+'Simulador Original'!$P$13)^A71),9) * 2,ROUND(1/((1+'Simulador Original'!$P$13)^A71),9))) -> 0 | G71: 37.09048654 | H71: =+COUNTIF($E$4:E71,"C") -> 12
A72: 69 | B72: 57 | C72: 2028-02-15 | D72: 2 | E72: =IF(ISERROR(MATCH(D72,'Simulador Original'!$G$16:$G$17,0))=FALSE,"C",IF(ISERROR(MATCH(D72,'Simulador Original'!$G$18:$G$19,0))=FALSE,"D","")) ->  | F72: =IF(E72="C",0,IF(E72 ="D",ROUND(1/((1+'Simulador Original'!$P$13)^A72),9) * 2,ROUND(1/((1+'Simulador Original'!$P$13)^A72),9))) -> 0.412559423 | G72: 37.50304596 | H72: =+COUNTIF($E$4:E72,"C") -> 12
A73: 70 | B73: 58 | C73: 2028-03-15 | D73: 3 | E73: =IF(ISERROR(MATCH(D73,'Simulador Original'!$G$16:$G$17,0))=FALSE,"C",IF(ISERROR(MATCH(D73,'Simulador Original'!$G$18:$G$19,0))=FALSE,"D","")) ->  | F73: =IF(E73="C",0,IF(E73 ="D",ROUND(1/((1+'Simulador Original'!$P$13)^A73),9) * 2,ROUND(1/((1+'Simulador Original'!$P$13)^A73),9))) -> 0.407299477 | G73: 37.91034544 | H73: =+COUNTIF($E$4:E73,"C") -> 12
A74: 71 | B74: 59 | C74: 2028-04-15 | D74: 4 | E74: =IF(ISERROR(MATCH(D74,'Simulador Original'!$G$16:$G$17,0))=FALSE,"C",IF(ISERROR(MATCH(D74,'Simulador Original'!$G$18:$G$19,0))=FALSE,"D","")) ->  | F74: =IF(E74="C",0,IF(E74 ="D",ROUND(1/((1+'Simulador Original'!$P$13)^A74),9) * 2,ROUND(1/((1+'Simulador Original'!$P$13)^A74),9))) -> 0.402106592 | G74: 38.31245203 | H74: =+COUNTIF($E$4:E74,"C") -> 12
A75: 72 | B75: 60 | C75: 2028-05-15 | D75: 5 | E75: =IF(ISERROR(MATCH(D75,'Simulador Original'!$G$16:$G$17,0))=FALSE,"C",IF(ISERROR(MATCH(D75,'Simulador Original'!$G$18:$G$19,0))=FALSE,"D","")) ->  | F75: =IF(E75="C",0,IF(E75 ="D",ROUND(1/((1+'Simulador Original'!$P$13)^A75),9) * 2,ROUND(1/((1+'Simulador Original'!$P$13)^A75),9))) -> 0.396979914 | G75: 38.70943195 | H75: =+COUNTIF($E$4:E75,"C") -> 12
A76: 73 | B76: 60 | C76: 2028-06-15 | D76: 6 | E76: =IF(ISERROR(MATCH(D76,'Simulador Original'!$G$16:$G$17,0))=FALSE,"C",IF(ISERROR(MATCH(D76,'Simulador Original'!$G$18:$G$19,0))=FALSE,"D","")) -> C | F76: =IF(E76="C",0,IF(E76 ="D",ROUND(1/((1+'Simulador Original'!$P$13)^A76),9) * 2,ROUND(1/((1+'Simulador Original'!$P$13)^A76),9))) -> 0 | G76: 38.70943195 | H76: =+COUNTIF($E$4:E76,"C") -> 13
A77: 74 | B77: 61 | C77: 2028-07-15 | D77: 7 | E77: =IF(ISERROR(MATCH(D77,'Simulador Original'!$G$16:$G$17,0))=FALSE,"C",IF(ISERROR(MATCH(D77,'Simulador Original'!$G$18:$G$19,0))=FALSE,"D","")) ->  | F77: =IF(E77="C",0,IF(E77 ="D",ROUND(1/((1+'Simulador Original'!$P$13)^A77),9) * 2,ROUND(1/((1+'Simulador Original'!$P$13)^A77),9))) -> 0.386921814 | G77: 39.09635376 | H77: =+COUNTIF($E$4:E77,"C") -> 13
A78: 75 | B78: 62 | C78: 2028-08-15 | D78: 8 | E78: =IF(ISERROR(MATCH(D78,'Simulador Original'!$G$16:$G$17,0))=FALSE,"C",IF(ISERROR(MATCH(D78,'Simulador Original'!$G$18:$G$19,0))=FALSE,"D","")) ->  | F78: =IF(E78="C",0,IF(E78 ="D",ROUND(1/((1+'Simulador Original'!$P$13)^A78),9) * 2,ROUND(1/((1+'Simulador Original'!$P$13)^A78),9))) -> 0.381988735 | G78: 39.4783425 | H78: =+COUNTIF($E$4:E78,"C") -> 13
A79: 76 | B79: 63 | C79: 2028-09-15 | D79: 9 | E79: =IF(ISERROR(MATCH(D79,'Simulador Original'!$G$16:$G$17,0))=FALSE,"C",IF(ISERROR(MATCH(D79,'Simulador Original'!$G$18:$G$19,0))=FALSE,"D","")) ->  | F79: =IF(E79="C",0,IF(E79 ="D",ROUND(1/((1+'Simulador Original'!$P$13)^A79),9) * 2,ROUND(1/((1+'Simulador Original'!$P$13)^A79),9))) -> 0.377118551 | G79: 39.85546105 | H79: =+COUNTIF($E$4:E79,"C") -> 13
A80: 77 | B80: 64 | C80: 2028-10-15 | D80: 10 | E80: =IF(ISERROR(MATCH(D80,'Simulador Original'!$G$16:$G$17,0))=FALSE,"C",IF(ISERROR(MATCH(D80,'Simulador Original'!$G$18:$G$19,0))=FALSE,"D","")) ->  | F80: =IF(E80="C",0,IF(E80 ="D",ROUND(1/((1+'Simulador Original'!$P$13)^A80),9) * 2,ROUND(1/((1+'Simulador Original'!$P$13)^A80),9))) -> 0.37231046 | G80: 40.22777151 | H80: =+COUNTIF($E$4:E80,"C") -> 13
A81: 78 | B81: 65 | C81: 2028-11-15 | D81: 11 | E81: =IF(ISERROR(MATCH(D81,'Simulador Original'!$G$16:$G$17,0))=FALSE,"C",IF(ISERROR(MATCH(D81,'Simulador Original'!$G$18:$G$19,0))=FALSE,"D","")) ->  | F81: =IF(E81="C",0,IF(E81 ="D",ROUND(1/((1+'Simulador Original'!$P$13)^A81),9) * 2,ROUND(1/((1+'Simulador Original'!$P$13)^A81),9))) -> 0.367563669 | G81: 40.59533518 | H81: =+COUNTIF($E$4:E81,"C") -> 13
A82: 79 | B82: 66 | C82: 2028-12-15 | D82: 12 | E82: =IF(ISERROR(MATCH(D82,'Simulador Original'!$G$16:$G$17,0))=FALSE,"C",IF(ISERROR(MATCH(D82,'Simulador Original'!$G$18:$G$19,0))=FALSE,"D","")) ->  | F82: =IF(E82="C",0,IF(E82 ="D",ROUND(1/((1+'Simulador Original'!$P$13)^A82),9) * 2,ROUND(1/((1+'Simulador Original'!$P$13)^A82),9))) -> 0.362877398 | G82: 40.95821258 | H82: =+COUNTIF($E$4:E82,"C") -> 13
A83: 80 | B83: 66 | C83: 2029-01-15 | D83: 1 | E83: =IF(ISERROR(MATCH(D83,'Simulador Original'!$G$16:$G$17,0))=FALSE,"C",IF(ISERROR(MATCH(D83,'Simulador Original'!$G$18:$G$19,0))=FALSE,"D","")) -> C | F83: =IF(E83="C",0,IF(E83 ="D",ROUND(1/((1+'Simulador Original'!$P$13)^A83),9) * 2,ROUND(1/((1+'Simulador Original'!$P$13)^A83),9))) -> 0 | G83: 40.95821258 | H83: =+COUNTIF($E$4:E83,"C") -> 14
A84: 81 | B84: 67 | C84: 2029-02-15 | D84: 2 | E84: =IF(ISERROR(MATCH(D84,'Simulador Original'!$G$16:$G$17,0))=FALSE,"C",IF(ISERROR(MATCH(D84,'Simulador Original'!$G$18:$G$19,0))=FALSE,"D","")) ->  | F84: =IF(E84="C",0,IF(E84 ="D",ROUND(1/((1+'Simulador Original'!$P$13)^A84),9) * 2,ROUND(1/((1+'Simulador Original'!$P$13)^A84),9))) -> 0.353683338 | G84: 41.31189591 | H84: =+COUNTIF($E$4:E84,"C") -> 14
A85: 82 | B85: 68 | C85: 2029-03-15 | D85: 3 | E85: =IF(ISERROR(MATCH(D85,'Simulador Original'!$G$16:$G$17,0))=FALSE,"C",IF(ISERROR(MATCH(D85,'Simulador Original'!$G$18:$G$19,0))=FALSE,"D","")) ->  | F85: =IF(E85="C",0,IF(E85 ="D",ROUND(1/((1+'Simulador Original'!$P$13)^A85),9) * 2,ROUND(1/((1+'Simulador Original'!$P$13)^A85),9))) -> 0.349174035 | G85: 41.66106995 | H85: =+COUNTIF($E$4:E85,"C") -> 14
A86: 83 | B86: 69 | C86: 2029-04-15 | D86: 4 | E86: =IF(ISERROR(MATCH(D86,'Simulador Original'!$G$16:$G$17,0))=FALSE,"C",IF(ISERROR(MATCH(D86,'Simulador Original'!$G$18:$G$19,0))=FALSE,"D","")) ->  | F86: =IF(E86="C",0,IF(E86 ="D",ROUND(1/((1+'Simulador Original'!$P$13)^A86),9) * 2,ROUND(1/((1+'Simulador Original'!$P$13)^A86),9))) -> 0.344722223 | G86: 42.00579217 | H86: =+COUNTIF($E$4:E86,"C") -> 14
A87: 84 | B87: 70 | C87: 2029-05-15 | D87: 5 | E87: =IF(ISERROR(MATCH(D87,'Simulador Original'!$G$16:$G$17,0))=FALSE,"C",IF(ISERROR(MATCH(D87,'Simulador Original'!$G$18:$G$19,0))=FALSE,"D","")) ->  | F87: =IF(E87="C",0,IF(E87 ="D",ROUND(1/((1+'Simulador Original'!$P$13)^A87),9) * 2,ROUND(1/((1+'Simulador Original'!$P$13)^A87),9))) -> 0.34032717 | G87: 42.34611934 | H87: =+COUNTIF($E$4:E87,"C") -> 14
A88: 85 | B88: 70 | C88: 2029-06-15 | D88: 6 | E88: =IF(ISERROR(MATCH(D88,'Simulador Original'!$G$16:$G$17,0))=FALSE,"C",IF(ISERROR(MATCH(D88,'Simulador Original'!$G$18:$G$19,0))=FALSE,"D","")) -> C | F88: =IF(E88="C",0,IF(E88 ="D",ROUND(1/((1+'Simulador Original'!$P$13)^A88),9) * 2,ROUND(1/((1+'Simulador Original'!$P$13)^A88),9))) -> 0 | G88: 42.34611934 | H88: =+COUNTIF($E$4:E88,"C") -> 15
A89: 86 | B89: 71 | C89: 2029-07-15 | D89: 7 | E89: =IF(ISERROR(MATCH(D89,'Simulador Original'!$G$16:$G$17,0))=FALSE,"C",IF(ISERROR(MATCH(D89,'Simulador Original'!$G$18:$G$19,0))=FALSE,"D","")) ->  | F89: =IF(E89="C",0,IF(E89 ="D",ROUND(1/((1+'Simulador Original'!$P$13)^A89),9) * 2,ROUND(1/((1+'Simulador Original'!$P$13)^A89),9))) -> 0.331704455 | G89: 42.6778238 | H89: =+COUNTIF($E$4:E89,"C") -> 15
A90: 87 | B90: 72 | C90: 2029-08-15 | D90: 8 | E90: =IF(ISERROR(MATCH(D90,'Simulador Original'!$G$16:$G$17,0))=FALSE,"C",IF(ISERROR(MATCH(D90,'Simulador Original'!$G$18:$G$19,0))=FALSE,"D","")) ->  | F90: =IF(E90="C",0,IF(E90 ="D",ROUND(1/((1+'Simulador Original'!$P$13)^A90),9) * 2,ROUND(1/((1+'Simulador Original'!$P$13)^A90),9))) -> 0.327475372 | G90: 43.00529917 | H90: =+COUNTIF($E$4:E90,"C") -> 15
A91: 88 | B91: 73 | C91: 2029-09-15 | D91: 9 | E91: =IF(ISERROR(MATCH(D91,'Simulador Original'!$G$16:$G$17,0))=FALSE,"C",IF(ISERROR(MATCH(D91,'Simulador Original'!$G$18:$G$19,0))=FALSE,"D","")) ->  | F91: =IF(E91="C",0,IF(E91 ="D",ROUND(1/((1+'Simulador Original'!$P$13)^A91),9) * 2,ROUND(1/((1+'Simulador Original'!$P$13)^A91),9))) -> 0.323300209 | G91: 43.32859938 | H91: =+COUNTIF($E$4:E91,"C") -> 15
A92: 89 | B92: 74 | C92: 2029-10-15 | D92: 10 | E92: =IF(ISERROR(MATCH(D92,'Simulador Original'!$G$16:$G$17,0))=FALSE,"C",IF(ISERROR(MATCH(D92,'Simulador Original'!$G$18:$G$19,0))=FALSE,"D","")) ->  | F92: =IF(E92="C",0,IF(E92 ="D",ROUND(1/((1+'Simulador Original'!$P$13)^A92),9) * 2,ROUND(1/((1+'Simulador Original'!$P$13)^A92),9))) -> 0.319178277 | G92: 43.64777765 | H92: =+COUNTIF($E$4:E92,"C") -> 15
A93: 90 | B93: 75 | C93: 2029-11-15 | D93: 11 | E93: =IF(ISERROR(MATCH(D93,'Simulador Original'!$G$16:$G$17,0))=FALSE,"C",IF(ISERROR(MATCH(D93,'Simulador Original'!$G$18:$G$19,0))=FALSE,"D","")) ->  | F93: =IF(E93="C",0,IF(E93 ="D",ROUND(1/((1+'Simulador Original'!$P$13)^A93),9) * 2,ROUND(1/((1+'Simulador Original'!$P$13)^A93),9))) -> 0.315108898 | G93: 43.96288655 | H93: =+COUNTIF($E$4:E93,"C") -> 15
A94: 91 | B94: 76 | C94: 2029-12-15 | D94: 12 | E94: =IF(ISERROR(MATCH(D94,'Simulador Original'!$G$16:$G$17,0))=FALSE,"C",IF(ISERROR(MATCH(D94,'Simulador Original'!$G$18:$G$19,0))=FALSE,"D","")) ->  | F94: =IF(E94="C",0,IF(E94 ="D",ROUND(1/((1+'Simulador Original'!$P$13)^A94),9) * 2,ROUND(1/((1+'Simulador Original'!$P$13)^A94),9))) -> 0.311091402 | G94: 44.27397795 | H94: =+COUNTIF($E$4:E94,"C") -> 15
A95: 92 | B95: 76 | C95: 2030-01-15 | D95: 1 | E95: =IF(ISERROR(MATCH(D95,'Simulador Original'!$G$16:$G$17,0))=FALSE,"C",IF(ISERROR(MATCH(D95,'Simulador Original'!$G$18:$G$19,0))=FALSE,"D","")) -> C | F95: =IF(E95="C",0,IF(E95 ="D",ROUND(1/((1+'Simulador Original'!$P$13)^A95),9) * 2,ROUND(1/((1+'Simulador Original'!$P$13)^A95),9))) -> 0 | G95: 44.27397795 | H95: =+COUNTIF($E$4:E95,"C") -> 16
A96: 93 | B96: 77 | C96: 2030-02-15 | D96: 2 | E96: =IF(ISERROR(MATCH(D96,'Simulador Original'!$G$16:$G$17,0))=FALSE,"C",IF(ISERROR(MATCH(D96,'Simulador Original'!$G$18:$G$19,0))=FALSE,"D","")) ->  | F96: =IF(E96="C",0,IF(E96 ="D",ROUND(1/((1+'Simulador Original'!$P$13)^A96),9) * 2,ROUND(1/((1+'Simulador Original'!$P$13)^A96),9))) -> 0.30320942 | G96: 44.57718737 | H96: =+COUNTIF($E$4:E96,"C") -> 16
A97: 94 | B97: 78 | C97: 2030-03-15 | D97: 3 | E97: =IF(ISERROR(MATCH(D97,'Simulador Original'!$G$16:$G$17,0))=FALSE,"C",IF(ISERROR(MATCH(D97,'Simulador Original'!$G$18:$G$19,0))=FALSE,"D","")) ->  | F97: =IF(E97="C",0,IF(E97 ="D",ROUND(1/((1+'Simulador Original'!$P$13)^A97),9) * 2,ROUND(1/((1+'Simulador Original'!$P$13)^A97),9))) -> 0.299343636 | G97: 44.87653101 | H97: =+COUNTIF($E$4:E97,"C") -> 16
A98: 95 | B98: 79 | C98: 2030-04-15 | D98: 4 | E98: =IF(ISERROR(MATCH(D98,'Simulador Original'!$G$16:$G$17,0))=FALSE,"C",IF(ISERROR(MATCH(D98,'Simulador Original'!$G$18:$G$19,0))=FALSE,"D","")) ->  | F98: =IF(E98="C",0,IF(E98 ="D",ROUND(1/((1+'Simulador Original'!$P$13)^A98),9) * 2,ROUND(1/((1+'Simulador Original'!$P$13)^A98),9))) -> 0.29552714 | G98: 45.17205815 | H98: =+COUNTIF($E$4:E98,"C") -> 16
A99: 96 | B99: 80 | C99: 2030-05-15 | D99: 5 | E99: =IF(ISERROR(MATCH(D99,'Simulador Original'!$G$16:$G$17,0))=FALSE,"C",IF(ISERROR(MATCH(D99,'Simulador Original'!$G$18:$G$19,0))=FALSE,"D","")) ->  | F99: =IF(E99="C",0,IF(E99 ="D",ROUND(1/((1+'Simulador Original'!$P$13)^A99),9) * 2,ROUND(1/((1+'Simulador Original'!$P$13)^A99),9))) -> 0.291759302 | G99: 45.46381745 | H99: =+COUNTIF($E$4:E99,"C") -> 16

Sheet Simulador Original (2) (hidden)
C2: SIMULADOR DE CUOTAS - CRÉDITO CONVENIOS
C5: Importe Solicitado | G5: 49420 | K5: Fecha Desembolso | P5: 2018-01-05
C6: Saldo de Capital | G6: 49420 | K6: Fecha Final de Gracia | P6: 2018-02-15
C7: Saldo de Interes | G7: 0 | K7: Fecha de la 1° cuota | P7: 2018-03-15
C8: Tasa Anual (TEA) | G8: 14.03 | H8: Tasa de Gracia | I8: 14.03 | K8: Fecha final de vencimiento | P8: 2020-06-15
C9: Tasa de Seguro de Desgravámen | G9: 0.0009 | K9: Base | P9: 360
K10: Frecuencia pago en días | P10: 30
C11: Comisiones + Pago Casillero | G11: 16.5 | K11: Tasa Equivalente | P11: 13.201224 | Q11: tea conv. A tem luego nominal anual
K12: Días entre cuotas | P12: 35.45833333 | Q12: dias promedio entre cuotas
C13: Plazo y Nro. Cuotas | G13: 24 | H13: 24 | K13: Factor Aplicado | P13: 0.01300259447 | Q13: tem convertida de manera nominal a los dias entre cuotas
C14: Días de Gracia | G14: 41 | K14: Factor Aplicado para la cuota | P14: 0.04877368648 | Q14: Factor de cuota (ok)
C15: (+/- 30 días antes de la fecha 1° cuota) | K15: Interes de Gracia | P15: 744.5113 | Q15: Ok
C16: Mes de No Pago 1 | G16: 1 | K16: Saldo Interes +/- Interes Gracia | P16: 744.5113
C17: Mes de No Pago 2 | G17: 8
C18: Mes Cuota Doble 1 | G18: 0 | K18: Comisión de Gracia Desgravamen (Primera Cuota) | P18: 60.78
C19: Mes Cuota Doble 2 | G19: 0 | S19: 994.12
I20: =REDONDEAR(SI(O(F16+ F17> 0,F18 + F19>0),REDONDEAR.MAS(O16/BUSCARV(F13,Calculos!$A$3:$G$99,7,FALSO),2),O16*$O$14),2) | S20: 976.59
R21: -12889.26 | S21: 17.53
I22: Con Factor | J22: Con Minicronograma | L22: Suavización | N22: Ultimo saldo de Principal | P22: -12889.26 | R22: 0
F23: Valor de cuota por dias de gracia | I23: 31.02130417 | J23: 0.07041939689 | N23: Numero de Dias | P23: 851
F24: Valor de cuota por capital | I24: 2877.54 | J24: Promedio | K24: Exceso Desgravamen | N24: Valor de Cuota Nivelada | P24: -35419.79 | R24: 0.3639136457 | S24: -35418.45752
F25: Seguro de Desgravamen (FPF) | I25: 44.47 | J25: 47.0025 | K25: 2.5325 | N25: Factor Ajuste | P25: -1727.553733 | R25: Se copia el valor de la celda P26 solo en la primera corrida, siempre que sea mayor a cero
F26: Comisiones + Pago de Casillero | I26: 16.5 | N26: Exceso de Int + Gracia | P26: 0 | Q26: 0 | R26: 0
F28: Cuota | I28: 2969.531304 | J28: 2972.063804 | N28: Digite Factor de Ajuste Anterior mas El Actual | R28: -12889.26 | S28: =-1727.55373262017+4756.46892161516+-13096.0030749489+6623.75341315595+6623.75341315595+-13664.6232949772+6623.75341315595+6623.75341315595+-12099.0469751545+6623.75341315595+6623.75341315595+-16409.571252974+6623.75341315595+6623.75341315595+-4541.40525297992+6623.75341315595-12357.0929427365+6623.75341315595+6623.75341315595+-15699.0688667145+6623.75341315595+6623.75341315595+-6497.61880707829
K29: 2018.81 | S29: -460.279128302192
C30: =SI(O(MES(FECHA.MES($O$6,D32))=$F$16,MES(FECHA.MES($O$6,D32))=$F$17),SI(ABS($F$17-$F$16)=1,FECHA.MES($O$6,D32+2),FECHA.MES($O$6,D32+1)),FECHA.MES($O$6,D32)) | V30: Minicronograma de Gracia
C31: Fecha Vcto. | D31: Nro. Cuota (De acuerdo a Plazo) | E31: Nro. Cuota | F31: Periodo Base | G31: Tasa | H31: Nro. Dias | I31: Principal | J31: Capital | K31: Interes | L31: Interes de Gracia | M31: Interes Total | N31: Valor Cuota | O31: Comision Envio Informacion | P31: Seguro de Desgravamen | Q31: Cuota | R31: Saldo Principal | S31: Exceso | T31: Importe de Gracia Desgravamen | V31: Dias Transcurridos Acumulados | W31: Factor Simple Actualizacion | X31: Principal | Y31: Capital | Z31: Interes | AA31: Cuota Gracia | AB31: Saldo Deuda
A32: 1 | B32: 1 | C32: 2018-03-15 | D32: 1 | E32: 1 | F32: 360 | G32: 14.03 | H32: 28 | I32: 49420 | J32: 2309.52 | K32: 507.24 | L32: 31.02130417 | M32: 538.2613042 | N32: 2847.781304 | O32: 16.5 | P32: 105.25 | Q32: 2969.531304 | R32: 47110.48 | S32: 0 | T32: 60.78 | U32: =+'Simulador Original'!J32-'Simulador Original (2)'!J32 -> -2036.015536 | V32: 28 | W32: 0.9898404087 | X32: 744.5113 | Y32: -7.571146343 | Z32: 7.641565739 | AA32: 0.07041939689 | AB32: 752.0824463
A33: 2 | B33: 1 | C33: 2018-04-15 | D33: 2 | E33: 2 | F33: 360 | G33: 14.03 | H33: 31 | I33: 47110.48 | J33: 2341.9 | K33: 535.64 | L33: 31.02130417 | M33: 566.6613042 | N33: 2908.561304 | O33: 16.5 | P33: 44.47 | Q33: 2969.531304 | R33: 44768.58 | S33: 0 | T33: 0 | U33: =+'Simulador Original'!J33-'Simulador Original (2)'!J33 -> -1703.195536 | V33: 59 | W33: 0.9787126441 | X33: 752.0824463 | Y33: -8.480605687 | Z33: 8.551025084 | AA33: 0.07041939689 | AB33: 760.563052
A34: 3 | B34: 1 | C34: 2018-05-15 | D34: 3 | E34: 3 | F34: 360 | G34: 14.03 | H34: 30 | I34: 44768.58 | J34: 2385.04 | K34: 492.5 | L34: 31.02130417 | M34: 523.5213042 | N34: 2908.561304 | O34: 16.5 | P34: 44.47 | Q34: 2969.531304 | R34: 42383.54 | S34: 0 | T34: 0 | U34: =+'Simulador Original'!J34-'Simulador Original (2)'!J34 -> -1739.325536 | V34: 89 | W34: 0.9680629642 | X34: 760.563052 | Y34: -8.296549847 | Z34: 8.366969244 | AA34: 0.07041939689 | AB34: 768.8596019
A35: 4 | B35: 1 | C35: 2018-06-15 | D35: 4 | E35: 4 | F35: 360 | G35: 14.03 | H35: 31 | I35: 42383.54 | J35: 2395.65 | K35: 481.89 | L35: 31.02130417 | M35: 512.9113042 | N35: 2908.561304 | O35: 16.5 | P35: 44.47 | Q35: 2969.531304 | R35: 39987.89 | S35: 0 | T35: 0 | U35: =+'Simulador Original'!J35-'Simulador Original (2)'!J35 -> -1731.665536 | V35: 120 | W35: 0.9571800213 | X35: 768.8596019 | Y35: -8.671358547 | Z35: 8.741777944 | AA35: 0.07041939689 | AB35: 777.5309604
A36: 5 | B36: 1 | C36: 2018-07-15 | D36: 5 | E36: 5 | F36: 360 | G36: 14.03 | H36: 30 | I36: 39987.89 | J36: 2437.63 | K36: 439.91 | L36: 31.02130417 | M36: 470.9313042 | N36: 2908.561304 | O36: 16.5 | P36: 44.47 | Q36: 2969.531304 | R36: 37550.26 | S36: 0 | T36: 0 | U36: =+'Simulador Original'!J36-'Simulador Original (2)'!J36 -> -1777.555536 | V36: 150 | W36: 0.9467646446 | X36: 777.5309604 | Y36: -8.483214145 | Z36: 8.553633542 | AA36: 0.07041939689 | AB36: 786.0141746
A37: 6 | B37: 1 | C37: 2018-09-15 | D37: 7 | E37: 6 | F37: 360 | G37: 14.03 | H37: 62 | I37: 37550.26 | J37: 1974.34 | K37: 858.73 | L37: 31.02130417 | M37: 889.7513042 | N37: 2864.091304 | O37: 16.5 | P37: 88.94 | Q37: 2969.531304 | R37: 35575.92 | S37: 0 | T37: 44.47 | U37: =+'Simulador Original'!J37-'Simulador Original (2)'!J37 -> -1296.305536 | V37: 212 | W37: 0.9255972832 | X37: 786.0141746 | Y37: -17.90483438 | Z37: 17.97525378 | AA37: 0.07041939689 | AB37: 803.9190089
A38: 7 | B38: 1 | C38: 2018-10-15 | D38: 8 | E38: 7 | F38: 360 | G38: 14.03 | H38: 30 | I38: 35575.92 | J38: 2486.17 | K38: 391.37 | L38: 31.02130417 | M38: 422.3913042 | N38: 2908.561304 | O38: 16.5 | P38: 44.47 | Q38: 2969.531304 | R38: 33089.75 | S38: 0 | T38: 0 | U38: =+'Simulador Original'!J38-'Simulador Original (2)'!J38 -> -2143.255536 | V38: 242 | W38: 0.9155255683 | X38: 803.9190089 | Y38: -8.773509591 | Z38: 8.843928988 | AA38: 0.07041939689 | AB38: 812.6925185
A39: 8 | B39: 1 | C39: 2018-11-15 | D39: 9 | E39: 8 | F39: 360 | G39: 14.03 | H39: 31 | I39: 33089.75 | J39: 2501.32 | K39: 376.22 | L39: 31.02130417 | M39: 407.2413042 | N39: 2908.561304 | O39: 16.5 | P39: 44.47 | Q39: 2969.531304 | R39: 30588.43 | S39: 0 | T39: 0 | U39: =+'Simulador Original'!J39-'Simulador Original (2)'!J39 -> -1791.735536 | V39: 273 | W39: 0.9052332496 | X39: 812.6925185 | Y39: -9.169729932 | Z39: 9.240149328 | AA39: 0.07041939689 | AB39: 821.8622485
A40: 9 | B40: 1 | C40: 2018-12-15 | D40: 10 | E40: 9 | F40: 360 | G40: 14.03 | H40: 30 | I40: 30588.43 | J40: 2541.04 | K40: 336.5 | L40: 31.02130417 | M40: 367.5213042 | N40: 2908.561304 | O40: 16.5 | P40: 44.47 | Q40: 2969.531304 | R40: 28047.39 | S40: 0 | T40: 0 | U40: =+'Simulador Original'!J40-'Simulador Original (2)'!J40 -> -1854.755536 | V40: 303 | W40: 0.8953831221 | X40: 821.8622485 | Y40: -8.970903525 | Z40: 9.041322922 | AA40: 0.07041939689 | AB40: 830.833152
A41: 10 | B41: 1 | C41: 2019-02-15 | D41: 12 | E41: 10 | F41: 360 | G41: 14.03 | H41: 62 | I41: 28047.39 | J41: 2191.66 | K41: 641.41 | L41: 31.02130417 | M41: 672.4313042 | N41: 2864.091304 | O41: 16.5 | P41: 88.94 | Q41: 2969.531304 | R41: 25855.73 | S41: 0 | T41: 44.47 | U41: =+'Simulador Original'!J41-'Simulador Original (2)'!J41 -> -1487.985536 | V41: 365 | W41: 0.875364527 | X41: 830.833152 | Y41: -18.92979362 | Z41: 19.00021302 | AA41: 0.07041939689 | AB41: 849.7629456
A42: 11 | B42: 1 | C42: 2019-03-15 | D42: 13 | E42: 11 | F42: 360 | G42: 14.03 | H42: 28 | I42: 25855.73 | J42: 2612.16 | K42: 265.38 | L42: 31.02130417 | M42: 296.4013042 | N42: 2908.561304 | O42: 16.5 | P42: 44.47 | Q42: 2969.531304 | R42: 23243.57 | S42: 0 | T42: 0 | U42: =+'Simulador Original'!J42-'Simulador Original (2)'!J42 -> -2205.675536 | V42: 393 | W42: 0.8664711811 | X42: 849.7629456 | Y42: -8.651435344 | Z42: 8.721854741 | AA42: 0.07041939689 | AB42: 858.414381
A43: 12 | B43: 1 | C43: 2019-04-15 | D43: 14 | E43: 12 | F43: 360 | G43: 14.03 | H43: 31 | I43: 23243.57 | J43: 2613.27 | K43: 264.27 | L43: 31.02130417 | M43: 295.2913042 | N43: 2908.561304 | O43: 16.5 | P43: 44.47 | Q43: 2969.531304 | R43: 20630.3 | S43: 0 | T43: 0 | U43: =+'Simulador Original'!J43-'Simulador Original (2)'!J43 -> -1907.295536 | V43: 424 | W43: 0.8567303308 | X43: 858.414381 | Y43: -9.689578247 | Z43: 9.759997643 | AA43: 0.07041939689 | AB43: 868.1039592
A44: 13 | B44: 1 | C44: 2019-05-15 | D44: 15 | E44: 13 | F44: 360 | G44: 14.03 | H44: 30 | I44: 20630.3 | J44: 2650.59 | K44: 226.95 | L44: 31.02130417 | M44: 257.9713042 | N44: 2908.561304 | O44: 16.5 | P44: 44.47 | Q44: 2969.531304 | R44: 17979.71 | S44: 0 | T44: 0 | U44: =+'Simulador Original'!J44-'Simulador Original (2)'!J44 -> -1936.875536 | V44: 454 | W44: 0.8474079787 | X44: 868.1039592 | Y44: -9.479609504 | Z44: 9.550028901 | AA44: 0.07041939689 | AB44: 877.5835687
A45: 14 | B45: 1 | C45: 2019-06-15 | D45: 16 | E45: 14 | F45: 360 | G45: 14.03 | H45: 31 | I45: 17979.71 | J45: 2673.11 | K45: 204.43 | L45: 31.02130417 | M45: 235.4513042 | N45: 2908.561304 | O45: 16.5 | P45: 44.47 | Q45: 2969.531304 | R45: 15306.6 | S45: 0 | T45: 0 | U45: =+'Simulador Original'!J45-'Simulador Original (2)'!J45 -> -1942.595536 | V45: 485 | W45: 0.8378814365 | X45: 877.5835687 | Y45: -9.907528029 | Z45: 9.977947426 | AA45: 0.07041939689 | AB45: 887.4910967
A46: 15 | B46: 1 | C46: 2019-07-15 | D46: 17 | E46: 15 | F46: 360 | G46: 14.03 | H46: 30 | I46: 15306.6 | J46: 2709.15 | K46: 168.39 | L46: 31.02130417 | M46: 199.4113042 | N46: 2908.561304 | O46: 16.5 | P46: 44.47 | Q46: 2969.531304 | R46: 12597.45 | S46: 0 | T46: 0 | U46: =+'Simulador Original'!J46-'Simulador Original (2)'!J46 -> -1979.595536 | V46: 515 | W46: 0.8287641853 | X46: 887.4910967 | Y46: -9.692887789 | Z46: 9.763307186 | AA46: 0.07041939689 | AB46: 897.1839845
A47: 16 | B47: 1 | C47: 2019-09-15 | D47: 19 | E47: 16 | F47: 360 | G47: 14.03 | H47: 62 | I47: 12597.45 | J47: 2544.98 | K47: 288.09 | L47: 31.02130417 | M47: 319.1113042 | N47: 2864.091304 | O47: 16.5 | P47: 88.94 | Q47: 2969.531304 | R47: 10052.47 | S47: 0 | T47: 44.47 | U47: =+'Simulador Original'!J47-'Simulador Original (2)'!J47 -> -1798.975536 | V47: 577 | W47: 0.810235028 | X47: 897.1839845 | Y47: -20.447162 | Z47: 20.5175814 | AA47: 0.07041939689 | AB47: 917.6311465
A48: 17 | B48: 1 | C48: 2019-10-15 | D48: 20 | E48: 17 | F48: 360 | G48: 14.03 | H48: 30 | I48: 10052.47 | J48: 2766.95 | K48: 110.59 | L48: 31.02130417 | M48: 141.6113042 | N48: 2908.561304 | O48: 16.5 | P48: 44.47 | Q48: 2969.531304 | R48: 7285.52 | S48: 0 | T48: 0 | U48: =+'Simulador Original'!J48-'Simulador Original (2)'!J48 -> -2281.275536 | V48: 607 | W48: 0.801418606 | X48: 917.6311465 | Y48: -10.02445908 | Z48: 10.09487847 | AA48: 0.07041939689 | AB48: 927.6556056
A49: 18 | B49: 1 | C49: 2019-11-15 | D49: 21 | E49: 18 | F49: 360 | G49: 14.03 | H49: 31 | I49: 7285.52 | J49: 2794.71 | K49: 82.83 | L49: 31.02130417 | M49: 113.8513042 | N49: 2908.561304 | O49: 16.5 | P49: 44.47 | Q49: 2969.531304 | R49: 4490.81 | S49: 0 | T49: 0 | U49: =+'Simulador Original'!J49-'Simulador Original (2)'!J49 -> -2027.635536 | V49: 638 | W49: 0.7924090753 | X49: 927.6556056 | Y49: -10.47683695 | Z49: 10.54725634 | AA49: 0.07041939689 | AB49: 938.1324426
A50: 19 | B50: 1 | C50: 2019-12-15 | D50: 22 | E50: 19 | F50: 360 | G50: 14.03 | H50: 30 | I50: 4490.81 | J50: 2828.14 | K50: 49.4 | L50: 31.02130417 | M50: 80.42130417 | N50: 2908.561304 | O50: 16.5 | P50: 44.47 | Q50: 2969.531304 | R50: 1662.67 | S50: 0 | T50: 0 | U50: =+'Simulador Original'!J50-'Simulador Original (2)'!J50 -> -2068.675536 | V50: 668 | W50: 0.7837866231 | X50: 938.1324426 | Y50: -10.24999424 | Z50: 10.32041364 | AA50: 0.07041939689 | AB50: 948.3824368
A51: 20 | B51: 1 | C51: 2020-02-15 | D51: 24 | E51: 20 | F51: 360 | G51: 14.03 | H51: 62 | I51: 1662.67 | J51: 2795.05 | K51: 38.02 | L51: 31.02130417 | M51: 69.04130417 | N51: 2864.091304 | O51: 16.5 | P51: 88.94 | Q51: 2969.531304 | R51: -1132.38 | S51: 0 | T51: 44.47 | U51: =+'Simulador Original'!J51-'Simulador Original (2)'!J51 -> -2019.785536 | V51: 730 | W51: 0.766263055 | X51: 948.3824368 | Y51: -21.61801261 | Z51: 21.688432 | AA51: 0.07041939689 | AB51: 970.0004494
A52: 21 | B52: 1 | C52: 2020-03-15 | D52: 25 | E52: 21 | F52: 360 | G52: 14.03 | H52: 29 | I52: -1132.38 | J52: 2889.58 | K52: -12.04 | L52: 31.02130417 | M52: 18.98130417 | N52: 2908.561304 | O52: 16.5 | P52: 44.47 | Q52: 2969.531304 | R52: -4021.96 | S52: 0 | T52: 0 | U52: =+'Simulador Original'!J52-'Simulador Original (2)'!J52 -> -2335.175536 | V52: 759 | W52: 0.7582015703 | X52: 970.0004494 | Y52: -10.24299082 | Z52: 10.31341022 | AA52: 0.07041939689 | AB52: 980.2434402
A53: 22 | B53: 1 | C53: 2020-04-15 | D53: 26 | E53: 22 | F53: 360 | G53: 14.03 | H53: 31 | I53: -4021.96 | J53: 2923.27 | K53: -45.73 | L53: 31.02130417 | M53: -14.70869583 | N53: 2908.561304 | O53: 16.5 | P53: 44.47 | Q53: 2969.531304 | R53: -6945.23 | S53: 0 | T53: 0 | U53: =+'Simulador Original'!J53-'Simulador Original (2)'!J53 -> -2140.895536 | V53: 790 | W53: 0.7496778846 | X53: 980.2434402 | Y53: -11.07474997 | Z53: 11.14516937 | AA53: 0.07041939689 | AB53: 991.3181902
A54: 23 | B54: 1 | C54: 2020-05-15 | D54: 27 | E54: 23 | F54: 360 | G54: 14.03 | H54: 30 | I54: -6945.23 | J54: 2953.94 | K54: -76.4 | L54: 31.02130417 | M54: -45.37869583 | N54: 2908.561304 | O54: 16.5 | P54: 44.47 | Q54: 2969.531304 | R54: -9899.17 | S54: 0 | T54: 0 | U54: =+'Simulador Original'!J54-'Simulador Original (2)'!J54 -> -2162.995536 | V54: 820 | W54: 0.7415204039 | X54: 991.3181902 | Y54: -10.83509171 | Z54: 10.9055111 | AA54: 0.07041939689 | AB54: 1002.153282
A55: 24 | B55: 1 | C55: 2020-06-15 | D55: 28 | E55: 24 | F55: 360 | G55: 14.03 | H55: 31 | I55: -9899.17 | J55: 2990.09 | K55: -112.55 | L55: 31.02130417 | M55: -81.52869583 | N55: 2908.561304 | O55: 16.5 | P55: 44.47 | Q55: 2969.531304 | R55: -12889.26 | S55: 0 | T55: 0 | U55: =+'Simulador Original'!J55-'Simulador Original (2)'!J55 -> -2184.035536 | V55: 851 | W55: 0.7331842475 | X55: 1002.153282 | Y55: -11.32386044 | Z55: 11.39427983 | AA55: 0.07041939689 | AB55: 1013.477142
X56: 1013.477142 | AA56: 0.07041939689
AA57: 0.07041939689
AA58: 0.07041939689
AA59: 0.07041939689
AA60: 0.07041939689
AA61: 0.07041939689
AA62: 0.07041939689
AA63: 0.07041939689
AA64: 0.07041939689
AA65: 0.07041939689
AA66: 0.07041939689
AA67: 0.07041939689
AA68: 0.07041939689
AA69: 0.07041939689
AA70: 0.07041939689
AA71: 0.07041939689
AA72: 0.07041939689
AA73: 0.07041939689
AA74: 0.07041939689
AA75: 0.07041939689
AA76: 0.07041939689
AA77: 0.07041939689
AA78: 0.07041939689
AA79: 0.07041939689
AA80: 0.07041939689
AA81: 0.07041939689
AA82: 0.07041939689
AA83: 0.07041939689
AA84: 0.07041939689
AA85: 0.07041939689
AA86: 0.07041939689
AA87: 0.07041939689
AA88: 0.07041939689
AA89: 0.07041939689
AA90: 0.07041939689
AA91: 0.07041939689
AA92: 0.07041939689
AA93: 0.07041939689
AA94: 0.07041939689
AA95: 0.07041939689
AA96: 0.07041939689
AA97: 0.07041939689
AA98: 0.07041939689
AA99: 0.07041939689
AA100: 0.07041939689
AA101: 0.07041939689
AA102: 0.07041939689
AA103: 0.07041939689
J105: 62309.26
J106: 12889.26
